{"text_format":"3","workbook":"xlsx","n_sheets":1,"sheets":["Leningcalculator"],"not_rendered":{"images":1,"defined_names":24},"read":"whole","date_system":"1900"}

{"sheet":"Leningcalculator","index":0,"n_rows":369,"n_cols":8,"rows_kept":369,"merged":[[0,1,0,7],[2,1,2,3],[2,5,2,7],[3,1,3,2],[3,5,3,6],[4,1,4,2],[4,5,4,6],[5,1,5,2],[5,5,5,6],[6,1,6,2],[6,5,6,6]]}
[null,"Eenvoudige leningcalculator"]
[]
[null,"Leninggegevens",{"$nulls":3},"Leningoverzicht"]
[null,"Geleend bedrag",null,{"v":10000,"d":"€ 10,000.00"},null,"Maandelijkse betaling",null,{"$f":"IFERROR(IF(LeningGoed,MaandelijkseBetaling,\"\"), \"\")","v":{"v":108.52627796048073,"d":"€ 108.53"}}]
[null,"Jaarlijks rentepercentage",null,{"v":0.055,"d":"5.50%"},null,"Aantal betalingen",null,{"$f":"IFERROR(IF(LeningGoed,Leningjaren*12,\"\"), \"\")","v":120}]
[null,"Looptijd in jaren",null,10,null,"Totale rente",null,{"$f":"IFERROR(IF(LeningGoed,TotaleLeningkosten-GeleendBedrag,\"\"), \"\")","v":{"v":3023.1533552576875,"d":"€ 3,023.15"}}]
[null,"Begindatum van de lening",null,{"$f":"TODAY()","v":"2019-05-08"},null,"Totale kosten van de lening",null,{"$f":"IFERROR(IF(LeningGoed,MaandelijkseBetaling*AantalBetalingen,\"\"), \"\")","v":{"v":13023.153355257688,"d":"€ 13,023.15"}}]
[]
[null,"Bet.nr.","Betalingsdatum","Beginsaldo","Betaling","Hoofdsom","Rente","Eindsaldo"]
[null,{"$f":"IFERROR(IF(LeningNietBetaald*LeningGoed,NummerBetaling,\"\"), \"\")","v":1},{"$f":"IFERROR(IF(LeningNietBetaald*LeningGoed,Betaaldatum,\"\"), \"\")","v":"2019-06-08"},{"$f":"IFERROR(IF(LeningNietBetaald*LeningGoed,WaardeLening,\"\"), \"\")","v":{"v":10000,"d":"€ 10,000.00"}},{"$f":"IFERROR(IF(LeningNietBetaald*LeningGoed,MaandelijkseBetaling,\"\"), \"\")","v":{"v":108.52627796048073,"d":"€ 108.53"}},{"$f":"IFERROR(IF(LeningNietBetaald*LeningGoed,Hoofdsom,\"\"), \"\")","v":{"v":62.69294462714739,"d":"€ 62.69"}},{"$f":"IFERROR(IF(LeningNietBetaald*LeningGoed,Rentebedrag,\"\"), \"\")","v":{"v":45.833333333333336,"d":"€ 45.83"}},{"$f":"IFERROR(IF(LeningNietBetaald*LeningGoed,Eindsaldo,\"\"), \"\")","v":{"v":9937.307055372852,"d":"€ 9,937.31"}}]
[null,{"$f":"IFERROR(IF(LeningNietBetaald*LeningGoed,NummerBetaling,\"\"), \"\")","v":2},{"$f":"IFERROR(IF(LeningNietBetaald*LeningGoed,Betaaldatum,\"\"), \"\")","v":"2019-07-08"},{"$f":"IFERROR(IF(LeningNietBetaald*LeningGoed,WaardeLening,\"\"), \"\")","v":{"v":9937.307055372852,"d":"€ 9,937.31"}},{"$f":"IFERROR(IF(LeningNietBetaald*LeningGoed,MaandelijkseBetaling,\"\"), \"\")","v":{"v":108.52627796048073,"d":"€ 108.53"}},{"$f":"IFERROR(IF(LeningNietBetaald*LeningGoed,Hoofdsom,\"\"), \"\")","v":{"v":62.98028729002182,"d":"€ 62.98"}},{"$f":"IFERROR(IF(LeningNietBetaald*LeningGoed,Rentebedrag,\"\"), \"\")","v":{"v":45.545990670458906,"d":"€ 45.55"}},{"$f":"IFERROR(IF(LeningNietBetaald*LeningGoed,Eindsaldo,\"\"), \"\")","v":{"v":9874.32676808283,"d":"€ 9,874.33"}}]
[null,{"$f":"IFERROR(IF(LeningNietBetaald*LeningGoed,NummerBetaling,\"\"), \"\")","v":3},{"$f":"IFERROR(IF(LeningNietBetaald*LeningGoed,Betaaldatum,\"\"), \"\")","v":"2019-08-08"},{"$f":"IFERROR(IF(LeningNietBetaald*LeningGoed,WaardeLening,\"\"), \"\")","v":{"v":9874.32676808283,"d":"€ 9,874.33"}},{"$f":"IFERROR(IF(LeningNietBetaald*LeningGoed,MaandelijkseBetaling,\"\"), \"\")","v":{"v":108.52627796048073,"d":"€ 108.53"}},{"$f":"IFERROR(IF(LeningNietBetaald*LeningGoed,Hoofdsom,\"\"), \"\")","v":{"v":63.268946940101095,"d":"€ 63.27"}},{"$f":"IFERROR(IF(LeningNietBetaald*LeningGoed,Rentebedrag,\"\"), \"\")","v":{"v":45.257331020379645,"d":"€ 45.26"}},{"$f":"IFERROR(IF(LeningNietBetaald*LeningGoed,Eindsaldo,\"\"), \"\")","v":{"v":9811.05782114273,"d":"€ 9,811.06"}}]
[null,{"$f":"IFERROR(IF(LeningNietBetaald*LeningGoed,NummerBetaling,\"\"), \"\")","v":4},{"$f":"IFERROR(IF(LeningNietBetaald*LeningGoed,Betaaldatum,\"\"), \"\")","v":"2019-09-08"},{"$f":"IFERROR(IF(LeningNietBetaald*LeningGoed,WaardeLening,\"\"), \"\")","v":{"v":9811.05782114273,"d":"€ 9,811.06"}},{"$f":"IFERROR(IF(LeningNietBetaald*LeningGoed,MaandelijkseBetaling,\"\"), \"\")","v":{"v":108.52627796048073,"d":"€ 108.53"}},{"$f":"IFERROR(IF(LeningNietBetaald*LeningGoed,Hoofdsom,\"\"), \"\")","v":{"v":63.55892961357656,"d":"€ 63.56"}},{"$f":"IFERROR(IF(LeningNietBetaald*LeningGoed,Rentebedrag,\"\"), \"\")","v":{"v":44.96734834690417,"d":"€ 44.97"}},{"$f":"IFERROR(IF(LeningNietBetaald*LeningGoed,Eindsaldo,\"\"), \"\")","v":{"v":9747.498891529152,"d":"€ 9,747.50"}}]
[null,{"$f":"IFERROR(IF(LeningNietBetaald*LeningGoed,NummerBetaling,\"\"), \"\")","v":5},{"$f":"IFERROR(IF(LeningNietBetaald*LeningGoed,Betaaldatum,\"\"), \"\")","v":"2019-10-08"},{"$f":"IFERROR(IF(LeningNietBetaald*LeningGoed,WaardeLening,\"\"), \"\")","v":{"v":9747.498891529152,"d":"€ 9,747.50"}},{"$f":"IFERROR(IF(LeningNietBetaald*LeningGoed,MaandelijkseBetaling,\"\"), \"\")","v":{"v":108.52627796048073,"d":"€ 108.53"}},{"$f":"IFERROR(IF(LeningNietBetaald*LeningGoed,Hoofdsom,\"\"), \"\")","v":{"v":63.850241374305455,"d":"€ 63.85"}},{"$f":"IFERROR(IF(LeningNietBetaald*LeningGoed,Rentebedrag,\"\"), \"\")","v":{"v":44.67603658617527,"d":"€ 44.68"}},{"$f":"IFERROR(IF(LeningNietBetaald*LeningGoed,Eindsaldo,\"\"), \"\")","v":{"v":9683.648650154846,"d":"€ 9,683.65"}}]
[null,{"$f":"IFERROR(IF(LeningNietBetaald*LeningGoed,NummerBetaling,\"\"), \"\")","v":6},{"$f":"IFERROR(IF(LeningNietBetaald*LeningGoed,Betaaldatum,\"\"), \"\")","v":"2019-11-08"},{"$f":"IFERROR(IF(LeningNietBetaald*LeningGoed,WaardeLening,\"\"), \"\")","v":{"v":9683.648650154846,"d":"€ 9,683.65"}},{"$f":"IFERROR(IF(LeningNietBetaald*LeningGoed,MaandelijkseBetaling,\"\"), \"\")","v":{"v":108.52627796048073,"d":"€ 108.53"}},{"$f":"IFERROR(IF(LeningNietBetaald*LeningGoed,Hoofdsom,\"\"), \"\")","v":{"v":64.14288831393768,"d":"€ 64.14"}},{"$f":"IFERROR(IF(LeningNietBetaald*LeningGoed,Rentebedrag,\"\"), \"\")","v":{"v":44.383389646543044,"d":"€ 44.38"}},{"$f":"IFERROR(IF(LeningNietBetaald*LeningGoed,Eindsaldo,\"\"), \"\")","v":{"v":9619.505761840908,"d":"€ 9,619.51"}}]
[null,{"$f":"IFERROR(IF(LeningNietBetaald*LeningGoed,NummerBetaling,\"\"), \"\")","v":7},{"$f":"IFERROR(IF(LeningNietBetaald*LeningGoed,Betaaldatum,\"\"), \"\")","v":"2019-12-08"},{"$f":"IFERROR(IF(LeningNietBetaald*LeningGoed,WaardeLening,\"\"), \"\")","v":{"v":9619.505761840908,"d":"€ 9,619.51"}},{"$f":"IFERROR(IF(LeningNietBetaald*LeningGoed,MaandelijkseBetaling,\"\"), \"\")","v":{"v":108.52627796048073,"d":"€ 108.53"}},{"$f":"IFERROR(IF(LeningNietBetaald*LeningGoed,Hoofdsom,\"\"), \"\")","v":{"v":64.43687655204323,"d":"€ 64.44"}},{"$f":"IFERROR(IF(LeningNietBetaald*LeningGoed,Rentebedrag,\"\"), \"\")","v":{"v":44.089401408437496,"d":"€ 44.09"}},{"$f":"IFERROR(IF(LeningNietBetaald*LeningGoed,Eindsaldo,\"\"), \"\")","v":{"v":9555.068885288867,"d":"€ 9,555.07"}}]
[null,{"$f":"IFERROR(IF(LeningNietBetaald*LeningGoed,NummerBetaling,\"\"), \"\")","v":8},{"$f":"IFERROR(IF(LeningNietBetaald*LeningGoed,Betaaldatum,\"\"), \"\")","v":"2020-01-08"},{"$f":"IFERROR(IF(LeningNietBetaald*LeningGoed,WaardeLening,\"\"), \"\")","v":{"v":9555.068885288867,"d":"€ 9,555.07"}},{"$f":"IFERROR(IF(LeningNietBetaald*LeningGoed,MaandelijkseBetaling,\"\"), \"\")","v":{"v":108.52627796048073,"d":"€ 108.53"}},{"$f":"IFERROR(IF(LeningNietBetaald*LeningGoed,Hoofdsom,\"\"), \"\")","v":{"v":64.73221223624009,"d":"€ 64.73"}},{"$f":"IFERROR(IF(LeningNietBetaald*LeningGoed,Rentebedrag,\"\"), \"\")","v":{"v":43.79406572424063,"d":"€ 43.79"}},{"$f":"IFERROR(IF(LeningNietBetaald*LeningGoed,Eindsaldo,\"\"), \"\")","v":{"v":9490.336673052625,"d":"€ 9,490.34"}}]
[null,{"$f":"IFERROR(IF(LeningNietBetaald*LeningGoed,NummerBetaling,\"\"), \"\")","v":9},{"$f":"IFERROR(IF(LeningNietBetaald*LeningGoed,Betaaldatum,\"\"), \"\")","v":"2020-02-08"},{"$f":"IFERROR(IF(LeningNietBetaald*LeningGoed,WaardeLening,\"\"), \"\")","v":{"v":9490.336673052625,"d":"€ 9,490.34"}},{"$f":"IFERROR(IF(LeningNietBetaald*LeningGoed,MaandelijkseBetaling,\"\"), \"\")","v":{"v":108.52627796048073,"d":"€ 108.53"}},{"$f":"IFERROR(IF(LeningNietBetaald*LeningGoed,Hoofdsom,\"\"), \"\")","v":{"v":65.02890154232287,"d":"€ 65.03"}},{"$f":"IFERROR(IF(LeningNietBetaald*LeningGoed,Rentebedrag,\"\"), \"\")","v":{"v":43.49737641815786,"d":"€ 43.50"}},{"$f":"IFERROR(IF(LeningNietBetaald*LeningGoed,Eindsaldo,\"\"), \"\")","v":{"v":9425.307771510303,"d":"€ 9,425.31"}}]
[null,{"$f":"IFERROR(IF(LeningNietBetaald*LeningGoed,NummerBetaling,\"\"), \"\")","v":10},{"$f":"IFERROR(IF(LeningNietBetaald*LeningGoed,Betaaldatum,\"\"), \"\")","v":"2020-03-08"},{"$f":"IFERROR(IF(LeningNietBetaald*LeningGoed,WaardeLening,\"\"), \"\")","v":{"v":9425.307771510303,"d":"€ 9,425.31"}},{"$f":"IFERROR(IF(LeningNietBetaald*LeningGoed,MaandelijkseBetaling,\"\"), \"\")","v":{"v":108.52627796048073,"d":"€ 108.53"}},{"$f":"IFERROR(IF(LeningNietBetaald*LeningGoed,Hoofdsom,\"\"), \"\")","v":{"v":65.32695067439184,"d":"€ 65.33"}},{"$f":"IFERROR(IF(LeningNietBetaald*LeningGoed,Rentebedrag,\"\"), \"\")","v":{"v":43.19932728608889,"d":"€ 43.20"}},{"$f":"IFERROR(IF(LeningNietBetaald*LeningGoed,Eindsaldo,\"\"), \"\")","v":{"v":9359.98082083591,"d":"€ 9,359.98"}}]
[null,{"$f":"IFERROR(IF(LeningNietBetaald*LeningGoed,NummerBetaling,\"\"), \"\")","v":11},{"$f":"IFERROR(IF(LeningNietBetaald*LeningGoed,Betaaldatum,\"\"), \"\")","v":"2020-04-08"},{"$f":"IFERROR(IF(LeningNietBetaald*LeningGoed,WaardeLening,\"\"), \"\")","v":{"v":9359.98082083591,"d":"€ 9,359.98"}},{"$f":"IFERROR(IF(LeningNietBetaald*LeningGoed,MaandelijkseBetaling,\"\"), \"\")","v":{"v":108.52627796048073,"d":"€ 108.53"}},{"$f":"IFERROR(IF(LeningNietBetaald*LeningGoed,Hoofdsom,\"\"), \"\")","v":{"v":65.6263658649828,"d":"€ 65.63"}},{"$f":"IFERROR(IF(LeningNietBetaald*LeningGoed,Rentebedrag,\"\"), \"\")","v":{"v":42.89991209549792,"d":"€ 42.90"}},{"$f":"IFERROR(IF(LeningNietBetaald*LeningGoed,Eindsaldo,\"\"), \"\")","v":{"v":9294.354454970928,"d":"€ 9,294.35"}}]
[null,{"$f":"IFERROR(IF(LeningNietBetaald*LeningGoed,NummerBetaling,\"\"), \"\")","v":12},{"$f":"IFERROR(IF(LeningNietBetaald*LeningGoed,Betaaldatum,\"\"), \"\")","v":"2020-05-08"},{"$f":"IFERROR(IF(LeningNietBetaald*LeningGoed,WaardeLening,\"\"), \"\")","v":{"v":9294.354454970928,"d":"€ 9,294.35"}},{"$f":"IFERROR(IF(LeningNietBetaald*LeningGoed,MaandelijkseBetaling,\"\"), \"\")","v":{"v":108.52627796048073,"d":"€ 108.53"}},{"$f":"IFERROR(IF(LeningNietBetaald*LeningGoed,Hoofdsom,\"\"), \"\")","v":{"v":65.92715337519732,"d":"€ 65.93"}},{"$f":"IFERROR(IF(LeningNietBetaald*LeningGoed,Rentebedrag,\"\"), \"\")","v":{"v":42.59912458528342,"d":"€ 42.60"}},{"$f":"IFERROR(IF(LeningNietBetaald*LeningGoed,Eindsaldo,\"\"), \"\")","v":{"v":9228.427301595733,"d":"€ 9,228.43"}}]
[null,{"$f":"IFERROR(IF(LeningNietBetaald*LeningGoed,NummerBetaling,\"\"), \"\")","v":13},{"$f":"IFERROR(IF(LeningNietBetaald*LeningGoed,Betaaldatum,\"\"), \"\")","v":"2020-06-08"},{"$f":"IFERROR(IF(LeningNietBetaald*LeningGoed,WaardeLening,\"\"), \"\")","v":{"v":9228.427301595733,"d":"€ 9,228.43"}},{"$f":"IFERROR(IF(LeningNietBetaald*LeningGoed,MaandelijkseBetaling,\"\"), \"\")","v":{"v":108.52627796048073,"d":"€ 108.53"}},{"$f":"IFERROR(IF(LeningNietBetaald*LeningGoed,Hoofdsom,\"\"), \"\")","v":{"v":66.22931949483362,"d":"€ 66.23"}},{"$f":"IFERROR(IF(LeningNietBetaald*LeningGoed,Rentebedrag,\"\"), \"\")","v":{"v":42.296958465647094,"d":"€ 42.30"}},{"$f":"IFERROR(IF(LeningNietBetaald*LeningGoed,Eindsaldo,\"\"), \"\")","v":{"v":9162.197982100897,"d":"€ 9,162.20"}}]
[null,{"$f":"IFERROR(IF(LeningNietBetaald*LeningGoed,NummerBetaling,\"\"), \"\")","v":14},{"$f":"IFERROR(IF(LeningNietBetaald*LeningGoed,Betaaldatum,\"\"), \"\")","v":"2020-07-08"},{"$f":"IFERROR(IF(LeningNietBetaald*LeningGoed,WaardeLening,\"\"), \"\")","v":{"v":9162.197982100897,"d":"€ 9,162.20"}},{"$f":"IFERROR(IF(LeningNietBetaald*LeningGoed,MaandelijkseBetaling,\"\"), \"\")","v":{"v":108.52627796048073,"d":"€ 108.53"}},{"$f":"IFERROR(IF(LeningNietBetaald*LeningGoed,Hoofdsom,\"\"), \"\")","v":{"v":66.53287054251828,"d":"€ 66.53"}},{"$f":"IFERROR(IF(LeningNietBetaald*LeningGoed,Rentebedrag,\"\"), \"\")","v":{"v":41.99340741796244,"d":"€ 41.99"}},{"$f":"IFERROR(IF(LeningNietBetaald*LeningGoed,Eindsaldo,\"\"), \"\")","v":{"v":9095.665111558377,"d":"€ 9,095.67"}}]
[null,{"$f":"IFERROR(IF(LeningNietBetaald*LeningGoed,NummerBetaling,\"\"), \"\")","v":15},{"$f":"IFERROR(IF(LeningNietBetaald*LeningGoed,Betaaldatum,\"\"), \"\")","v":"2020-08-08"},{"$f":"IFERROR(IF(LeningNietBetaald*LeningGoed,WaardeLening,\"\"), \"\")","v":{"v":9095.665111558377,"d":"€ 9,095.67"}},{"$f":"IFERROR(IF(LeningNietBetaald*LeningGoed,MaandelijkseBetaling,\"\"), \"\")","v":{"v":108.52627796048073,"d":"€ 108.53"}},{"$f":"IFERROR(IF(LeningNietBetaald*LeningGoed,Hoofdsom,\"\"), \"\")","v":{"v":66.83781286583816,"d":"€ 66.84"}},{"$f":"IFERROR(IF(LeningNietBetaald*LeningGoed,Rentebedrag,\"\"), \"\")","v":{"v":41.68846509464256,"d":"€ 41.69"}},{"$f":"IFERROR(IF(LeningNietBetaald*LeningGoed,Eindsaldo,\"\"), \"\")","v":{"v":9028.82729869254,"d":"€ 9,028.83"}}]
[null,{"$f":"IFERROR(IF(LeningNietBetaald*LeningGoed,NummerBetaling,\"\"), \"\")","v":16},{"$f":"IFERROR(IF(LeningNietBetaald*LeningGoed,Betaaldatum,\"\"), \"\")","v":"2020-09-08"},{"$f":"IFERROR(IF(LeningNietBetaald*LeningGoed,WaardeLening,\"\"), \"\")","v":{"v":9028.82729869254,"d":"€ 9,028.83"}},{"$f":"IFERROR(IF(LeningNietBetaald*LeningGoed,MaandelijkseBetaling,\"\"), \"\")","v":{"v":108.52627796048073,"d":"€ 108.53"}},{"$f":"IFERROR(IF(LeningNietBetaald*LeningGoed,Hoofdsom,\"\"), \"\")","v":{"v":67.14415284147324,"d":"€ 67.14"}},{"$f":"IFERROR(IF(LeningNietBetaald*LeningGoed,Rentebedrag,\"\"), \"\")","v":{"v":41.382125119007476,"d":"€ 41.38"}},{"$f":"IFERROR(IF(LeningNietBetaald*LeningGoed,Eindsaldo,\"\"), \"\")","v":{"v":8961.683145851068,"d":"€ 8,961.68"}}]
[null,{"$f":"IFERROR(IF(LeningNietBetaald*LeningGoed,NummerBetaling,\"\"), \"\")","v":17},{"$f":"IFERROR(IF(LeningNietBetaald*LeningGoed,Betaaldatum,\"\"), \"\")","v":"2020-10-08"},{"$f":"IFERROR(IF(LeningNietBetaald*LeningGoed,WaardeLening,\"\"), \"\")","v":{"v":8961.683145851068,"d":"€ 8,961.68"}},{"$f":"IFERROR(IF(LeningNietBetaald*LeningGoed,MaandelijkseBetaling,\"\"), \"\")","v":{"v":108.52627796048073,"d":"€ 108.53"}},{"$f":"IFERROR(IF(LeningNietBetaald*LeningGoed,Hoofdsom,\"\"), \"\")","v":{"v":67.45189687533001,"d":"€ 67.45"}},{"$f":"IFERROR(IF(LeningNietBetaald*LeningGoed,Rentebedrag,\"\"), \"\")","v":{"v":41.074381085150726,"d":"€ 41.07"}},{"$f":"IFERROR(IF(LeningNietBetaald*LeningGoed,Eindsaldo,\"\"), \"\")","v":{"v":8894.231248975735,"d":"€ 8,894.23"}}]
[null,{"$f":"IFERROR(IF(LeningNietBetaald*LeningGoed,NummerBetaling,\"\"), \"\")","v":18},{"$f":"IFERROR(IF(LeningNietBetaald*LeningGoed,Betaaldatum,\"\"), \"\")","v":"2020-11-08"},{"$f":"IFERROR(IF(LeningNietBetaald*LeningGoed,WaardeLening,\"\"), \"\")","v":{"v":8894.231248975735,"d":"€ 8,894.23"}},{"$f":"IFERROR(IF(LeningNietBetaald*LeningGoed,MaandelijkseBetaling,\"\"), \"\")","v":{"v":108.52627796048073,"d":"€ 108.53"}},{"$f":"IFERROR(IF(LeningNietBetaald*LeningGoed,Hoofdsom,\"\"), \"\")","v":{"v":67.76105140267526,"d":"€ 67.76"}},{"$f":"IFERROR(IF(LeningNietBetaald*LeningGoed,Rentebedrag,\"\"), \"\")","v":{"v":40.76522655780546,"d":"€ 40.77"}},{"$f":"IFERROR(IF(LeningNietBetaald*LeningGoed,Eindsaldo,\"\"), \"\")","v":{"v":8826.47019757306,"d":"€ 8,826.47"}}]
[null,{"$f":"IFERROR(IF(LeningNietBetaald*LeningGoed,NummerBetaling,\"\"), \"\")","v":19},{"$f":"IFERROR(IF(LeningNietBetaald*LeningGoed,Betaaldatum,\"\"), \"\")","v":"2020-12-08"},{"$f":"IFERROR(IF(LeningNietBetaald*LeningGoed,WaardeLening,\"\"), \"\")","v":{"v":8826.47019757306,"d":"€ 8,826.47"}},{"$f":"IFERROR(IF(LeningNietBetaald*LeningGoed,MaandelijkseBetaling,\"\"), \"\")","v":{"v":108.52627796048073,"d":"€ 108.53"}},{"$f":"IFERROR(IF(LeningNietBetaald*LeningGoed,Hoofdsom,\"\"), \"\")","v":{"v":68.07162288827085,"d":"€ 68.07"}},{"$f":"IFERROR(IF(LeningNietBetaald*LeningGoed,Rentebedrag,\"\"), \"\")","v":{"v":40.45465507220987,"d":"€ 40.45"}},{"$f":"IFERROR(IF(LeningNietBetaald*LeningGoed,Eindsaldo,\"\"), \"\")","v":{"v":8758.398574684792,"d":"€ 8,758.40"}}]
[null,{"$f":"IFERROR(IF(LeningNietBetaald*LeningGoed,NummerBetaling,\"\"), \"\")","v":20},{"$f":"IFERROR(IF(LeningNietBetaald*LeningGoed,Betaaldatum,\"\"), \"\")","v":"2021-01-08"},{"$f":"IFERROR(IF(LeningNietBetaald*LeningGoed,WaardeLening,\"\"), \"\")","v":{"v":8758.398574684792,"d":"€ 8,758.40"}},{"$f":"IFERROR(IF(LeningNietBetaald*LeningGoed,MaandelijkseBetaling,\"\"), \"\")","v":{"v":108.52627796048073,"d":"€ 108.53"}},{"$f":"IFERROR(IF(LeningNietBetaald*LeningGoed,Hoofdsom,\"\"), \"\")","v":{"v":68.38361782650877,"d":"€ 68.38"}},{"$f":"IFERROR(IF(LeningNietBetaald*LeningGoed,Rentebedrag,\"\"), \"\")","v":{"v":40.142660133971965,"d":"€ 40.14"}},{"$f":"IFERROR(IF(LeningNietBetaald*LeningGoed,Eindsaldo,\"\"), \"\")","v":{"v":8690.014956858282,"d":"€ 8,690.01"}}]
[null,{"$f":"IFERROR(IF(LeningNietBetaald*LeningGoed,NummerBetaling,\"\"), \"\")","v":21},{"$f":"IFERROR(IF(LeningNietBetaald*LeningGoed,Betaaldatum,\"\"), \"\")","v":"2021-02-08"},{"$f":"IFERROR(IF(LeningNietBetaald*LeningGoed,WaardeLening,\"\"), \"\")","v":{"v":8690.014956858282,"d":"€ 8,690.01"}},{"$f":"IFERROR(IF(LeningNietBetaald*LeningGoed,MaandelijkseBetaling,\"\"), \"\")","v":{"v":108.52627796048073,"d":"€ 108.53"}},{"$f":"IFERROR(IF(LeningNietBetaald*LeningGoed,Hoofdsom,\"\"), \"\")","v":{"v":68.69704274154692,"d":"€ 68.70"}},{"$f":"IFERROR(IF(LeningNietBetaald*LeningGoed,Rentebedrag,\"\"), \"\")","v":{"v":39.82923521893379,"d":"€ 39.83"}},{"$f":"IFERROR(IF(LeningNietBetaald*LeningGoed,Eindsaldo,\"\"), \"\")","v":{"v":8621.317914116735,"d":"€ 8,621.32"}}]
[null,{"$f":"IFERROR(IF(LeningNietBetaald*LeningGoed,NummerBetaling,\"\"), \"\")","v":22},{"$f":"IFERROR(IF(LeningNietBetaald*LeningGoed,Betaaldatum,\"\"), \"\")","v":"2021-03-08"},{"$f":"IFERROR(IF(LeningNietBetaald*LeningGoed,WaardeLening,\"\"), \"\")","v":{"v":8621.317914116735,"d":"€ 8,621.32"}},{"$f":"IFERROR(IF(LeningNietBetaald*LeningGoed,MaandelijkseBetaling,\"\"), \"\")","v":{"v":108.52627796048073,"d":"€ 108.53"}},{"$f":"IFERROR(IF(LeningNietBetaald*LeningGoed,Hoofdsom,\"\"), \"\")","v":{"v":69.01190418744568,"d":"€ 69.01"}},{"$f":"IFERROR(IF(LeningNietBetaald*LeningGoed,Rentebedrag,\"\"), \"\")","v":{"v":39.51437377303504,"d":"€ 39.51"}},{"$f":"IFERROR(IF(LeningNietBetaald*LeningGoed,Eindsaldo,\"\"), \"\")","v":{"v":8552.306009929285,"d":"€ 8,552.31"}}]
[null,{"$f":"IFERROR(IF(LeningNietBetaald*LeningGoed,NummerBetaling,\"\"), \"\")","v":23},{"$f":"IFERROR(IF(LeningNietBetaald*LeningGoed,Betaaldatum,\"\"), \"\")","v":"2021-04-08"},{"$f":"IFERROR(IF(LeningNietBetaald*LeningGoed,WaardeLening,\"\"), \"\")","v":{"v":8552.306009929285,"d":"€ 8,552.31"}},{"$f":"IFERROR(IF(LeningNietBetaald*LeningGoed,MaandelijkseBetaling,\"\"), \"\")","v":{"v":108.52627796048073,"d":"€ 108.53"}},{"$f":"IFERROR(IF(LeningNietBetaald*LeningGoed,Hoofdsom,\"\"), \"\")","v":{"v":69.32820874830482,"d":"€ 69.33"}},{"$f":"IFERROR(IF(LeningNietBetaald*LeningGoed,Rentebedrag,\"\"), \"\")","v":{"v":39.19806921217591,"d":"€ 39.20"}},{"$f":"IFERROR(IF(LeningNietBetaald*LeningGoed,Eindsaldo,\"\"), \"\")","v":{"v":8482.977801180983,"d":"€ 8,482.98"}}]
[null,{"$f":"IFERROR(IF(LeningNietBetaald*LeningGoed,NummerBetaling,\"\"), \"\")","v":24},{"$f":"IFERROR(IF(LeningNietBetaald*LeningGoed,Betaaldatum,\"\"), \"\")","v":"2021-05-08"},{"$f":"IFERROR(IF(LeningNietBetaald*LeningGoed,WaardeLening,\"\"), \"\")","v":{"v":8482.977801180983,"d":"€ 8,482.98"}},{"$f":"IFERROR(IF(LeningNietBetaald*LeningGoed,MaandelijkseBetaling,\"\"), \"\")","v":{"v":108.52627796048073,"d":"€ 108.53"}},{"$f":"IFERROR(IF(LeningNietBetaald*LeningGoed,Hoofdsom,\"\"), \"\")","v":{"v":69.6459630384012,"d":"€ 69.65"}},{"$f":"IFERROR(IF(LeningNietBetaald*LeningGoed,Rentebedrag,\"\"), \"\")","v":{"v":38.880314922079506,"d":"€ 38.88"}},{"$f":"IFERROR(IF(LeningNietBetaald*LeningGoed,Eindsaldo,\"\"), \"\")","v":{"v":8413.331838142582,"d":"€ 8,413.33"}}]
[null,{"$f":"IFERROR(IF(LeningNietBetaald*LeningGoed,NummerBetaling,\"\"), \"\")","v":25},{"$f":"IFERROR(IF(LeningNietBetaald*LeningGoed,Betaaldatum,\"\"), \"\")","v":"2021-06-08"},{"$f":"IFERROR(IF(LeningNietBetaald*LeningGoed,WaardeLening,\"\"), \"\")","v":{"v":8413.331838142582,"d":"€ 8,413.33"}},{"$f":"IFERROR(IF(LeningNietBetaald*LeningGoed,MaandelijkseBetaling,\"\"), \"\")","v":{"v":108.52627796048073,"d":"€ 108.53"}},{"$f":"IFERROR(IF(LeningNietBetaald*LeningGoed,Hoofdsom,\"\"), \"\")","v":{"v":69.96517370232722,"d":"€ 69.97"}},{"$f":"IFERROR(IF(LeningNietBetaald*LeningGoed,Rentebedrag,\"\"), \"\")","v":{"v":38.561104258153506,"d":"€ 38.56"}},{"$f":"IFERROR(IF(LeningNietBetaald*LeningGoed,Eindsaldo,\"\"), \"\")","v":{"v":8343.366664440255,"d":"€ 8,343.37"}}]
[null,{"$f":"IFERROR(IF(LeningNietBetaald*LeningGoed,NummerBetaling,\"\"), \"\")","v":26},{"$f":"IFERROR(IF(LeningNietBetaald*LeningGoed,Betaaldatum,\"\"), \"\")","v":"2021-07-08"},{"$f":"IFERROR(IF(LeningNietBetaald*LeningGoed,WaardeLening,\"\"), \"\")","v":{"v":8343.366664440255,"d":"€ 8,343.37"}},{"$f":"IFERROR(IF(LeningNietBetaald*LeningGoed,MaandelijkseBetaling,\"\"), \"\")","v":{"v":108.52627796048073,"d":"€ 108.53"}},{"$f":"IFERROR(IF(LeningNietBetaald*LeningGoed,Hoofdsom,\"\"), \"\")","v":{"v":70.28584741512955,"d":"€ 70.29"}},{"$f":"IFERROR(IF(LeningNietBetaald*LeningGoed,Rentebedrag,\"\"), \"\")","v":{"v":38.240430545351174,"d":"€ 38.24"}},{"$f":"IFERROR(IF(LeningNietBetaald*LeningGoed,Eindsaldo,\"\"), \"\")","v":{"v":8273.080817025126,"d":"€ 8,273.08"}}]
[null,{"$f":"IFERROR(IF(LeningNietBetaald*LeningGoed,NummerBetaling,\"\"), \"\")","v":27},{"$f":"IFERROR(IF(LeningNietBetaald*LeningGoed,Betaaldatum,\"\"), \"\")","v":"2021-08-08"},{"$f":"IFERROR(IF(LeningNietBetaald*LeningGoed,WaardeLening,\"\"), \"\")","v":{"v":8273.080817025126,"d":"€ 8,273.08"}},{"$f":"IFERROR(IF(LeningNietBetaald*LeningGoed,MaandelijkseBetaling,\"\"), \"\")","v":{"v":108.52627796048073,"d":"€ 108.53"}},{"$f":"IFERROR(IF(LeningNietBetaald*LeningGoed,Hoofdsom,\"\"), \"\")","v":{"v":70.6079908824489,"d":"€ 70.61"}},{"$f":"IFERROR(IF(LeningNietBetaald*LeningGoed,Rentebedrag,\"\"), \"\")","v":{"v":37.91828707803184,"d":"€ 37.92"}},{"$f":"IFERROR(IF(LeningNietBetaald*LeningGoed,Eindsaldo,\"\"), \"\")","v":{"v":8202.472826142679,"d":"€ 8,202.47"}}]
[null,{"$f":"IFERROR(IF(LeningNietBetaald*LeningGoed,NummerBetaling,\"\"), \"\")","v":28},{"$f":"IFERROR(IF(LeningNietBetaald*LeningGoed,Betaaldatum,\"\"), \"\")","v":"2021-09-08"},{"$f":"IFERROR(IF(LeningNietBetaald*LeningGoed,WaardeLening,\"\"), \"\")","v":{"v":8202.472826142679,"d":"€ 8,202.47"}},{"$f":"IFERROR(IF(LeningNietBetaald*LeningGoed,MaandelijkseBetaling,\"\"), \"\")","v":{"v":108.52627796048073,"d":"€ 108.53"}},{"$f":"IFERROR(IF(LeningNietBetaald*LeningGoed,Hoofdsom,\"\"), \"\")","v":{"v":70.93161084066011,"d":"€ 70.93"}},{"$f":"IFERROR(IF(LeningNietBetaald*LeningGoed,Rentebedrag,\"\"), \"\")","v":{"v":37.59466711982061,"d":"€ 37.59"}},{"$f":"IFERROR(IF(LeningNietBetaald*LeningGoed,Eindsaldo,\"\"), \"\")","v":{"v":8131.541215302017,"d":"€ 8,131.54"}}]
[null,{"$f":"IFERROR(IF(LeningNietBetaald*LeningGoed,NummerBetaling,\"\"), \"\")","v":29},{"$f":"IFERROR(IF(LeningNietBetaald*LeningGoed,Betaaldatum,\"\"), \"\")","v":"2021-10-08"},{"$f":"IFERROR(IF(LeningNietBetaald*LeningGoed,WaardeLening,\"\"), \"\")","v":{"v":8131.541215302017,"d":"€ 8,131.54"}},{"$f":"IFERROR(IF(LeningNietBetaald*LeningGoed,MaandelijkseBetaling,\"\"), \"\")","v":{"v":108.52627796048073,"d":"€ 108.53"}},{"$f":"IFERROR(IF(LeningNietBetaald*LeningGoed,Hoofdsom,\"\"), \"\")","v":{"v":71.25671405701314,"d":"€ 71.26"}},{"$f":"IFERROR(IF(LeningNietBetaald*LeningGoed,Rentebedrag,\"\"), \"\")","v":{"v":37.269563903467585,"d":"€ 37.27"}},{"$f":"IFERROR(IF(LeningNietBetaald*LeningGoed,Eindsaldo,\"\"), \"\")","v":{"v":8060.284501245003,"d":"€ 8,060.28"}}]
[null,{"$f":"IFERROR(IF(LeningNietBetaald*LeningGoed,NummerBetaling,\"\"), \"\")","v":30},{"$f":"IFERROR(IF(LeningNietBetaald*LeningGoed,Betaaldatum,\"\"), \"\")","v":"2021-11-08"},{"$f":"IFERROR(IF(LeningNietBetaald*LeningGoed,WaardeLening,\"\"), \"\")","v":{"v":8060.284501245003,"d":"€ 8,060.28"}},{"$f":"IFERROR(IF(LeningNietBetaald*LeningGoed,MaandelijkseBetaling,\"\"), \"\")","v":{"v":108.52627796048073,"d":"€ 108.53"}},{"$f":"IFERROR(IF(LeningNietBetaald*LeningGoed,Hoofdsom,\"\"), \"\")","v":{"v":71.58330732977446,"d":"€ 71.58"}},{"$f":"IFERROR(IF(LeningNietBetaald*LeningGoed,Rentebedrag,\"\"), \"\")","v":{"v":36.94297063070627,"d":"€ 36.94"}},{"$f":"IFERROR(IF(LeningNietBetaald*LeningGoed,Eindsaldo,\"\"), \"\")","v":{"v":7988.701193915229,"d":"€ 7,988.70"}}]
[null,{"$f":"IFERROR(IF(LeningNietBetaald*LeningGoed,NummerBetaling,\"\"), \"\")","v":31},{"$f":"IFERROR(IF(LeningNietBetaald*LeningGoed,Betaaldatum,\"\"), \"\")","v":"2021-12-08"},{"$f":"IFERROR(IF(LeningNietBetaald*LeningGoed,WaardeLening,\"\"), \"\")","v":{"v":7988.701193915229,"d":"€ 7,988.70"}},{"$f":"IFERROR(IF(LeningNietBetaald*LeningGoed,MaandelijkseBetaling,\"\"), \"\")","v":{"v":108.52627796048073,"d":"€ 108.53"}},{"$f":"IFERROR(IF(LeningNietBetaald*LeningGoed,Hoofdsom,\"\"), \"\")","v":{"v":71.91139748836926,"d":"€ 71.91"}},{"$f":"IFERROR(IF(LeningNietBetaald*LeningGoed,Rentebedrag,\"\"), \"\")","v":{"v":36.61488047211147,"d":"€ 36.61"}},{"$f":"IFERROR(IF(LeningNietBetaald*LeningGoed,Eindsaldo,\"\"), \"\")","v":{"v":7916.7897964268595,"d":"€ 7,916.79"}}]
[null,{"$f":"IFERROR(IF(LeningNietBetaald*LeningGoed,NummerBetaling,\"\"), \"\")","v":32},{"$f":"IFERROR(IF(LeningNietBetaald*LeningGoed,Betaaldatum,\"\"), \"\")","v":"2022-01-08"},{"$f":"IFERROR(IF(LeningNietBetaald*LeningGoed,WaardeLening,\"\"), \"\")","v":{"v":7916.7897964268595,"d":"€ 7,916.79"}},{"$f":"IFERROR(IF(LeningNietBetaald*LeningGoed,MaandelijkseBetaling,\"\"), \"\")","v":{"v":108.52627796048073,"d":"€ 108.53"}},{"$f":"IFERROR(IF(LeningNietBetaald*LeningGoed,Hoofdsom,\"\"), \"\")","v":{"v":72.24099139352428,"d":"€ 72.24"}},{"$f":"IFERROR(IF(LeningNietBetaald*LeningGoed,Rentebedrag,\"\"), \"\")","v":{"v":36.285286566956444,"d":"€ 36.29"}},{"$f":"IFERROR(IF(LeningNietBetaald*LeningGoed,Eindsaldo,\"\"), \"\")","v":{"v":7844.548805033334,"d":"€ 7,844.55"}}]
[null,{"$f":"IFERROR(IF(LeningNietBetaald*LeningGoed,NummerBetaling,\"\"), \"\")","v":33},{"$f":"IFERROR(IF(LeningNietBetaald*LeningGoed,Betaaldatum,\"\"), \"\")","v":"2022-02-08"},{"$f":"IFERROR(IF(LeningNietBetaald*LeningGoed,WaardeLening,\"\"), \"\")","v":{"v":7844.548805033334,"d":"€ 7,844.55"}},{"$f":"IFERROR(IF(LeningNietBetaald*LeningGoed,MaandelijkseBetaling,\"\"), \"\")","v":{"v":108.52627796048073,"d":"€ 108.53"}},{"$f":"IFERROR(IF(LeningNietBetaald*LeningGoed,Hoofdsom,\"\"), \"\")","v":{"v":72.57209593741128,"d":"€ 72.57"}},{"$f":"IFERROR(IF(LeningNietBetaald*LeningGoed,Rentebedrag,\"\"), \"\")","v":{"v":35.95418202306946,"d":"€ 35.95"}},{"$f":"IFERROR(IF(LeningNietBetaald*LeningGoed,Eindsaldo,\"\"), \"\")","v":{"v":7771.97670909592,"d":"€ 7,771.98"}}]
[null,{"$f":"IFERROR(IF(LeningNietBetaald*LeningGoed,NummerBetaling,\"\"), \"\")","v":34},{"$f":"IFERROR(IF(LeningNietBetaald*LeningGoed,Betaaldatum,\"\"), \"\")","v":"2022-03-08"},{"$f":"IFERROR(IF(LeningNietBetaald*LeningGoed,WaardeLening,\"\"), \"\")","v":{"v":7771.97670909592,"d":"€ 7,771.98"}},{"$f":"IFERROR(IF(LeningNietBetaald*LeningGoed,MaandelijkseBetaling,\"\"), \"\")","v":{"v":108.52627796048073,"d":"€ 108.53"}},{"$f":"IFERROR(IF(LeningNietBetaald*LeningGoed,Hoofdsom,\"\"), \"\")","v":{"v":72.90471804379106,"d":"€ 72.90"}},{"$f":"IFERROR(IF(LeningNietBetaald*LeningGoed,Rentebedrag,\"\"), \"\")","v":{"v":35.621559916689655,"d":"€ 35.62"}},{"$f":"IFERROR(IF(LeningNietBetaald*LeningGoed,Eindsaldo,\"\"), \"\")","v":{"v":7699.07199105213,"d":"€ 7,699.07"}}]
[null,{"$f":"IFERROR(IF(LeningNietBetaald*LeningGoed,NummerBetaling,\"\"), \"\")","v":35},{"$f":"IFERROR(IF(LeningNietBetaald*LeningGoed,Betaaldatum,\"\"), \"\")","v":"2022-04-08"},{"$f":"IFERROR(IF(LeningNietBetaald*LeningGoed,WaardeLening,\"\"), \"\")","v":{"v":7699.07199105213,"d":"€ 7,699.07"}},{"$f":"IFERROR(IF(LeningNietBetaald*LeningGoed,MaandelijkseBetaling,\"\"), \"\")","v":{"v":108.52627796048073,"d":"€ 108.53"}},{"$f":"IFERROR(IF(LeningNietBetaald*LeningGoed,Hoofdsom,\"\"), \"\")","v":{"v":73.23886466815844,"d":"€ 73.24"}},{"$f":"IFERROR(IF(LeningNietBetaald*LeningGoed,Rentebedrag,\"\"), \"\")","v":{"v":35.28741329232228,"d":"€ 35.29"}},{"$f":"IFERROR(IF(LeningNietBetaald*LeningGoed,Eindsaldo,\"\"), \"\")","v":{"v":7625.833126383972,"d":"€ 7,625.83"}}]
[null,{"$f":"IFERROR(IF(LeningNietBetaald*LeningGoed,NummerBetaling,\"\"), \"\")","v":36},{"$f":"IFERROR(IF(LeningNietBetaald*LeningGoed,Betaaldatum,\"\"), \"\")","v":"2022-05-08"},{"$f":"IFERROR(IF(LeningNietBetaald*LeningGoed,WaardeLening,\"\"), \"\")","v":{"v":7625.833126383972,"d":"€ 7,625.83"}},{"$f":"IFERROR(IF(LeningNietBetaald*LeningGoed,MaandelijkseBetaling,\"\"), \"\")","v":{"v":108.52627796048073,"d":"€ 108.53"}},{"$f":"IFERROR(IF(LeningNietBetaald*LeningGoed,Hoofdsom,\"\"), \"\")","v":{"v":73.5745427978875,"d":"€ 73.57"}},{"$f":"IFERROR(IF(LeningNietBetaald*LeningGoed,Rentebedrag,\"\"), \"\")","v":{"v":34.95173516259322,"d":"€ 34.95"}},{"$f":"IFERROR(IF(LeningNietBetaald*LeningGoed,Eindsaldo,\"\"), \"\")","v":{"v":7552.258583586085,"d":"€ 7,552.26"}}]
[null,{"$f":"IFERROR(IF(LeningNietBetaald*LeningGoed,NummerBetaling,\"\"), \"\")","v":37},{"$f":"IFERROR(IF(LeningNietBetaald*LeningGoed,Betaaldatum,\"\"), \"\")","v":"2022-06-08"},{"$f":"IFERROR(IF(LeningNietBetaald*LeningGoed,WaardeLening,\"\"), \"\")","v":{"v":7552.258583586085,"d":"€ 7,552.26"}},{"$f":"IFERROR(IF(LeningNietBetaald*LeningGoed,MaandelijkseBetaling,\"\"), \"\")","v":{"v":108.52627796048073,"d":"€ 108.53"}},{"$f":"IFERROR(IF(LeningNietBetaald*LeningGoed,Hoofdsom,\"\"), \"\")","v":{"v":73.91175945237782,"d":"€ 73.91"}},{"$f":"IFERROR(IF(LeningNietBetaald*LeningGoed,Rentebedrag,\"\"), \"\")","v":{"v":34.614518508102904,"d":"€ 34.61"}},{"$f":"IFERROR(IF(LeningNietBetaald*LeningGoed,Eindsaldo,\"\"), \"\")","v":{"v":7478.346824133705,"d":"€ 7,478.35"}}]
[null,{"$f":"IFERROR(IF(LeningNietBetaald*LeningGoed,NummerBetaling,\"\"), \"\")","v":38},{"$f":"IFERROR(IF(LeningNietBetaald*LeningGoed,Betaaldatum,\"\"), \"\")","v":"2022-07-08"},{"$f":"IFERROR(IF(LeningNietBetaald*LeningGoed,WaardeLening,\"\"), \"\")","v":{"v":7478.346824133705,"d":"€ 7,478.35"}},{"$f":"IFERROR(IF(LeningNietBetaald*LeningGoed,MaandelijkseBetaling,\"\"), \"\")","v":{"v":108.52627796048073,"d":"€ 108.53"}},{"$f":"IFERROR(IF(LeningNietBetaald*LeningGoed,Hoofdsom,\"\"), \"\")","v":{"v":74.25052168320121,"d":"€ 74.25"}},{"$f":"IFERROR(IF(LeningNietBetaald*LeningGoed,Rentebedrag,\"\"), \"\")","v":{"v":34.275756277279505,"d":"€ 34.28"}},{"$f":"IFERROR(IF(LeningNietBetaald*LeningGoed,Eindsaldo,\"\"), \"\")","v":{"v":7404.096302450503,"d":"€ 7,404.10"}}]
[null,{"$f":"IFERROR(IF(LeningNietBetaald*LeningGoed,NummerBetaling,\"\"), \"\")","v":39},{"$f":"IFERROR(IF(LeningNietBetaald*LeningGoed,Betaaldatum,\"\"), \"\")","v":"2022-08-08"},{"$f":"IFERROR(IF(LeningNietBetaald*LeningGoed,WaardeLening,\"\"), \"\")","v":{"v":7404.096302450503,"d":"€ 7,404.10"}},{"$f":"IFERROR(IF(LeningNietBetaald*LeningGoed,MaandelijkseBetaling,\"\"), \"\")","v":{"v":108.52627796048073,"d":"€ 108.53"}},{"$f":"IFERROR(IF(LeningNietBetaald*LeningGoed,Hoofdsom,\"\"), \"\")","v":{"v":74.59083657424922,"d":"€ 74.59"}},{"$f":"IFERROR(IF(LeningNietBetaald*LeningGoed,Rentebedrag,\"\"), \"\")","v":{"v":33.9354413862315,"d":"€ 33.94"}},{"$f":"IFERROR(IF(LeningNietBetaald*LeningGoed,Eindsaldo,\"\"), \"\")","v":{"v":7329.505465876257,"d":"€ 7,329.51"}}]
[null,{"$f":"IFERROR(IF(LeningNietBetaald*LeningGoed,NummerBetaling,\"\"), \"\")","v":40},{"$f":"IFERROR(IF(LeningNietBetaald*LeningGoed,Betaaldatum,\"\"), \"\")","v":"2022-09-08"},{"$f":"IFERROR(IF(LeningNietBetaald*LeningGoed,WaardeLening,\"\"), \"\")","v":{"v":7329.505465876257,"d":"€ 7,329.51"}},{"$f":"IFERROR(IF(LeningNietBetaald*LeningGoed,MaandelijkseBetaling,\"\"), \"\")","v":{"v":108.52627796048073,"d":"€ 108.53"}},{"$f":"IFERROR(IF(LeningNietBetaald*LeningGoed,Hoofdsom,\"\"), \"\")","v":{"v":74.9327112418812,"d":"€ 74.93"}},{"$f":"IFERROR(IF(LeningNietBetaald*LeningGoed,Rentebedrag,\"\"), \"\")","v":{"v":33.593566718599526,"d":"€ 33.59"}},{"$f":"IFERROR(IF(LeningNietBetaald*LeningGoed,Eindsaldo,\"\"), \"\")","v":{"v":7254.572754634376,"d":"€ 7,254.57"}}]
[null,{"$f":"IFERROR(IF(LeningNietBetaald*LeningGoed,NummerBetaling,\"\"), \"\")","v":41},{"$f":"IFERROR(IF(LeningNietBetaald*LeningGoed,Betaaldatum,\"\"), \"\")","v":"2022-10-08"},{"$f":"IFERROR(IF(LeningNietBetaald*LeningGoed,WaardeLening,\"\"), \"\")","v":{"v":7254.572754634376,"d":"€ 7,254.57"}},{"$f":"IFERROR(IF(LeningNietBetaald*LeningGoed,MaandelijkseBetaling,\"\"), \"\")","v":{"v":108.52627796048073,"d":"€ 108.53"}},{"$f":"IFERROR(IF(LeningNietBetaald*LeningGoed,Hoofdsom,\"\"), \"\")","v":{"v":75.27615283507315,"d":"€ 75.28"}},{"$f":"IFERROR(IF(LeningNietBetaald*LeningGoed,Rentebedrag,\"\"), \"\")","v":{"v":33.25012512540757,"d":"€ 33.25"}},{"$f":"IFERROR(IF(LeningNietBetaald*LeningGoed,Eindsaldo,\"\"), \"\")","v":{"v":7179.296601799301,"d":"€ 7,179.30"}}]
[null,{"$f":"IFERROR(IF(LeningNietBetaald*LeningGoed,NummerBetaling,\"\"), \"\")","v":42},{"$f":"IFERROR(IF(LeningNietBetaald*LeningGoed,Betaaldatum,\"\"), \"\")","v":"2022-11-08"},{"$f":"IFERROR(IF(LeningNietBetaald*LeningGoed,WaardeLening,\"\"), \"\")","v":{"v":7179.296601799301,"d":"€ 7,179.30"}},{"$f":"IFERROR(IF(LeningNietBetaald*LeningGoed,MaandelijkseBetaling,\"\"), \"\")","v":{"v":108.52627796048073,"d":"€ 108.53"}},{"$f":"IFERROR(IF(LeningNietBetaald*LeningGoed,Hoofdsom,\"\"), \"\")","v":{"v":75.62116853556724,"d":"€ 75.62"}},{"$f":"IFERROR(IF(LeningNietBetaald*LeningGoed,Rentebedrag,\"\"), \"\")","v":{"v":32.90510942491348,"d":"€ 32.91"}},{"$f":"IFERROR(IF(LeningNietBetaald*LeningGoed,Eindsaldo,\"\"), \"\")","v":{"v":7103.675433263734,"d":"€ 7,103.68"}}]
[null,{"$f":"IFERROR(IF(LeningNietBetaald*LeningGoed,NummerBetaling,\"\"), \"\")","v":43},{"$f":"IFERROR(IF(LeningNietBetaald*LeningGoed,Betaaldatum,\"\"), \"\")","v":"2022-12-08"},{"$f":"IFERROR(IF(LeningNietBetaald*LeningGoed,WaardeLening,\"\"), \"\")","v":{"v":7103.675433263734,"d":"€ 7,103.68"}},{"$f":"IFERROR(IF(LeningNietBetaald*LeningGoed,MaandelijkseBetaling,\"\"), \"\")","v":{"v":108.52627796048073,"d":"€ 108.53"}},{"$f":"IFERROR(IF(LeningNietBetaald*LeningGoed,Hoofdsom,\"\"), \"\")","v":{"v":75.96776555802192,"d":"€ 75.97"}},{"$f":"IFERROR(IF(LeningNietBetaald*LeningGoed,Rentebedrag,\"\"), \"\")","v":{"v":32.558512402458796,"d":"€ 32.56"}},{"$f":"IFERROR(IF(LeningNietBetaald*LeningGoed,Eindsaldo,\"\"), \"\")","v":{"v":7027.707667705709,"d":"€ 7,027.71"}}]
[null,{"$f":"IFERROR(IF(LeningNietBetaald*LeningGoed,NummerBetaling,\"\"), \"\")","v":44},{"$f":"IFERROR(IF(LeningNietBetaald*LeningGoed,Betaaldatum,\"\"), \"\")","v":"2023-01-08"},{"$f":"IFERROR(IF(LeningNietBetaald*LeningGoed,WaardeLening,\"\"), \"\")","v":{"v":7027.707667705709,"d":"€ 7,027.71"}},{"$f":"IFERROR(IF(LeningNietBetaald*LeningGoed,MaandelijkseBetaling,\"\"), \"\")","v":{"v":108.52627796048073,"d":"€ 108.53"}},{"$f":"IFERROR(IF(LeningNietBetaald*LeningGoed,Hoofdsom,\"\"), \"\")","v":{"v":76.31595115016286,"d":"€ 76.32"}},{"$f":"IFERROR(IF(LeningNietBetaald*LeningGoed,Rentebedrag,\"\"), \"\")","v":{"v":32.210326810317866,"d":"€ 32.21"}},{"$f":"IFERROR(IF(LeningNietBetaald*LeningGoed,Eindsaldo,\"\"), \"\")","v":{"v":6951.391716555551,"d":"€ 6,951.39"}}]
[null,{"$f":"IFERROR(IF(LeningNietBetaald*LeningGoed,NummerBetaling,\"\"), \"\")","v":45},{"$f":"IFERROR(IF(LeningNietBetaald*LeningGoed,Betaaldatum,\"\"), \"\")","v":"2023-02-08"},{"$f":"IFERROR(IF(LeningNietBetaald*LeningGoed,WaardeLening,\"\"), \"\")","v":{"v":6951.391716555551,"d":"€ 6,951.39"}},{"$f":"IFERROR(IF(LeningNietBetaald*LeningGoed,MaandelijkseBetaling,\"\"), \"\")","v":{"v":108.52627796048073,"d":"€ 108.53"}},{"$f":"IFERROR(IF(LeningNietBetaald*LeningGoed,Hoofdsom,\"\"), \"\")","v":{"v":76.66573259293443,"d":"€ 76.67"}},{"$f":"IFERROR(IF(LeningNietBetaald*LeningGoed,Rentebedrag,\"\"), \"\")","v":{"v":31.860545367546287,"d":"€ 31.86"}},{"$f":"IFERROR(IF(LeningNietBetaald*LeningGoed,Eindsaldo,\"\"), \"\")","v":{"v":6874.725983962615,"d":"€ 6,874.73"}}]
[null,{"$f":"IFERROR(IF(LeningNietBetaald*LeningGoed,NummerBetaling,\"\"), \"\")","v":46},{"$f":"IFERROR(IF(LeningNietBetaald*LeningGoed,Betaaldatum,\"\"), \"\")","v":"2023-03-08"},{"$f":"IFERROR(IF(LeningNietBetaald*LeningGoed,WaardeLening,\"\"), \"\")","v":{"v":6874.725983962615,"d":"€ 6,874.73"}},{"$f":"IFERROR(IF(LeningNietBetaald*LeningGoed,MaandelijkseBetaling,\"\"), \"\")","v":{"v":108.52627796048073,"d":"€ 108.53"}},{"$f":"IFERROR(IF(LeningNietBetaald*LeningGoed,Hoofdsom,\"\"), \"\")","v":{"v":77.01711720065207,"d":"€ 77.02"}},{"$f":"IFERROR(IF(LeningNietBetaald*LeningGoed,Rentebedrag,\"\"), \"\")","v":{"v":31.509160759828674,"d":"€ 31.51"}},{"$f":"IFERROR(IF(LeningNietBetaald*LeningGoed,Eindsaldo,\"\"), \"\")","v":{"v":6797.70886676196,"d":"€ 6,797.71"}}]
[null,{"$f":"IFERROR(IF(LeningNietBetaald*LeningGoed,NummerBetaling,\"\"), \"\")","v":47},{"$f":"IFERROR(IF(LeningNietBetaald*LeningGoed,Betaaldatum,\"\"), \"\")","v":"2023-04-08"},{"$f":"IFERROR(IF(LeningNietBetaald*LeningGoed,WaardeLening,\"\"), \"\")","v":{"v":6797.70886676196,"d":"€ 6,797.71"}},{"$f":"IFERROR(IF(LeningNietBetaald*LeningGoed,MaandelijkseBetaling,\"\"), \"\")","v":{"v":108.52627796048073,"d":"€ 108.53"}},{"$f":"IFERROR(IF(LeningNietBetaald*LeningGoed,Hoofdsom,\"\"), \"\")","v":{"v":77.37011232115503,"d":"€ 77.37"}},{"$f":"IFERROR(IF(LeningNietBetaald*LeningGoed,Rentebedrag,\"\"), \"\")","v":{"v":31.15616563932568,"d":"€ 31.16"}},{"$f":"IFERROR(IF(LeningNietBetaald*LeningGoed,Eindsaldo,\"\"), \"\")","v":{"v":6720.338754440809,"d":"€ 6,720.34"}}]
[null,{"$f":"IFERROR(IF(LeningNietBetaald*LeningGoed,NummerBetaling,\"\"), \"\")","v":48},{"$f":"IFERROR(IF(LeningNietBetaald*LeningGoed,Betaaldatum,\"\"), \"\")","v":"2023-05-08"},{"$f":"IFERROR(IF(LeningNietBetaald*LeningGoed,WaardeLening,\"\"), \"\")","v":{"v":6720.338754440809,"d":"€ 6,720.34"}},{"$f":"IFERROR(IF(LeningNietBetaald*LeningGoed,MaandelijkseBetaling,\"\"), \"\")","v":{"v":108.52627796048073,"d":"€ 108.53"}},{"$f":"IFERROR(IF(LeningNietBetaald*LeningGoed,Hoofdsom,\"\"), \"\")","v":{"v":77.72472533596034,"d":"€ 77.72"}},{"$f":"IFERROR(IF(LeningNietBetaald*LeningGoed,Rentebedrag,\"\"), \"\")","v":{"v":30.80155262452039,"d":"€ 30.80"}},{"$f":"IFERROR(IF(LeningNietBetaald*LeningGoed,Eindsaldo,\"\"), \"\")","v":{"v":6642.614029104847,"d":"€ 6,642.61"}}]
[null,{"$f":"IFERROR(IF(LeningNietBetaald*LeningGoed,NummerBetaling,\"\"), \"\")","v":49},{"$f":"IFERROR(IF(LeningNietBetaald*LeningGoed,Betaaldatum,\"\"), \"\")","v":"2023-06-08"},{"$f":"IFERROR(IF(LeningNietBetaald*LeningGoed,WaardeLening,\"\"), \"\")","v":{"v":6642.614029104847,"d":"€ 6,642.61"}},{"$f":"IFERROR(IF(LeningNietBetaald*LeningGoed,MaandelijkseBetaling,\"\"), \"\")","v":{"v":108.52627796048073,"d":"€ 108.53"}},{"$f":"IFERROR(IF(LeningNietBetaald*LeningGoed,Hoofdsom,\"\"), \"\")","v":{"v":78.08096366041683,"d":"€ 78.08"}},{"$f":"IFERROR(IF(LeningNietBetaald*LeningGoed,Rentebedrag,\"\"), \"\")","v":{"v":30.445314300063902,"d":"€ 30.45"}},{"$f":"IFERROR(IF(LeningNietBetaald*LeningGoed,Eindsaldo,\"\"), \"\")","v":{"v":6564.53306544443,"d":"€ 6,564.53"}}]
[null,{"$f":"IFERROR(IF(LeningNietBetaald*LeningGoed,NummerBetaling,\"\"), \"\")","v":50},{"$f":"IFERROR(IF(LeningNietBetaald*LeningGoed,Betaaldatum,\"\"), \"\")","v":"2023-07-08"},{"$f":"IFERROR(IF(LeningNietBetaald*LeningGoed,WaardeLening,\"\"), \"\")","v":{"v":6564.53306544443,"d":"€ 6,564.53"}},{"$f":"IFERROR(IF(LeningNietBetaald*LeningGoed,MaandelijkseBetaling,\"\"), \"\")","v":{"v":108.52627796048073,"d":"€ 108.53"}},{"$f":"IFERROR(IF(LeningNietBetaald*LeningGoed,Hoofdsom,\"\"), \"\")","v":{"v":78.43883474386041,"d":"€ 78.44"}},{"$f":"IFERROR(IF(LeningNietBetaald*LeningGoed,Rentebedrag,\"\"), \"\")","v":{"v":30.08744321662033,"d":"€ 30.09"}},{"$f":"IFERROR(IF(LeningNietBetaald*LeningGoed,Eindsaldo,\"\"), \"\")","v":{"v":6486.094230700569,"d":"€ 6,486.09"}}]
[null,{"$f":"IFERROR(IF(LeningNietBetaald*LeningGoed,NummerBetaling,\"\"), \"\")","v":51},{"$f":"IFERROR(IF(LeningNietBetaald*LeningGoed,Betaaldatum,\"\"), \"\")","v":"2023-08-08"},{"$f":"IFERROR(IF(LeningNietBetaald*LeningGoed,WaardeLening,\"\"), \"\")","v":{"v":6486.094230700569,"d":"€ 6,486.09"}},{"$f":"IFERROR(IF(LeningNietBetaald*LeningGoed,MaandelijkseBetaling,\"\"), \"\")","v":{"v":108.52627796048073,"d":"€ 108.53"}},{"$f":"IFERROR(IF(LeningNietBetaald*LeningGoed,Hoofdsom,\"\"), \"\")","v":{"v":78.79834606976975,"d":"€ 78.80"}},{"$f":"IFERROR(IF(LeningNietBetaald*LeningGoed,Rentebedrag,\"\"), \"\")","v":{"v":29.727931890710963,"d":"€ 29.73"}},{"$f":"IFERROR(IF(LeningNietBetaald*LeningGoed,Eindsaldo,\"\"), \"\")","v":{"v":6407.295884630799,"d":"€ 6,407.30"}}]
[null,{"$f":"IFERROR(IF(LeningNietBetaald*LeningGoed,NummerBetaling,\"\"), \"\")","v":52},{"$f":"IFERROR(IF(LeningNietBetaald*LeningGoed,Betaaldatum,\"\"), \"\")","v":"2023-09-08"},{"$f":"IFERROR(IF(LeningNietBetaald*LeningGoed,WaardeLening,\"\"), \"\")","v":{"v":6407.295884630799,"d":"€ 6,407.30"}},{"$f":"IFERROR(IF(LeningNietBetaald*LeningGoed,MaandelijkseBetaling,\"\"), \"\")","v":{"v":108.52627796048073,"d":"€ 108.53"}},{"$f":"IFERROR(IF(LeningNietBetaald*LeningGoed,Hoofdsom,\"\"), \"\")","v":{"v":79.15950515592287,"d":"€ 79.16"}},{"$f":"IFERROR(IF(LeningNietBetaald*LeningGoed,Rentebedrag,\"\"), \"\")","v":{"v":29.36677280455785,"d":"€ 29.37"}},{"$f":"IFERROR(IF(LeningNietBetaald*LeningGoed,Eindsaldo,\"\"), \"\")","v":{"v":6328.136379474876,"d":"€ 6,328.14"}}]
[null,{"$f":"IFERROR(IF(LeningNietBetaald*LeningGoed,NummerBetaling,\"\"), \"\")","v":53},{"$f":"IFERROR(IF(LeningNietBetaald*LeningGoed,Betaaldatum,\"\"), \"\")","v":"2023-10-08"},{"$f":"IFERROR(IF(LeningNietBetaald*LeningGoed,WaardeLening,\"\"), \"\")","v":{"v":6328.136379474876,"d":"€ 6,328.14"}},{"$f":"IFERROR(IF(LeningNietBetaald*LeningGoed,MaandelijkseBetaling,\"\"), \"\")","v":{"v":108.52627796048073,"d":"€ 108.53"}},{"$f":"IFERROR(IF(LeningNietBetaald*LeningGoed,Hoofdsom,\"\"), \"\")","v":{"v":79.52231955455417,"d":"€ 79.52"}},{"$f":"IFERROR(IF(LeningNietBetaald*LeningGoed,Rentebedrag,\"\"), \"\")","v":{"v":29.003958405926536,"d":"€ 29.00"}},{"$f":"IFERROR(IF(LeningNietBetaald*LeningGoed,Eindsaldo,\"\"), \"\")","v":{"v":6248.614059920319,"d":"€ 6,248.61"}}]
[null,{"$f":"IFERROR(IF(LeningNietBetaald*LeningGoed,NummerBetaling,\"\"), \"\")","v":54},{"$f":"IFERROR(IF(LeningNietBetaald*LeningGoed,Betaaldatum,\"\"), \"\")","v":"2023-11-08"},{"$f":"IFERROR(IF(LeningNietBetaald*LeningGoed,WaardeLening,\"\"), \"\")","v":{"v":6248.614059920319,"d":"€ 6,248.61"}},{"$f":"IFERROR(IF(LeningNietBetaald*LeningGoed,MaandelijkseBetaling,\"\"), \"\")","v":{"v":108.52627796048073,"d":"€ 108.53"}},{"$f":"IFERROR(IF(LeningNietBetaald*LeningGoed,Hoofdsom,\"\"), \"\")","v":{"v":79.88679685251256,"d":"€ 79.89"}},{"$f":"IFERROR(IF(LeningNietBetaald*LeningGoed,Rentebedrag,\"\"), \"\")","v":{"v":28.639481107968166,"d":"€ 28.64"}},{"$f":"IFERROR(IF(LeningNietBetaald*LeningGoed,Eindsaldo,\"\"), \"\")","v":{"v":6168.727263067806,"d":"€ 6,168.73"}}]
[null,{"$f":"IFERROR(IF(LeningNietBetaald*LeningGoed,NummerBetaling,\"\"), \"\")","v":55},{"$f":"IFERROR(IF(LeningNietBetaald*LeningGoed,Betaaldatum,\"\"), \"\")","v":"2023-12-08"},{"$f":"IFERROR(IF(LeningNietBetaald*LeningGoed,WaardeLening,\"\"), \"\")","v":{"v":6168.727263067806,"d":"€ 6,168.73"}},{"$f":"IFERROR(IF(LeningNietBetaald*LeningGoed,MaandelijkseBetaling,\"\"), \"\")","v":{"v":108.52627796048073,"d":"€ 108.53"}},{"$f":"IFERROR(IF(LeningNietBetaald*LeningGoed,Hoofdsom,\"\"), \"\")","v":{"v":80.2529446714199,"d":"€ 80.25"}},{"$f":"IFERROR(IF(LeningNietBetaald*LeningGoed,Rentebedrag,\"\"), \"\")","v":{"v":28.273333289060815,"d":"€ 28.27"}},{"$f":"IFERROR(IF(LeningNietBetaald*LeningGoed,Eindsaldo,\"\"), \"\")","v":{"v":6088.474318396387,"d":"€ 6,088.47"}}]
[null,{"$f":"IFERROR(IF(LeningNietBetaald*LeningGoed,NummerBetaling,\"\"), \"\")","v":56},{"$f":"IFERROR(IF(LeningNietBetaald*LeningGoed,Betaaldatum,\"\"), \"\")","v":"2024-01-08"},{"$f":"IFERROR(IF(LeningNietBetaald*LeningGoed,WaardeLening,\"\"), \"\")","v":{"v":6088.474318396387,"d":"€ 6,088.47"}},{"$f":"IFERROR(IF(LeningNietBetaald*LeningGoed,MaandelijkseBetaling,\"\"), \"\")","v":{"v":108.52627796048073,"d":"€ 108.53"}},{"$f":"IFERROR(IF(LeningNietBetaald*LeningGoed,Hoofdsom,\"\"), \"\")","v":{"v":80.62077066783058,"d":"€ 80.62"}},{"$f":"IFERROR(IF(LeningNietBetaald*LeningGoed,Rentebedrag,\"\"), \"\")","v":{"v":27.905507292650142,"d":"€ 27.91"}},{"$f":"IFERROR(IF(LeningNietBetaald*LeningGoed,Eindsaldo,\"\"), \"\")","v":{"v":6007.853547728558,"d":"€ 6,007.85"}}]
[null,{"$f":"IFERROR(IF(LeningNietBetaald*LeningGoed,NummerBetaling,\"\"), \"\")","v":57},{"$f":"IFERROR(IF(LeningNietBetaald*LeningGoed,Betaaldatum,\"\"), \"\")","v":"2024-02-08"},{"$f":"IFERROR(IF(LeningNietBetaald*LeningGoed,WaardeLening,\"\"), \"\")","v":{"v":6007.853547728558,"d":"€ 6,007.85"}},{"$f":"IFERROR(IF(LeningNietBetaald*LeningGoed,MaandelijkseBetaling,\"\"), \"\")","v":{"v":108.52627796048073,"d":"€ 108.53"}},{"$f":"IFERROR(IF(LeningNietBetaald*LeningGoed,Hoofdsom,\"\"), \"\")","v":{"v":80.99028253339146,"d":"€ 80.99"}},{"$f":"IFERROR(IF(LeningNietBetaald*LeningGoed,Rentebedrag,\"\"), \"\")","v":{"v":27.53599542708925,"d":"€ 27.54"}},{"$f":"IFERROR(IF(LeningNietBetaald*LeningGoed,Eindsaldo,\"\"), \"\")","v":{"v":5926.863265195167,"d":"€ 5,926.86"}}]
[null,{"$f":"IFERROR(IF(LeningNietBetaald*LeningGoed,NummerBetaling,\"\"), \"\")","v":58},{"$f":"IFERROR(IF(LeningNietBetaald*LeningGoed,Betaaldatum,\"\"), \"\")","v":"2024-03-08"},{"$f":"IFERROR(IF(LeningNietBetaald*LeningGoed,WaardeLening,\"\"), \"\")","v":{"v":5926.863265195167,"d":"€ 5,926.86"}},{"$f":"IFERROR(IF(LeningNietBetaald*LeningGoed,MaandelijkseBetaling,\"\"), \"\")","v":{"v":108.52627796048073,"d":"€ 108.53"}},{"$f":"IFERROR(IF(LeningNietBetaald*LeningGoed,Hoofdsom,\"\"), \"\")","v":{"v":81.36148799500285,"d":"€ 81.36"}},{"$f":"IFERROR(IF(LeningNietBetaald*LeningGoed,Rentebedrag,\"\"), \"\")","v":{"v":27.164789965477876,"d":"€ 27.16"}},{"$f":"IFERROR(IF(LeningNietBetaald*LeningGoed,Eindsaldo,\"\"), \"\")","v":{"v":5845.501777200164,"d":"€ 5,845.50"}}]
[null,{"$f":"IFERROR(IF(LeningNietBetaald*LeningGoed,NummerBetaling,\"\"), \"\")","v":59},{"$f":"IFERROR(IF(LeningNietBetaald*LeningGoed,Betaaldatum,\"\"), \"\")","v":"2024-04-08"},{"$f":"IFERROR(IF(LeningNietBetaald*LeningGoed,WaardeLening,\"\"), \"\")","v":{"v":5845.501777200164,"d":"€ 5,845.50"}},{"$f":"IFERROR(IF(LeningNietBetaald*LeningGoed,MaandelijkseBetaling,\"\"), \"\")","v":{"v":108.52627796048073,"d":"€ 108.53"}},{"$f":"IFERROR(IF(LeningNietBetaald*LeningGoed,Hoofdsom,\"\"), \"\")","v":{"v":81.73439481497995,"d":"€ 81.73"}},{"$f":"IFERROR(IF(LeningNietBetaald*LeningGoed,Rentebedrag,\"\"), \"\")","v":{"v":26.79188314550078,"d":"€ 26.79"}},{"$f":"IFERROR(IF(LeningNietBetaald*LeningGoed,Eindsaldo,\"\"), \"\")","v":{"v":5763.767382385183,"d":"€ 5,763.77"}}]
[null,{"$f":"IFERROR(IF(LeningNietBetaald*LeningGoed,NummerBetaling,\"\"), \"\")","v":60},{"$f":"IFERROR(IF(LeningNietBetaald*LeningGoed,Betaaldatum,\"\"), \"\")","v":"2024-05-08"},{"$f":"IFERROR(IF(LeningNietBetaald*LeningGoed,WaardeLening,\"\"), \"\")","v":{"v":5763.767382385183,"d":"€ 5,763.77"}},{"$f":"IFERROR(IF(LeningNietBetaald*LeningGoed,MaandelijkseBetaling,\"\"), \"\")","v":{"v":108.52627796048073,"d":"€ 108.53"}},{"$f":"IFERROR(IF(LeningNietBetaald*LeningGoed,Hoofdsom,\"\"), \"\")","v":{"v":82.10901079121527,"d":"€ 82.11"}},{"$f":"IFERROR(IF(LeningNietBetaald*LeningGoed,Rentebedrag,\"\"), \"\")","v":{"v":26.417267169265454,"d":"€ 26.42"}},{"$f":"IFERROR(IF(LeningNietBetaald*LeningGoed,Eindsaldo,\"\"), \"\")","v":{"v":5681.658371593968,"d":"€ 5,681.66"}}]
[null,{"$f":"IFERROR(IF(LeningNietBetaald*LeningGoed,NummerBetaling,\"\"), \"\")","v":61},{"$f":"IFERROR(IF(LeningNietBetaald*LeningGoed,Betaaldatum,\"\"), \"\")","v":"2024-06-08"},{"$f":"IFERROR(IF(LeningNietBetaald*LeningGoed,WaardeLening,\"\"), \"\")","v":{"v":5681.658371593968,"d":"€ 5,681.66"}},{"$f":"IFERROR(IF(LeningNietBetaald*LeningGoed,MaandelijkseBetaling,\"\"), \"\")","v":{"v":108.52627796048073,"d":"€ 108.53"}},{"$f":"IFERROR(IF(LeningNietBetaald*LeningGoed,Hoofdsom,\"\"), \"\")","v":{"v":82.48534375734167,"d":"€ 82.49"}},{"$f":"IFERROR(IF(LeningNietBetaald*LeningGoed,Rentebedrag,\"\"), \"\")","v":{"v":26.040934203139052,"d":"€ 26.04"}},{"$f":"IFERROR(IF(LeningNietBetaald*LeningGoed,Eindsaldo,\"\"), \"\")","v":{"v":5599.173027836623,"d":"€ 5,599.17"}}]
[null,{"$f":"IFERROR(IF(LeningNietBetaald*LeningGoed,NummerBetaling,\"\"), \"\")","v":62},{"$f":"IFERROR(IF(LeningNietBetaald*LeningGoed,Betaaldatum,\"\"), \"\")","v":"2024-07-08"},{"$f":"IFERROR(IF(LeningNietBetaald*LeningGoed,WaardeLening,\"\"), \"\")","v":{"v":5599.173027836623,"d":"€ 5,599.17"}},{"$f":"IFERROR(IF(LeningNietBetaald*LeningGoed,MaandelijkseBetaling,\"\"), \"\")","v":{"v":108.52627796048073,"d":"€ 108.53"}},{"$f":"IFERROR(IF(LeningNietBetaald*LeningGoed,Hoofdsom,\"\"), \"\")","v":{"v":82.86340158289616,"d":"€ 82.86"}},{"$f":"IFERROR(IF(LeningNietBetaald*LeningGoed,Rentebedrag,\"\"), \"\")","v":{"v":25.662876377584567,"d":"€ 25.66"}},{"$f":"IFERROR(IF(LeningNietBetaald*LeningGoed,Eindsaldo,\"\"), \"\")","v":{"v":5516.309626253729,"d":"€ 5,516.31"}}]
[null,{"$f":"IFERROR(IF(LeningNietBetaald*LeningGoed,NummerBetaling,\"\"), \"\")","v":63},{"$f":"IFERROR(IF(LeningNietBetaald*LeningGoed,Betaaldatum,\"\"), \"\")","v":"2024-08-08"},{"$f":"IFERROR(IF(LeningNietBetaald*LeningGoed,WaardeLening,\"\"), \"\")","v":{"v":5516.309626253729,"d":"€ 5,516.31"}},{"$f":"IFERROR(IF(LeningNietBetaald*LeningGoed,MaandelijkseBetaling,\"\"), \"\")","v":{"v":108.52627796048073,"d":"€ 108.53"}},{"$f":"IFERROR(IF(LeningNietBetaald*LeningGoed,Hoofdsom,\"\"), \"\")","v":{"v":83.24319217348443,"d":"€ 83.24"}},{"$f":"IFERROR(IF(LeningNietBetaald*LeningGoed,Rentebedrag,\"\"), \"\")","v":{"v":25.28308578699629,"d":"€ 25.28"}},{"$f":"IFERROR(IF(LeningNietBetaald*LeningGoed,Eindsaldo,\"\"), \"\")","v":{"v":5433.066434080246,"d":"€ 5,433.07"}}]
[null,{"$f":"IFERROR(IF(LeningNietBetaald*LeningGoed,NummerBetaling,\"\"), \"\")","v":64},{"$f":"IFERROR(IF(LeningNietBetaald*LeningGoed,Betaaldatum,\"\"), \"\")","v":"2024-09-08"},{"$f":"IFERROR(IF(LeningNietBetaald*LeningGoed,WaardeLening,\"\"), \"\")","v":{"v":5433.066434080246,"d":"€ 5,433.07"}},{"$f":"IFERROR(IF(LeningNietBetaald*LeningGoed,MaandelijkseBetaling,\"\"), \"\")","v":{"v":108.52627796048073,"d":"€ 108.53"}},{"$f":"IFERROR(IF(LeningNietBetaald*LeningGoed,Hoofdsom,\"\"), \"\")","v":{"v":83.62472347094625,"d":"€ 83.62"}},{"$f":"IFERROR(IF(LeningNietBetaald*LeningGoed,Rentebedrag,\"\"), \"\")","v":{"v":24.90155448953449,"d":"€ 24.90"}},{"$f":"IFERROR(IF(LeningNietBetaald*LeningGoed,Eindsaldo,\"\"), \"\")","v":{"v":5349.441710609297,"d":"€ 5,349.44"}}]
[null,{"$f":"IFERROR(IF(LeningNietBetaald*LeningGoed,NummerBetaling,\"\"), \"\")","v":65},{"$f":"IFERROR(IF(LeningNietBetaald*LeningGoed,Betaaldatum,\"\"), \"\")","v":"2024-10-08"},{"$f":"IFERROR(IF(LeningNietBetaald*LeningGoed,WaardeLening,\"\"), \"\")","v":{"v":5349.441710609297,"d":"€ 5,349.44"}},{"$f":"IFERROR(IF(LeningNietBetaald*LeningGoed,MaandelijkseBetaling,\"\"), \"\")","v":{"v":108.52627796048073,"d":"€ 108.53"}},{"$f":"IFERROR(IF(LeningNietBetaald*LeningGoed,Hoofdsom,\"\"), \"\")","v":{"v":84.00800345352141,"d":"€ 84.01"}},{"$f":"IFERROR(IF(LeningNietBetaald*LeningGoed,Rentebedrag,\"\"), \"\")","v":{"v":24.51827450695932,"d":"€ 24.52"}},{"$f":"IFERROR(IF(LeningNietBetaald*LeningGoed,Eindsaldo,\"\"), \"\")","v":{"v":5265.433707155773,"d":"€ 5,265.43"}}]
[null,{"$f":"IFERROR(IF(LeningNietBetaald*LeningGoed,NummerBetaling,\"\"), \"\")","v":66},{"$f":"IFERROR(IF(LeningNietBetaald*LeningGoed,Betaaldatum,\"\"), \"\")","v":"2024-11-08"},{"$f":"IFERROR(IF(LeningNietBetaald*LeningGoed,WaardeLening,\"\"), \"\")","v":{"v":5265.433707155773,"d":"€ 5,265.43"}},{"$f":"IFERROR(IF(LeningNietBetaald*LeningGoed,MaandelijkseBetaling,\"\"), \"\")","v":{"v":108.52627796048073,"d":"€ 108.53"}},{"$f":"IFERROR(IF(LeningNietBetaald*LeningGoed,Hoofdsom,\"\"), \"\")","v":{"v":84.39304013601671,"d":"€ 84.39"}},{"$f":"IFERROR(IF(LeningNietBetaald*LeningGoed,Rentebedrag,\"\"), \"\")","v":{"v":24.13323782446401,"d":"€ 24.13"}},{"$f":"IFERROR(IF(LeningNietBetaald*LeningGoed,Eindsaldo,\"\"), \"\")","v":{"v":5181.040667019757,"d":"€ 5,181.04"}}]
[null,{"$f":"IFERROR(IF(LeningNietBetaald*LeningGoed,NummerBetaling,\"\"), \"\")","v":67},{"$f":"IFERROR(IF(LeningNietBetaald*LeningGoed,Betaaldatum,\"\"), \"\")","v":"2024-12-08"},{"$f":"IFERROR(IF(LeningNietBetaald*LeningGoed,WaardeLening,\"\"), \"\")","v":{"v":5181.040667019757,"d":"€ 5,181.04"}},{"$f":"IFERROR(IF(LeningNietBetaald*LeningGoed,MaandelijkseBetaling,\"\"), \"\")","v":{"v":108.52627796048073,"d":"€ 108.53"}},{"$f":"IFERROR(IF(LeningNietBetaald*LeningGoed,Hoofdsom,\"\"), \"\")","v":{"v":84.77984156997344,"d":"€ 84.78"}},{"$f":"IFERROR(IF(LeningNietBetaald*LeningGoed,Rentebedrag,\"\"), \"\")","v":{"v":23.74643639050727,"d":"€ 23.75"}},{"$f":"IFERROR(IF(LeningNietBetaald*LeningGoed,Eindsaldo,\"\"), \"\")","v":{"v":5096.2608254497845,"d":"€ 5,096.26"}}]
[null,{"$f":"IFERROR(IF(LeningNietBetaald*LeningGoed,NummerBetaling,\"\"), \"\")","v":68},{"$f":"IFERROR(IF(LeningNietBetaald*LeningGoed,Betaaldatum,\"\"), \"\")","v":"2025-01-08"},{"$f":"IFERROR(IF(LeningNietBetaald*LeningGoed,WaardeLening,\"\"), \"\")","v":{"v":5096.2608254497845,"d":"€ 5,096.26"}},{"$f":"IFERROR(IF(LeningNietBetaald*LeningGoed,MaandelijkseBetaling,\"\"), \"\")","v":{"v":108.52627796048073,"d":"€ 108.53"}},{"$f":"IFERROR(IF(LeningNietBetaald*LeningGoed,Hoofdsom,\"\"), \"\")","v":{"v":85.16841584383582,"d":"€ 85.17"}},{"$f":"IFERROR(IF(LeningNietBetaald*LeningGoed,Rentebedrag,\"\"), \"\")","v":{"v":23.357862116644892,"d":"€ 23.36"}},{"$f":"IFERROR(IF(LeningNietBetaald*LeningGoed,Eindsaldo,\"\"), \"\")","v":{"v":5011.092409605948,"d":"€ 5,011.09"}}]
[null,{"$f":"IFERROR(IF(LeningNietBetaald*LeningGoed,NummerBetaling,\"\"), \"\")","v":69},{"$f":"IFERROR(IF(LeningNietBetaald*LeningGoed,Betaaldatum,\"\"), \"\")","v":"2025-02-08"},{"$f":"IFERROR(IF(LeningNietBetaald*LeningGoed,WaardeLening,\"\"), \"\")","v":{"v":5011.092409605948,"d":"€ 5,011.09"}},{"$f":"IFERROR(IF(LeningNietBetaald*LeningGoed,MaandelijkseBetaling,\"\"), \"\")","v":{"v":108.52627796048073,"d":"€ 108.53"}},{"$f":"IFERROR(IF(LeningNietBetaald*LeningGoed,Hoofdsom,\"\"), \"\")","v":{"v":85.55877108312008,"d":"€ 85.56"}},{"$f":"IFERROR(IF(LeningNietBetaald*LeningGoed,Rentebedrag,\"\"), \"\")","v":{"v":22.96750687736064,"d":"€ 22.97"}},{"$f":"IFERROR(IF(LeningNietBetaald*LeningGoed,Eindsaldo,\"\"), \"\")","v":{"v":4925.533638522824,"d":"€ 4,925.53"}}]
[null,{"$f":"IFERROR(IF(LeningNietBetaald*LeningGoed,NummerBetaling,\"\"), \"\")","v":70},{"$f":"IFERROR(IF(LeningNietBetaald*LeningGoed,Betaaldatum,\"\"), \"\")","v":"2025-03-08"},{"$f":"IFERROR(IF(LeningNietBetaald*LeningGoed,WaardeLening,\"\"), \"\")","v":{"v":4925.533638522824,"d":"€ 4,925.53"}},{"$f":"IFERROR(IF(LeningNietBetaald*LeningGoed,MaandelijkseBetaling,\"\"), \"\")","v":{"v":108.52627796048073,"d":"€ 108.53"}},{"$f":"IFERROR(IF(LeningNietBetaald*LeningGoed,Hoofdsom,\"\"), \"\")","v":{"v":85.95091545058438,"d":"€ 85.95"}},{"$f":"IFERROR(IF(LeningNietBetaald*LeningGoed,Rentebedrag,\"\"), \"\")","v":{"v":22.575362509896344,"d":"€ 22.58"}},{"$f":"IFERROR(IF(LeningNietBetaald*LeningGoed,Eindsaldo,\"\"), \"\")","v":{"v":4839.582723072239,"d":"€ 4,839.58"}}]
[null,{"$f":"IFERROR(IF(LeningNietBetaald*LeningGoed,NummerBetaling,\"\"), \"\")","v":71},{"$f":"IFERROR(IF(LeningNietBetaald*LeningGoed,Betaaldatum,\"\"), \"\")","v":"2025-04-08"},{"$f":"IFERROR(IF(LeningNietBetaald*LeningGoed,WaardeLening,\"\"), \"\")","v":{"v":4839.582723072239,"d":"€ 4,839.58"}},{"$f":"IFERROR(IF(LeningNietBetaald*LeningGoed,MaandelijkseBetaling,\"\"), \"\")","v":{"v":108.52627796048073,"d":"€ 108.53"}},{"$f":"IFERROR(IF(LeningNietBetaald*LeningGoed,Hoofdsom,\"\"), \"\")","v":{"v":86.34485714639956,"d":"€ 86.34"}},{"$f":"IFERROR(IF(LeningNietBetaald*LeningGoed,Rentebedrag,\"\"), \"\")","v":{"v":22.18142081408116,"d":"€ 22.18"}},{"$f":"IFERROR(IF(LeningNietBetaald*LeningGoed,Eindsaldo,\"\"), \"\")","v":{"v":4753.237865925843,"d":"€ 4,753.24"}}]
[null,{"$f":"IFERROR(IF(LeningNietBetaald*LeningGoed,NummerBetaling,\"\"), \"\")","v":72},{"$f":"IFERROR(IF(LeningNietBetaald*LeningGoed,Betaaldatum,\"\"), \"\")","v":"2025-05-08"},{"$f":"IFERROR(IF(LeningNietBetaald*LeningGoed,WaardeLening,\"\"), \"\")","v":{"v":4753.237865925843,"d":"€ 4,753.24"}},{"$f":"IFERROR(IF(LeningNietBetaald*LeningGoed,MaandelijkseBetaling,\"\"), \"\")","v":{"v":108.52627796048073,"d":"€ 108.53"}},{"$f":"IFERROR(IF(LeningNietBetaald*LeningGoed,Hoofdsom,\"\"), \"\")","v":{"v":86.74060440832056,"d":"€ 86.74"}},{"$f":"IFERROR(IF(LeningNietBetaald*LeningGoed,Rentebedrag,\"\"), \"\")","v":{"v":21.785673552160162,"d":"€ 21.79"}},{"$f":"IFERROR(IF(LeningNietBetaald*LeningGoed,Eindsaldo,\"\"), \"\")","v":{"v":4666.497261517523,"d":"€ 4,666.50"}}]
[null,{"$f":"IFERROR(IF(LeningNietBetaald*LeningGoed,NummerBetaling,\"\"), \"\")","v":73},{"$f":"IFERROR(IF(LeningNietBetaald*LeningGoed,Betaaldatum,\"\"), \"\")","v":"2025-06-08"},{"$f":"IFERROR(IF(LeningNietBetaald*LeningGoed,WaardeLening,\"\"), \"\")","v":{"v":4666.497261517523,"d":"€ 4,666.50"}},{"$f":"IFERROR(IF(LeningNietBetaald*LeningGoed,MaandelijkseBetaling,\"\"), \"\")","v":{"v":108.52627796048073,"d":"€ 108.53"}},{"$f":"IFERROR(IF(LeningNietBetaald*LeningGoed,Hoofdsom,\"\"), \"\")","v":{"v":87.1381655118587,"d":"€ 87.14"}},{"$f":"IFERROR(IF(LeningNietBetaald*LeningGoed,Rentebedrag,\"\"), \"\")","v":{"v":21.38811244862203,"d":"€ 21.39"}},{"$f":"IFERROR(IF(LeningNietBetaald*LeningGoed,Eindsaldo,\"\"), \"\")","v":{"v":4579.3590960056645,"d":"€ 4,579.36"}}]
[null,{"$f":"IFERROR(IF(LeningNietBetaald*LeningGoed,NummerBetaling,\"\"), \"\")","v":74},{"$f":"IFERROR(IF(LeningNietBetaald*LeningGoed,Betaaldatum,\"\"), \"\")","v":"2025-07-08"},{"$f":"IFERROR(IF(LeningNietBetaald*LeningGoed,WaardeLening,\"\"), \"\")","v":{"v":4579.3590960056645,"d":"€ 4,579.36"}},{"$f":"IFERROR(IF(LeningNietBetaald*LeningGoed,MaandelijkseBetaling,\"\"), \"\")","v":{"v":108.52627796048073,"d":"€ 108.53"}},{"$f":"IFERROR(IF(LeningNietBetaald*LeningGoed,Hoofdsom,\"\"), \"\")","v":{"v":87.53754877045472,"d":"€ 87.54"}},{"$f":"IFERROR(IF(LeningNietBetaald*LeningGoed,Rentebedrag,\"\"), \"\")","v":{"v":20.988729190026014,"d":"€ 20.99"}},{"$f":"IFERROR(IF(LeningNietBetaald*LeningGoed,Eindsaldo,\"\"), \"\")","v":{"v":4491.821547235208,"d":"€ 4,491.82"}}]
[null,{"$f":"IFERROR(IF(LeningNietBetaald*LeningGoed,NummerBetaling,\"\"), \"\")","v":75},{"$f":"IFERROR(IF(LeningNietBetaald*LeningGoed,Betaaldatum,\"\"), \"\")","v":"2025-08-08"},{"$f":"IFERROR(IF(LeningNietBetaald*LeningGoed,WaardeLening,\"\"), \"\")","v":{"v":4491.821547235208,"d":"€ 4,491.82"}},{"$f":"IFERROR(IF(LeningNietBetaald*LeningGoed,MaandelijkseBetaling,\"\"), \"\")","v":{"v":108.52627796048073,"d":"€ 108.53"}},{"$f":"IFERROR(IF(LeningNietBetaald*LeningGoed,Hoofdsom,\"\"), \"\")","v":{"v":87.93876253565263,"d":"€ 87.94"}},{"$f":"IFERROR(IF(LeningNietBetaald*LeningGoed,Rentebedrag,\"\"), \"\")","v":{"v":20.587515424828098,"d":"€ 20.59"}},{"$f":"IFERROR(IF(LeningNietBetaald*LeningGoed,Eindsaldo,\"\"), \"\")","v":{"v":4403.8827846995555,"d":"€ 4,403.88"}}]
[null,{"$f":"IFERROR(IF(LeningNietBetaald*LeningGoed,NummerBetaling,\"\"), \"\")","v":76},{"$f":"IFERROR(IF(LeningNietBetaald*LeningGoed,Betaaldatum,\"\"), \"\")","v":"2025-09-08"},{"$f":"IFERROR(IF(LeningNietBetaald*LeningGoed,WaardeLening,\"\"), \"\")","v":{"v":4403.8827846995555,"d":"€ 4,403.88"}},{"$f":"IFERROR(IF(LeningNietBetaald*LeningGoed,MaandelijkseBetaling,\"\"), \"\")","v":{"v":108.52627796048073,"d":"€ 108.53"}},{"$f":"IFERROR(IF(LeningNietBetaald*LeningGoed,Hoofdsom,\"\"), \"\")","v":{"v":88.34181519727439,"d":"€ 88.34"}},{"$f":"IFERROR(IF(LeningNietBetaald*LeningGoed,Rentebedrag,\"\"), \"\")","v":{"v":20.184462763206355,"d":"€ 20.18"}},{"$f":"IFERROR(IF(LeningNietBetaald*LeningGoed,Eindsaldo,\"\"), \"\")","v":{"v":4315.540969502281,"d":"€ 4,315.54"}}]
[null,{"$f":"IFERROR(IF(LeningNietBetaald*LeningGoed,NummerBetaling,\"\"), \"\")","v":77},{"$f":"IFERROR(IF(LeningNietBetaald*LeningGoed,Betaaldatum,\"\"), \"\")","v":"2025-10-08"},{"$f":"IFERROR(IF(LeningNietBetaald*LeningGoed,WaardeLening,\"\"), \"\")","v":{"v":4315.540969502281,"d":"€ 4,315.54"}},{"$f":"IFERROR(IF(LeningNietBetaald*LeningGoed,MaandelijkseBetaling,\"\"), \"\")","v":{"v":108.52627796048073,"d":"€ 108.53"}},{"$f":"IFERROR(IF(LeningNietBetaald*LeningGoed,Hoofdsom,\"\"), \"\")","v":{"v":88.74671518359521,"d":"€ 88.75"}},{"$f":"IFERROR(IF(LeningNietBetaald*LeningGoed,Rentebedrag,\"\"), \"\")","v":{"v":19.779562776885513,"d":"€ 19.78"}},{"$f":"IFERROR(IF(LeningNietBetaald*LeningGoed,Eindsaldo,\"\"), \"\")","v":{"v":4226.794254318684,"d":"€ 4,226.79"}}]
[null,{"$f":"IFERROR(IF(LeningNietBetaald*LeningGoed,NummerBetaling,\"\"), \"\")","v":78},{"$f":"IFERROR(IF(LeningNietBetaald*LeningGoed,Betaaldatum,\"\"), \"\")","v":"2025-11-08"},{"$f":"IFERROR(IF(LeningNietBetaald*LeningGoed,WaardeLening,\"\"), \"\")","v":{"v":4226.794254318684,"d":"€ 4,226.79"}},{"$f":"IFERROR(IF(LeningNietBetaald*LeningGoed,MaandelijkseBetaling,\"\"), \"\")","v":{"v":108.52627796048073,"d":"€ 108.53"}},{"$f":"IFERROR(IF(LeningNietBetaald*LeningGoed,Hoofdsom,\"\"), \"\")","v":{"v":89.15347096152003,"d":"€ 89.15"}},{"$f":"IFERROR(IF(LeningNietBetaald*LeningGoed,Rentebedrag,\"\"), \"\")","v":{"v":19.3728069989607,"d":"€ 19.37"}},{"$f":"IFERROR(IF(LeningNietBetaald*LeningGoed,Eindsaldo,\"\"), \"\")","v":{"v":4137.640783357165,"d":"€ 4,137.64"}}]
[null,{"$f":"IFERROR(IF(LeningNietBetaald*LeningGoed,NummerBetaling,\"\"), \"\")","v":79},{"$f":"IFERROR(IF(LeningNietBetaald*LeningGoed,Betaaldatum,\"\"), \"\")","v":"2025-12-08"},{"$f":"IFERROR(IF(LeningNietBetaald*LeningGoed,WaardeLening,\"\"), \"\")","v":{"v":4137.640783357165,"d":"€ 4,137.64"}},{"$f":"IFERROR(IF(LeningNietBetaald*LeningGoed,MaandelijkseBetaling,\"\"), \"\")","v":{"v":108.52627796048073,"d":"€ 108.53"}},{"$f":"IFERROR(IF(LeningNietBetaald*LeningGoed,Hoofdsom,\"\"), \"\")","v":{"v":89.56209103676032,"d":"€ 89.56"}},{"$f":"IFERROR(IF(LeningNietBetaald*LeningGoed,Rentebedrag,\"\"), \"\")","v":{"v":18.9641869237204,"d":"€ 18.96"}},{"$f":"IFERROR(IF(LeningNietBetaald*LeningGoed,Eindsaldo,\"\"), \"\")","v":{"v":4048.078692320407,"d":"€ 4,048.08"}}]
[null,{"$f":"IFERROR(IF(LeningNietBetaald*LeningGoed,NummerBetaling,\"\"), \"\")","v":80},{"$f":"IFERROR(IF(LeningNietBetaald*LeningGoed,Betaaldatum,\"\"), \"\")","v":"2026-01-08"},{"$f":"IFERROR(IF(LeningNietBetaald*LeningGoed,WaardeLening,\"\"), \"\")","v":{"v":4048.078692320407,"d":"€ 4,048.08"}},{"$f":"IFERROR(IF(LeningNietBetaald*LeningGoed,MaandelijkseBetaling,\"\"), \"\")","v":{"v":108.52627796048073,"d":"€ 108.53"}},{"$f":"IFERROR(IF(LeningNietBetaald*LeningGoed,Hoofdsom,\"\"), \"\")","v":{"v":89.97258395401214,"d":"€ 89.97"}},{"$f":"IFERROR(IF(LeningNietBetaald*LeningGoed,Rentebedrag,\"\"), \"\")","v":{"v":18.553694006468582,"d":"€ 18.55"}},{"$f":"IFERROR(IF(LeningNietBetaald*LeningGoed,Eindsaldo,\"\"), \"\")","v":{"v":3958.1061083663935,"d":"€ 3,958.11"}}]
[null,{"$f":"IFERROR(IF(LeningNietBetaald*LeningGoed,NummerBetaling,\"\"), \"\")","v":81},{"$f":"IFERROR(IF(LeningNietBetaald*LeningGoed,Betaaldatum,\"\"), \"\")","v":"2026-02-08"},{"$f":"IFERROR(IF(LeningNietBetaald*LeningGoed,WaardeLening,\"\"), \"\")","v":{"v":3958.1061083663935,"d":"€ 3,958.11"}},{"$f":"IFERROR(IF(LeningNietBetaald*LeningGoed,MaandelijkseBetaling,\"\"), \"\")","v":{"v":108.52627796048073,"d":"€ 108.53"}},{"$f":"IFERROR(IF(LeningNietBetaald*LeningGoed,Hoofdsom,\"\"), \"\")","v":{"v":90.3849582971347,"d":"€ 90.38"}},{"$f":"IFERROR(IF(LeningNietBetaald*LeningGoed,Rentebedrag,\"\"), \"\")","v":{"v":18.141319663346028,"d":"€ 18.14"}},{"$f":"IFERROR(IF(LeningNietBetaald*LeningGoed,Eindsaldo,\"\"), \"\")","v":{"v":3867.7211500692556,"d":"€ 3,867.72"}}]
[null,{"$f":"IFERROR(IF(LeningNietBetaald*LeningGoed,NummerBetaling,\"\"), \"\")","v":82},{"$f":"IFERROR(IF(LeningNietBetaald*LeningGoed,Betaaldatum,\"\"), \"\")","v":"2026-03-08"},{"$f":"IFERROR(IF(LeningNietBetaald*LeningGoed,WaardeLening,\"\"), \"\")","v":{"v":3867.7211500692556,"d":"€ 3,867.72"}},{"$f":"IFERROR(IF(LeningNietBetaald*LeningGoed,MaandelijkseBetaling,\"\"), \"\")","v":{"v":108.52627796048073,"d":"€ 108.53"}},{"$f":"IFERROR(IF(LeningNietBetaald*LeningGoed,Hoofdsom,\"\"), \"\")","v":{"v":90.79922268932991,"d":"€ 90.80"}},{"$f":"IFERROR(IF(LeningNietBetaald*LeningGoed,Rentebedrag,\"\"), \"\")","v":{"v":17.727055271150828,"d":"€ 17.73"}},{"$f":"IFERROR(IF(LeningNietBetaald*LeningGoed,Eindsaldo,\"\"), \"\")","v":{"v":3776.9219273799263,"d":"€ 3,776.92"}}]
[null,{"$f":"IFERROR(IF(LeningNietBetaald*LeningGoed,NummerBetaling,\"\"), \"\")","v":83},{"$f":"IFERROR(IF(LeningNietBetaald*LeningGoed,Betaaldatum,\"\"), \"\")","v":"2026-04-08"},{"$f":"IFERROR(IF(LeningNietBetaald*LeningGoed,WaardeLening,\"\"), \"\")","v":{"v":3776.9219273799263,"d":"€ 3,776.92"}},{"$f":"IFERROR(IF(LeningNietBetaald*LeningGoed,MaandelijkseBetaling,\"\"), \"\")","v":{"v":108.52627796048073,"d":"€ 108.53"}},{"$f":"IFERROR(IF(LeningNietBetaald*LeningGoed,Hoofdsom,\"\"), \"\")","v":{"v":91.21538579332265,"d":"€ 91.22"}},{"$f":"IFERROR(IF(LeningNietBetaald*LeningGoed,Rentebedrag,\"\"), \"\")","v":{"v":17.310892167158062,"d":"€ 17.31"}},{"$f":"IFERROR(IF(LeningNietBetaald*LeningGoed,Eindsaldo,\"\"), \"\")","v":{"v":3685.7065415866073,"d":"€ 3,685.71"}}]
[null,{"$f":"IFERROR(IF(LeningNietBetaald*LeningGoed,NummerBetaling,\"\"), \"\")","v":84},{"$f":"IFERROR(IF(LeningNietBetaald*LeningGoed,Betaaldatum,\"\"), \"\")","v":"2026-05-08"},{"$f":"IFERROR(IF(LeningNietBetaald*LeningGoed,WaardeLening,\"\"), \"\")","v":{"v":3685.7065415866073,"d":"€ 3,685.71"}},{"$f":"IFERROR(IF(LeningNietBetaald*LeningGoed,MaandelijkseBetaling,\"\"), \"\")","v":{"v":108.52627796048073,"d":"€ 108.53"}},{"$f":"IFERROR(IF(LeningNietBetaald*LeningGoed,Hoofdsom,\"\"), \"\")","v":{"v":91.63345631154205,"d":"€ 91.63"}},{"$f":"IFERROR(IF(LeningNietBetaald*LeningGoed,Rentebedrag,\"\"), \"\")","v":{"v":16.892821648938668,"d":"€ 16.89"}},{"$f":"IFERROR(IF(LeningNietBetaald*LeningGoed,Eindsaldo,\"\"), \"\")","v":{"v":3594.073085275062,"d":"€ 3,594.07"}}]
[null,{"$f":"IFERROR(IF(LeningNietBetaald*LeningGoed,NummerBetaling,\"\"), \"\")","v":85},{"$f":"IFERROR(IF(LeningNietBetaald*LeningGoed,Betaaldatum,\"\"), \"\")","v":"2026-06-08"},{"$f":"IFERROR(IF(LeningNietBetaald*LeningGoed,WaardeLening,\"\"), \"\")","v":{"v":3594.073085275062,"d":"€ 3,594.07"}},{"$f":"IFERROR(IF(LeningNietBetaald*LeningGoed,MaandelijkseBetaling,\"\"), \"\")","v":{"v":108.52627796048073,"d":"€ 108.53"}},{"$f":"IFERROR(IF(LeningNietBetaald*LeningGoed,Hoofdsom,\"\"), \"\")","v":{"v":92.0534429863033,"d":"€ 92.05"}},{"$f":"IFERROR(IF(LeningNietBetaald*LeningGoed,Rentebedrag,\"\"), \"\")","v":{"v":16.472834974177438,"d":"€ 16.47"}},{"$f":"IFERROR(IF(LeningNietBetaald*LeningGoed,Eindsaldo,\"\"), \"\")","v":{"v":3502.0196422887584,"d":"€ 3,502.02"}}]
[null,{"$f":"IFERROR(IF(LeningNietBetaald*LeningGoed,NummerBetaling,\"\"), \"\")","v":86},{"$f":"IFERROR(IF(LeningNietBetaald*LeningGoed,Betaaldatum,\"\"), \"\")","v":"2026-07-08"},{"$f":"IFERROR(IF(LeningNietBetaald*LeningGoed,WaardeLening,\"\"), \"\")","v":{"v":3502.0196422887584,"d":"€ 3,502.02"}},{"$f":"IFERROR(IF(LeningNietBetaald*LeningGoed,MaandelijkseBetaling,\"\"), \"\")","v":{"v":108.52627796048073,"d":"€ 108.53"}},{"$f":"IFERROR(IF(LeningNietBetaald*LeningGoed,Hoofdsom,\"\"), \"\")","v":{"v":92.47535459999051,"d":"€ 92.48"}},{"$f":"IFERROR(IF(LeningNietBetaald*LeningGoed,Rentebedrag,\"\"), \"\")","v":{"v":16.050923360490213,"d":"€ 16.05"}},{"$f":"IFERROR(IF(LeningNietBetaald*LeningGoed,Eindsaldo,\"\"), \"\")","v":{"v":3409.5442876887664,"d":"€ 3,409.54"}}]
[null,{"$f":"IFERROR(IF(LeningNietBetaald*LeningGoed,NummerBetaling,\"\"), \"\")","v":87},{"$f":"IFERROR(IF(LeningNietBetaald*LeningGoed,Betaaldatum,\"\"), \"\")","v":"2026-08-08"},{"$f":"IFERROR(IF(LeningNietBetaald*LeningGoed,WaardeLening,\"\"), \"\")","v":{"v":3409.5442876887664,"d":"€ 3,409.54"}},{"$f":"IFERROR(IF(LeningNietBetaald*LeningGoed,MaandelijkseBetaling,\"\"), \"\")","v":{"v":108.52627796048073,"d":"€ 108.53"}},{"$f":"IFERROR(IF(LeningNietBetaald*LeningGoed,Hoofdsom,\"\"), \"\")","v":{"v":92.89919997524046,"d":"€ 92.90"}},{"$f":"IFERROR(IF(LeningNietBetaald*LeningGoed,Rentebedrag,\"\"), \"\")","v":{"v":15.627077985240252,"d":"€ 15.63"}},{"$f":"IFERROR(IF(LeningNietBetaald*LeningGoed,Eindsaldo,\"\"), \"\")","v":{"v":3316.6450877135267,"d":"€ 3,316.65"}}]
[null,{"$f":"IFERROR(IF(LeningNietBetaald*LeningGoed,NummerBetaling,\"\"), \"\")","v":88},{"$f":"IFERROR(IF(LeningNietBetaald*LeningGoed,Betaaldatum,\"\"), \"\")","v":"2026-09-08"},{"$f":"IFERROR(IF(LeningNietBetaald*LeningGoed,WaardeLening,\"\"), \"\")","v":{"v":3316.6450877135267,"d":"€ 3,316.65"}},{"$f":"IFERROR(IF(LeningNietBetaald*LeningGoed,MaandelijkseBetaling,\"\"), \"\")","v":{"v":108.52627796048073,"d":"€ 108.53"}},{"$f":"IFERROR(IF(LeningNietBetaald*LeningGoed,Hoofdsom,\"\"), \"\")","v":{"v":93.32498797512699,"d":"€ 93.32"}},{"$f":"IFERROR(IF(LeningNietBetaald*LeningGoed,Rentebedrag,\"\"), \"\")","v":{"v":15.201289985353732,"d":"€ 15.20"}},{"$f":"IFERROR(IF(LeningNietBetaald*LeningGoed,Eindsaldo,\"\"), \"\")","v":{"v":3223.320099738399,"d":"€ 3,223.32"}}]
[null,{"$f":"IFERROR(IF(LeningNietBetaald*LeningGoed,NummerBetaling,\"\"), \"\")","v":89},{"$f":"IFERROR(IF(LeningNietBetaald*LeningGoed,Betaaldatum,\"\"), \"\")","v":"2026-10-08"},{"$f":"IFERROR(IF(LeningNietBetaald*LeningGoed,WaardeLening,\"\"), \"\")","v":{"v":3223.320099738399,"d":"€ 3,223.32"}},{"$f":"IFERROR(IF(LeningNietBetaald*LeningGoed,MaandelijkseBetaling,\"\"), \"\")","v":{"v":108.52627796048073,"d":"€ 108.53"}},{"$f":"IFERROR(IF(LeningNietBetaald*LeningGoed,Hoofdsom,\"\"), \"\")","v":{"v":93.75272750334632,"d":"€ 93.75"}},{"$f":"IFERROR(IF(LeningNietBetaald*LeningGoed,Rentebedrag,\"\"), \"\")","v":{"v":14.7735504571344,"d":"€ 14.77"}},{"$f":"IFERROR(IF(LeningNietBetaald*LeningGoed,Eindsaldo,\"\"), \"\")","v":{"v":3129.567372235055,"d":"€ 3,129.57"}}]
[null,{"$f":"IFERROR(IF(LeningNietBetaald*LeningGoed,NummerBetaling,\"\"), \"\")","v":90},{"$f":"IFERROR(IF(LeningNietBetaald*LeningGoed,Betaaldatum,\"\"), \"\")","v":"2026-11-08"},{"$f":"IFERROR(IF(LeningNietBetaald*LeningGoed,WaardeLening,\"\"), \"\")","v":{"v":3129.567372235055,"d":"€ 3,129.57"}},{"$f":"IFERROR(IF(LeningNietBetaald*LeningGoed,MaandelijkseBetaling,\"\"), \"\")","v":{"v":108.52627796048073,"d":"€ 108.53"}},{"$f":"IFERROR(IF(LeningNietBetaald*LeningGoed,Hoofdsom,\"\"), \"\")","v":{"v":94.18242750440332,"d":"€ 94.18"}},{"$f":"IFERROR(IF(LeningNietBetaald*LeningGoed,Rentebedrag,\"\"), \"\")","v":{"v":14.343850456077401,"d":"€ 14.34"}},{"$f":"IFERROR(IF(LeningNietBetaald*LeningGoed,Eindsaldo,\"\"), \"\")","v":{"v":3035.384944730651,"d":"€ 3,035.38"}}]
[null,{"$f":"IFERROR(IF(LeningNietBetaald*LeningGoed,NummerBetaling,\"\"), \"\")","v":91},{"$f":"IFERROR(IF(LeningNietBetaald*LeningGoed,Betaaldatum,\"\"), \"\")","v":"2026-12-08"},{"$f":"IFERROR(IF(LeningNietBetaald*LeningGoed,WaardeLening,\"\"), \"\")","v":{"v":3035.384944730651,"d":"€ 3,035.38"}},{"$f":"IFERROR(IF(LeningNietBetaald*LeningGoed,MaandelijkseBetaling,\"\"), \"\")","v":{"v":108.52627796048073,"d":"€ 108.53"}},{"$f":"IFERROR(IF(LeningNietBetaald*LeningGoed,Hoofdsom,\"\"), \"\")","v":{"v":94.61409696379852,"d":"€ 94.61"}},{"$f":"IFERROR(IF(LeningNietBetaald*LeningGoed,Rentebedrag,\"\"), \"\")","v":{"v":13.912180996682217,"d":"€ 13.91"}},{"$f":"IFERROR(IF(LeningNietBetaald*LeningGoed,Eindsaldo,\"\"), \"\")","v":{"v":2940.770847766853,"d":"€ 2,940.77"}}]
[null,{"$f":"IFERROR(IF(LeningNietBetaald*LeningGoed,NummerBetaling,\"\"), \"\")","v":92},{"$f":"IFERROR(IF(LeningNietBetaald*LeningGoed,Betaaldatum,\"\"), \"\")","v":"2027-01-08"},{"$f":"IFERROR(IF(LeningNietBetaald*LeningGoed,WaardeLening,\"\"), \"\")","v":{"v":2940.770847766853,"d":"€ 2,940.77"}},{"$f":"IFERROR(IF(LeningNietBetaald*LeningGoed,MaandelijkseBetaling,\"\"), \"\")","v":{"v":108.52627796048073,"d":"€ 108.53"}},{"$f":"IFERROR(IF(LeningNietBetaald*LeningGoed,Hoofdsom,\"\"), \"\")","v":{"v":95.04774490821592,"d":"€ 95.05"}},{"$f":"IFERROR(IF(LeningNietBetaald*LeningGoed,Rentebedrag,\"\"), \"\")","v":{"v":13.478533052264805,"d":"€ 13.48"}},{"$f":"IFERROR(IF(LeningNietBetaald*LeningGoed,Eindsaldo,\"\"), \"\")","v":{"v":2845.7231028586375,"d":"€ 2,845.72"}}]
[null,{"$f":"IFERROR(IF(LeningNietBetaald*LeningGoed,NummerBetaling,\"\"), \"\")","v":93},{"$f":"IFERROR(IF(LeningNietBetaald*LeningGoed,Betaaldatum,\"\"), \"\")","v":"2027-02-08"},{"$f":"IFERROR(IF(LeningNietBetaald*LeningGoed,WaardeLening,\"\"), \"\")","v":{"v":2845.7231028586375,"d":"€ 2,845.72"}},{"$f":"IFERROR(IF(LeningNietBetaald*LeningGoed,MaandelijkseBetaling,\"\"), \"\")","v":{"v":108.52627796048073,"d":"€ 108.53"}},{"$f":"IFERROR(IF(LeningNietBetaald*LeningGoed,Hoofdsom,\"\"), \"\")","v":{"v":95.48338040571191,"d":"€ 95.48"}},{"$f":"IFERROR(IF(LeningNietBetaald*LeningGoed,Rentebedrag,\"\"), \"\")","v":{"v":13.042897554768816,"d":"€ 13.04"}},{"$f":"IFERROR(IF(LeningNietBetaald*LeningGoed,Eindsaldo,\"\"), \"\")","v":{"v":2750.239722452923,"d":"€ 2,750.24"}}]
[null,{"$f":"IFERROR(IF(LeningNietBetaald*LeningGoed,NummerBetaling,\"\"), \"\")","v":94},{"$f":"IFERROR(IF(LeningNietBetaald*LeningGoed,Betaaldatum,\"\"), \"\")","v":"2027-03-08"},{"$f":"IFERROR(IF(LeningNietBetaald*LeningGoed,WaardeLening,\"\"), \"\")","v":{"v":2750.239722452923,"d":"€ 2,750.24"}},{"$f":"IFERROR(IF(LeningNietBetaald*LeningGoed,MaandelijkseBetaling,\"\"), \"\")","v":{"v":108.52627796048073,"d":"€ 108.53"}},{"$f":"IFERROR(IF(LeningNietBetaald*LeningGoed,Hoofdsom,\"\"), \"\")","v":{"v":95.92101256590476,"d":"€ 95.92"}},{"$f":"IFERROR(IF(LeningNietBetaald*LeningGoed,Rentebedrag,\"\"), \"\")","v":{"v":12.605265394575971,"d":"€ 12.61"}},{"$f":"IFERROR(IF(LeningNietBetaald*LeningGoed,Eindsaldo,\"\"), \"\")","v":{"v":2654.3187098870203,"d":"€ 2,654.32"}}]
[null,{"$f":"IFERROR(IF(LeningNietBetaald*LeningGoed,NummerBetaling,\"\"), \"\")","v":95},{"$f":"IFERROR(IF(LeningNietBetaald*LeningGoed,Betaaldatum,\"\"), \"\")","v":"2027-04-08"},{"$f":"IFERROR(IF(LeningNietBetaald*LeningGoed,WaardeLening,\"\"), \"\")","v":{"v":2654.3187098870203,"d":"€ 2,654.32"}},{"$f":"IFERROR(IF(LeningNietBetaald*LeningGoed,MaandelijkseBetaling,\"\"), \"\")","v":{"v":108.52627796048073,"d":"€ 108.53"}},{"$f":"IFERROR(IF(LeningNietBetaald*LeningGoed,Hoofdsom,\"\"), \"\")","v":{"v":96.36065054016515,"d":"€ 96.36"}},{"$f":"IFERROR(IF(LeningNietBetaald*LeningGoed,Rentebedrag,\"\"), \"\")","v":{"v":12.165627420315575,"d":"€ 12.17"}},{"$f":"IFERROR(IF(LeningNietBetaald*LeningGoed,Eindsaldo,\"\"), \"\")","v":{"v":2557.9580593468545,"d":"€ 2,557.96"}}]
[null,{"$f":"IFERROR(IF(LeningNietBetaald*LeningGoed,NummerBetaling,\"\"), \"\")","v":96},{"$f":"IFERROR(IF(LeningNietBetaald*LeningGoed,Betaaldatum,\"\"), \"\")","v":"2027-05-08"},{"$f":"IFERROR(IF(LeningNietBetaald*LeningGoed,WaardeLening,\"\"), \"\")","v":{"v":2557.9580593468545,"d":"€ 2,557.96"}},{"$f":"IFERROR(IF(LeningNietBetaald*LeningGoed,MaandelijkseBetaling,\"\"), \"\")","v":{"v":108.52627796048073,"d":"€ 108.53"}},{"$f":"IFERROR(IF(LeningNietBetaald*LeningGoed,Hoofdsom,\"\"), \"\")","v":{"v":96.80230352180759,"d":"€ 96.80"}},{"$f":"IFERROR(IF(LeningNietBetaald*LeningGoed,Rentebedrag,\"\"), \"\")","v":{"v":11.72397443867315,"d":"€ 11.72"}},{"$f":"IFERROR(IF(LeningNietBetaald*LeningGoed,Eindsaldo,\"\"), \"\")","v":{"v":2461.1557558250443,"d":"€ 2,461.16"}}]
[null,{"$f":"IFERROR(IF(LeningNietBetaald*LeningGoed,NummerBetaling,\"\"), \"\")","v":97},{"$f":"IFERROR(IF(LeningNietBetaald*LeningGoed,Betaaldatum,\"\"), \"\")","v":"2027-06-08"},{"$f":"IFERROR(IF(LeningNietBetaald*LeningGoed,WaardeLening,\"\"), \"\")","v":{"v":2461.1557558250443,"d":"€ 2,461.16"}},{"$f":"IFERROR(IF(LeningNietBetaald*LeningGoed,MaandelijkseBetaling,\"\"), \"\")","v":{"v":108.52627796048073,"d":"€ 108.53"}},{"$f":"IFERROR(IF(LeningNietBetaald*LeningGoed,Hoofdsom,\"\"), \"\")","v":{"v":97.24598074628253,"d":"€ 97.25"}},{"$f":"IFERROR(IF(LeningNietBetaald*LeningGoed,Rentebedrag,\"\"), \"\")","v":{"v":11.280297214198198,"d":"€ 11.28"}},{"$f":"IFERROR(IF(LeningNietBetaald*LeningGoed,Eindsaldo,\"\"), \"\")","v":{"v":2363.9097750787605,"d":"€ 2,363.91"}}]
[null,{"$f":"IFERROR(IF(LeningNietBetaald*LeningGoed,NummerBetaling,\"\"), \"\")","v":98},{"$f":"IFERROR(IF(LeningNietBetaald*LeningGoed,Betaaldatum,\"\"), \"\")","v":"2027-07-08"},{"$f":"IFERROR(IF(LeningNietBetaald*LeningGoed,WaardeLening,\"\"), \"\")","v":{"v":2363.9097750787605,"d":"€ 2,363.91"}},{"$f":"IFERROR(IF(LeningNietBetaald*LeningGoed,MaandelijkseBetaling,\"\"), \"\")","v":{"v":108.52627796048073,"d":"€ 108.53"}},{"$f":"IFERROR(IF(LeningNietBetaald*LeningGoed,Hoofdsom,\"\"), \"\")","v":{"v":97.69169149136965,"d":"€ 97.69"}},{"$f":"IFERROR(IF(LeningNietBetaald*LeningGoed,Rentebedrag,\"\"), \"\")","v":{"v":10.834586469111072,"d":"€ 10.83"}},{"$f":"IFERROR(IF(LeningNietBetaald*LeningGoed,Eindsaldo,\"\"), \"\")","v":{"v":2266.2180835873896,"d":"€ 2,266.22"}}]
[null,{"$f":"IFERROR(IF(LeningNietBetaald*LeningGoed,NummerBetaling,\"\"), \"\")","v":99},{"$f":"IFERROR(IF(LeningNietBetaald*LeningGoed,Betaaldatum,\"\"), \"\")","v":"2027-08-08"},{"$f":"IFERROR(IF(LeningNietBetaald*LeningGoed,WaardeLening,\"\"), \"\")","v":{"v":2266.2180835873896,"d":"€ 2,266.22"}},{"$f":"IFERROR(IF(LeningNietBetaald*LeningGoed,MaandelijkseBetaling,\"\"), \"\")","v":{"v":108.52627796048073,"d":"€ 108.53"}},{"$f":"IFERROR(IF(LeningNietBetaald*LeningGoed,Hoofdsom,\"\"), \"\")","v":{"v":98.13944507737176,"d":"€ 98.14"}},{"$f":"IFERROR(IF(LeningNietBetaald*LeningGoed,Rentebedrag,\"\"), \"\")","v":{"v":10.386832883108958,"d":"€ 10.39"}},{"$f":"IFERROR(IF(LeningNietBetaald*LeningGoed,Eindsaldo,\"\"), \"\")","v":{"v":2168.07863851002,"d":"€ 2,168.08"}}]
[null,{"$f":"IFERROR(IF(LeningNietBetaald*LeningGoed,NummerBetaling,\"\"), \"\")","v":100},{"$f":"IFERROR(IF(LeningNietBetaald*LeningGoed,Betaaldatum,\"\"), \"\")","v":"2027-09-08"},{"$f":"IFERROR(IF(LeningNietBetaald*LeningGoed,WaardeLening,\"\"), \"\")","v":{"v":2168.07863851002,"d":"€ 2,168.08"}},{"$f":"IFERROR(IF(LeningNietBetaald*LeningGoed,MaandelijkseBetaling,\"\"), \"\")","v":{"v":108.52627796048073,"d":"€ 108.53"}},{"$f":"IFERROR(IF(LeningNietBetaald*LeningGoed,Hoofdsom,\"\"), \"\")","v":{"v":98.58925086730973,"d":"€ 98.59"}},{"$f":"IFERROR(IF(LeningNietBetaald*LeningGoed,Rentebedrag,\"\"), \"\")","v":{"v":9.937027093171004,"d":"€ 9.94"}},{"$f":"IFERROR(IF(LeningNietBetaald*LeningGoed,Eindsaldo,\"\"), \"\")","v":{"v":2069.4893876427104,"d":"€ 2,069.49"}}]
[null,{"$f":"IFERROR(IF(LeningNietBetaald*LeningGoed,NummerBetaling,\"\"), \"\")","v":101},{"$f":"IFERROR(IF(LeningNietBetaald*LeningGoed,Betaaldatum,\"\"), \"\")","v":"2027-10-08"},{"$f":"IFERROR(IF(LeningNietBetaald*LeningGoed,WaardeLening,\"\"), \"\")","v":{"v":2069.4893876427104,"d":"€ 2,069.49"}},{"$f":"IFERROR(IF(LeningNietBetaald*LeningGoed,MaandelijkseBetaling,\"\"), \"\")","v":{"v":108.52627796048073,"d":"€ 108.53"}},{"$f":"IFERROR(IF(LeningNietBetaald*LeningGoed,Hoofdsom,\"\"), \"\")","v":{"v":99.04111826711822,"d":"€ 99.04"}},{"$f":"IFERROR(IF(LeningNietBetaald*LeningGoed,Rentebedrag,\"\"), \"\")","v":{"v":9.485159693362503,"d":"€ 9.49"}},{"$f":"IFERROR(IF(LeningNietBetaald*LeningGoed,Eindsaldo,\"\"), \"\")","v":{"v":1970.4482693755872,"d":"€ 1,970.45"}}]
[null,{"$f":"IFERROR(IF(LeningNietBetaald*LeningGoed,NummerBetaling,\"\"), \"\")","v":102},{"$f":"IFERROR(IF(LeningNietBetaald*LeningGoed,Betaaldatum,\"\"), \"\")","v":"2027-11-08"},{"$f":"IFERROR(IF(LeningNietBetaald*LeningGoed,WaardeLening,\"\"), \"\")","v":{"v":1970.4482693755872,"d":"€ 1,970.45"}},{"$f":"IFERROR(IF(LeningNietBetaald*LeningGoed,MaandelijkseBetaling,\"\"), \"\")","v":{"v":108.52627796048073,"d":"€ 108.53"}},{"$f":"IFERROR(IF(LeningNietBetaald*LeningGoed,Hoofdsom,\"\"), \"\")","v":{"v":99.49505672584253,"d":"€ 99.50"}},{"$f":"IFERROR(IF(LeningNietBetaald*LeningGoed,Rentebedrag,\"\"), \"\")","v":{"v":9.03122123463821,"d":"€ 9.03"}},{"$f":"IFERROR(IF(LeningNietBetaald*LeningGoed,Eindsaldo,\"\"), \"\")","v":{"v":1870.9532126497452,"d":"€ 1,870.95"}}]
[null,{"$f":"IFERROR(IF(LeningNietBetaald*LeningGoed,NummerBetaling,\"\"), \"\")","v":103},{"$f":"IFERROR(IF(LeningNietBetaald*LeningGoed,Betaaldatum,\"\"), \"\")","v":"2027-12-08"},{"$f":"IFERROR(IF(LeningNietBetaald*LeningGoed,WaardeLening,\"\"), \"\")","v":{"v":1870.9532126497452,"d":"€ 1,870.95"}},{"$f":"IFERROR(IF(LeningNietBetaald*LeningGoed,MaandelijkseBetaling,\"\"), \"\")","v":{"v":108.52627796048073,"d":"€ 108.53"}},{"$f":"IFERROR(IF(LeningNietBetaald*LeningGoed,Hoofdsom,\"\"), \"\")","v":{"v":99.95107573583596,"d":"€ 99.95"}},{"$f":"IFERROR(IF(LeningNietBetaald*LeningGoed,Rentebedrag,\"\"), \"\")","v":{"v":8.575202224644766,"d":"€ 8.58"}},{"$f":"IFERROR(IF(LeningNietBetaald*LeningGoed,Eindsaldo,\"\"), \"\")","v":{"v":1771.0021369139104,"d":"€ 1,771.00"}}]
[null,{"$f":"IFERROR(IF(LeningNietBetaald*LeningGoed,NummerBetaling,\"\"), \"\")","v":104},{"$f":"IFERROR(IF(LeningNietBetaald*LeningGoed,Betaaldatum,\"\"), \"\")","v":"2028-01-08"},{"$f":"IFERROR(IF(LeningNietBetaald*LeningGoed,WaardeLening,\"\"), \"\")","v":{"v":1771.0021369139104,"d":"€ 1,771.00"}},{"$f":"IFERROR(IF(LeningNietBetaald*LeningGoed,MaandelijkseBetaling,\"\"), \"\")","v":{"v":108.52627796048073,"d":"€ 108.53"}},{"$f":"IFERROR(IF(LeningNietBetaald*LeningGoed,Hoofdsom,\"\"), \"\")","v":{"v":100.40918483295853,"d":"€ 100.41"}},{"$f":"IFERROR(IF(LeningNietBetaald*LeningGoed,Rentebedrag,\"\"), \"\")","v":{"v":8.117093127522184,"d":"€ 8.12"}},{"$f":"IFERROR(IF(LeningNietBetaald*LeningGoed,Eindsaldo,\"\"), \"\")","v":{"v":1670.5929520809568,"d":"€ 1,670.59"}}]
[null,{"$f":"IFERROR(IF(LeningNietBetaald*LeningGoed,NummerBetaling,\"\"), \"\")","v":105},{"$f":"IFERROR(IF(LeningNietBetaald*LeningGoed,Betaaldatum,\"\"), \"\")","v":"2028-02-08"},{"$f":"IFERROR(IF(LeningNietBetaald*LeningGoed,WaardeLening,\"\"), \"\")","v":{"v":1670.5929520809568,"d":"€ 1,670.59"}},{"$f":"IFERROR(IF(LeningNietBetaald*LeningGoed,MaandelijkseBetaling,\"\"), \"\")","v":{"v":108.52627796048073,"d":"€ 108.53"}},{"$f":"IFERROR(IF(LeningNietBetaald*LeningGoed,Hoofdsom,\"\"), \"\")","v":{"v":100.86939359677626,"d":"€ 100.87"}},{"$f":"IFERROR(IF(LeningNietBetaald*LeningGoed,Rentebedrag,\"\"), \"\")","v":{"v":7.656884363704458,"d":"€ 7.66"}},{"$f":"IFERROR(IF(LeningNietBetaald*LeningGoed,Eindsaldo,\"\"), \"\")","v":{"v":1569.7235584841746,"d":"€ 1,569.72"}}]
[null,{"$f":"IFERROR(IF(LeningNietBetaald*LeningGoed,NummerBetaling,\"\"), \"\")","v":106},{"$f":"IFERROR(IF(LeningNietBetaald*LeningGoed,Betaaldatum,\"\"), \"\")","v":"2028-03-08"},{"$f":"IFERROR(IF(LeningNietBetaald*LeningGoed,WaardeLening,\"\"), \"\")","v":{"v":1569.7235584841746,"d":"€ 1,569.72"}},{"$f":"IFERROR(IF(LeningNietBetaald*LeningGoed,MaandelijkseBetaling,\"\"), \"\")","v":{"v":108.52627796048073,"d":"€ 108.53"}},{"$f":"IFERROR(IF(LeningNietBetaald*LeningGoed,Hoofdsom,\"\"), \"\")","v":{"v":101.3317116507615,"d":"€ 101.33"}},{"$f":"IFERROR(IF(LeningNietBetaald*LeningGoed,Rentebedrag,\"\"), \"\")","v":{"v":7.1945663097192325,"d":"€ 7.19"}},{"$f":"IFERROR(IF(LeningNietBetaald*LeningGoed,Eindsaldo,\"\"), \"\")","v":{"v":1468.3918468334177,"d":"€ 1,468.39"}}]
[null,{"$f":"IFERROR(IF(LeningNietBetaald*LeningGoed,NummerBetaling,\"\"), \"\")","v":107},{"$f":"IFERROR(IF(LeningNietBetaald*LeningGoed,Betaaldatum,\"\"), \"\")","v":"2028-04-08"},{"$f":"IFERROR(IF(LeningNietBetaald*LeningGoed,WaardeLening,\"\"), \"\")","v":{"v":1468.3918468334177,"d":"€ 1,468.39"}},{"$f":"IFERROR(IF(LeningNietBetaald*LeningGoed,MaandelijkseBetaling,\"\"), \"\")","v":{"v":108.52627796048073,"d":"€ 108.53"}},{"$f":"IFERROR(IF(LeningNietBetaald*LeningGoed,Hoofdsom,\"\"), \"\")","v":{"v":101.79614866249415,"d":"€ 101.80"}},{"$f":"IFERROR(IF(LeningNietBetaald*LeningGoed,Rentebedrag,\"\"), \"\")","v":{"v":6.730129297986575,"d":"€ 6.73"}},{"$f":"IFERROR(IF(LeningNietBetaald*LeningGoed,Eindsaldo,\"\"), \"\")","v":{"v":1366.5956981709169,"d":"€ 1,366.60"}}]
[null,{"$f":"IFERROR(IF(LeningNietBetaald*LeningGoed,NummerBetaling,\"\"), \"\")","v":108},{"$f":"IFERROR(IF(LeningNietBetaald*LeningGoed,Betaaldatum,\"\"), \"\")","v":"2028-05-08"},{"$f":"IFERROR(IF(LeningNietBetaald*LeningGoed,WaardeLening,\"\"), \"\")","v":{"v":1366.5956981709169,"d":"€ 1,366.60"}},{"$f":"IFERROR(IF(LeningNietBetaald*LeningGoed,MaandelijkseBetaling,\"\"), \"\")","v":{"v":108.52627796048073,"d":"€ 108.53"}},{"$f":"IFERROR(IF(LeningNietBetaald*LeningGoed,Hoofdsom,\"\"), \"\")","v":{"v":102.2627143438639,"d":"€ 102.26"}},{"$f":"IFERROR(IF(LeningNietBetaald*LeningGoed,Rentebedrag,\"\"), \"\")","v":{"v":6.2635636166168105,"d":"€ 6.26"}},{"$f":"IFERROR(IF(LeningNietBetaald*LeningGoed,Eindsaldo,\"\"), \"\")","v":{"v":1264.3329838270583,"d":"€ 1,264.33"}}]
[null,{"$f":"IFERROR(IF(LeningNietBetaald*LeningGoed,NummerBetaling,\"\"), \"\")","v":109},{"$f":"IFERROR(IF(LeningNietBetaald*LeningGoed,Betaaldatum,\"\"), \"\")","v":"2028-06-08"},{"$f":"IFERROR(IF(LeningNietBetaald*LeningGoed,WaardeLening,\"\"), \"\")","v":{"v":1264.3329838270583,"d":"€ 1,264.33"}},{"$f":"IFERROR(IF(LeningNietBetaald*LeningGoed,MaandelijkseBetaling,\"\"), \"\")","v":{"v":108.52627796048073,"d":"€ 108.53"}},{"$f":"IFERROR(IF(LeningNietBetaald*LeningGoed,Hoofdsom,\"\"), \"\")","v":{"v":102.73141845127329,"d":"€ 102.73"}},{"$f":"IFERROR(IF(LeningNietBetaald*LeningGoed,Rentebedrag,\"\"), \"\")","v":{"v":5.794859509207435,"d":"€ 5.79"}},{"$f":"IFERROR(IF(LeningNietBetaald*LeningGoed,Eindsaldo,\"\"), \"\")","v":{"v":1161.6015653757859,"d":"€ 1,161.60"}}]
[null,{"$f":"IFERROR(IF(LeningNietBetaald*LeningGoed,NummerBetaling,\"\"), \"\")","v":110},{"$f":"IFERROR(IF(LeningNietBetaald*LeningGoed,Betaaldatum,\"\"), \"\")","v":"2028-07-08"},{"$f":"IFERROR(IF(LeningNietBetaald*LeningGoed,WaardeLening,\"\"), \"\")","v":{"v":1161.6015653757859,"d":"€ 1,161.60"}},{"$f":"IFERROR(IF(LeningNietBetaald*LeningGoed,MaandelijkseBetaling,\"\"), \"\")","v":{"v":108.52627796048073,"d":"€ 108.53"}},{"$f":"IFERROR(IF(LeningNietBetaald*LeningGoed,Hoofdsom,\"\"), \"\")","v":{"v":103.20227078584162,"d":"€ 103.20"}},{"$f":"IFERROR(IF(LeningNietBetaald*LeningGoed,Rentebedrag,\"\"), \"\")","v":{"v":5.324007174639099,"d":"€ 5.32"}},{"$f":"IFERROR(IF(LeningNietBetaald*LeningGoed,Eindsaldo,\"\"), \"\")","v":{"v":1058.3992945899427,"d":"€ 1,058.40"}}]
[null,{"$f":"IFERROR(IF(LeningNietBetaald*LeningGoed,NummerBetaling,\"\"), \"\")","v":111},{"$f":"IFERROR(IF(LeningNietBetaald*LeningGoed,Betaaldatum,\"\"), \"\")","v":"2028-08-08"},{"$f":"IFERROR(IF(LeningNietBetaald*LeningGoed,WaardeLening,\"\"), \"\")","v":{"v":1058.3992945899427,"d":"€ 1,058.40"}},{"$f":"IFERROR(IF(LeningNietBetaald*LeningGoed,MaandelijkseBetaling,\"\"), \"\")","v":{"v":108.52627796048073,"d":"€ 108.53"}},{"$f":"IFERROR(IF(LeningNietBetaald*LeningGoed,Hoofdsom,\"\"), \"\")","v":{"v":103.67528119361006,"d":"€ 103.68"}},{"$f":"IFERROR(IF(LeningNietBetaald*LeningGoed,Rentebedrag,\"\"), \"\")","v":{"v":4.850996766870658,"d":"€ 4.85"}},{"$f":"IFERROR(IF(LeningNietBetaald*LeningGoed,Eindsaldo,\"\"), \"\")","v":{"v":954.7240133963332,"d":"€ 954.72"}}]
[null,{"$f":"IFERROR(IF(LeningNietBetaald*LeningGoed,NummerBetaling,\"\"), \"\")","v":112},{"$f":"IFERROR(IF(LeningNietBetaald*LeningGoed,Betaaldatum,\"\"), \"\")","v":"2028-09-08"},{"$f":"IFERROR(IF(LeningNietBetaald*LeningGoed,WaardeLening,\"\"), \"\")","v":{"v":954.7240133963332,"d":"€ 954.72"}},{"$f":"IFERROR(IF(LeningNietBetaald*LeningGoed,MaandelijkseBetaling,\"\"), \"\")","v":{"v":108.52627796048073,"d":"€ 108.53"}},{"$f":"IFERROR(IF(LeningNietBetaald*LeningGoed,Hoofdsom,\"\"), \"\")","v":{"v":104.15045956574744,"d":"€ 104.15"}},{"$f":"IFERROR(IF(LeningNietBetaald*LeningGoed,Rentebedrag,\"\"), \"\")","v":{"v":4.375818394733279,"d":"€ 4.38"}},{"$f":"IFERROR(IF(LeningNietBetaald*LeningGoed,Eindsaldo,\"\"), \"\")","v":{"v":850.5735538305817,"d":"€ 850.57"}}]
[null,{"$f":"IFERROR(IF(LeningNietBetaald*LeningGoed,NummerBetaling,\"\"), \"\")","v":113},{"$f":"IFERROR(IF(LeningNietBetaald*LeningGoed,Betaaldatum,\"\"), \"\")","v":"2028-10-08"},{"$f":"IFERROR(IF(LeningNietBetaald*LeningGoed,WaardeLening,\"\"), \"\")","v":{"v":850.5735538305817,"d":"€ 850.57"}},{"$f":"IFERROR(IF(LeningNietBetaald*LeningGoed,MaandelijkseBetaling,\"\"), \"\")","v":{"v":108.52627796048073,"d":"€ 108.53"}},{"$f":"IFERROR(IF(LeningNietBetaald*LeningGoed,Hoofdsom,\"\"), \"\")","v":{"v":104.62781583875713,"d":"€ 104.63"}},{"$f":"IFERROR(IF(LeningNietBetaald*LeningGoed,Rentebedrag,\"\"), \"\")","v":{"v":3.8984621217236026,"d":"€ 3.90"}},{"$f":"IFERROR(IF(LeningNietBetaald*LeningGoed,Eindsaldo,\"\"), \"\")","v":{"v":745.945737991824,"d":"€ 745.95"}}]
[null,{"$f":"IFERROR(IF(LeningNietBetaald*LeningGoed,NummerBetaling,\"\"), \"\")","v":114},{"$f":"IFERROR(IF(LeningNietBetaald*LeningGoed,Betaaldatum,\"\"), \"\")","v":"2028-11-08"},{"$f":"IFERROR(IF(LeningNietBetaald*LeningGoed,WaardeLening,\"\"), \"\")","v":{"v":745.945737991824,"d":"€ 745.95"}},{"$f":"IFERROR(IF(LeningNietBetaald*LeningGoed,MaandelijkseBetaling,\"\"), \"\")","v":{"v":108.52627796048073,"d":"€ 108.53"}},{"$f":"IFERROR(IF(LeningNietBetaald*LeningGoed,Hoofdsom,\"\"), \"\")","v":{"v":105.10735999468474,"d":"€ 105.11"}},{"$f":"IFERROR(IF(LeningNietBetaald*LeningGoed,Rentebedrag,\"\"), \"\")","v":{"v":3.4189179657959654,"d":"€ 3.42"}},{"$f":"IFERROR(IF(LeningNietBetaald*LeningGoed,Eindsaldo,\"\"), \"\")","v":{"v":640.8383779971373,"d":"€ 640.84"}}]
[null,{"$f":"IFERROR(IF(LeningNietBetaald*LeningGoed,NummerBetaling,\"\"), \"\")","v":115},{"$f":"IFERROR(IF(LeningNietBetaald*LeningGoed,Betaaldatum,\"\"), \"\")","v":"2028-12-08"},{"$f":"IFERROR(IF(LeningNietBetaald*LeningGoed,WaardeLening,\"\"), \"\")","v":{"v":640.8383779971373,"d":"€ 640.84"}},{"$f":"IFERROR(IF(LeningNietBetaald*LeningGoed,MaandelijkseBetaling,\"\"), \"\")","v":{"v":108.52627796048073,"d":"€ 108.53"}},{"$f":"IFERROR(IF(LeningNietBetaald*LeningGoed,Hoofdsom,\"\"), \"\")","v":{"v":105.58910206132707,"d":"€ 105.59"}},{"$f":"IFERROR(IF(LeningNietBetaald*LeningGoed,Rentebedrag,\"\"), \"\")","v":{"v":2.9371758991536607,"d":"€ 2.94"}},{"$f":"IFERROR(IF(LeningNietBetaald*LeningGoed,Eindsaldo,\"\"), \"\")","v":{"v":535.2492759358101,"d":"€ 535.25"}}]
[null,{"$f":"IFERROR(IF(LeningNietBetaald*LeningGoed,NummerBetaling,\"\"), \"\")","v":116},{"$f":"IFERROR(IF(LeningNietBetaald*LeningGoed,Betaaldatum,\"\"), \"\")","v":"2029-01-08"},{"$f":"IFERROR(IF(LeningNietBetaald*LeningGoed,WaardeLening,\"\"), \"\")","v":{"v":535.2492759358101,"d":"€ 535.25"}},{"$f":"IFERROR(IF(LeningNietBetaald*LeningGoed,MaandelijkseBetaling,\"\"), \"\")","v":{"v":108.52627796048073,"d":"€ 108.53"}},{"$f":"IFERROR(IF(LeningNietBetaald*LeningGoed,Hoofdsom,\"\"), \"\")","v":{"v":106.07305211244147,"d":"€ 106.07"}},{"$f":"IFERROR(IF(LeningNietBetaald*LeningGoed,Rentebedrag,\"\"), \"\")","v":{"v":2.4532258480392444,"d":"€ 2.45"}},{"$f":"IFERROR(IF(LeningNietBetaald*LeningGoed,Eindsaldo,\"\"), \"\")","v":{"v":429.1762238233714,"d":"€ 429.18"}}]
[null,{"$f":"IFERROR(IF(LeningNietBetaald*LeningGoed,NummerBetaling,\"\"), \"\")","v":117},{"$f":"IFERROR(IF(LeningNietBetaald*LeningGoed,Betaaldatum,\"\"), \"\")","v":"2029-02-08"},{"$f":"IFERROR(IF(LeningNietBetaald*LeningGoed,WaardeLening,\"\"), \"\")","v":{"v":429.1762238233714,"d":"€ 429.18"}},{"$f":"IFERROR(IF(LeningNietBetaald*LeningGoed,MaandelijkseBetaling,\"\"), \"\")","v":{"v":108.52627796048073,"d":"€ 108.53"}},{"$f":"IFERROR(IF(LeningNietBetaald*LeningGoed,Hoofdsom,\"\"), \"\")","v":{"v":106.55922026795685,"d":"€ 106.56"}},{"$f":"IFERROR(IF(LeningNietBetaald*LeningGoed,Rentebedrag,\"\"), \"\")","v":{"v":1.9670576925238876,"d":"€ 1.97"}},{"$f":"IFERROR(IF(LeningNietBetaald*LeningGoed,Eindsaldo,\"\"), \"\")","v":{"v":322.61700355541325,"d":"€ 322.62"}}]
[null,{"$f":"IFERROR(IF(LeningNietBetaald*LeningGoed,NummerBetaling,\"\"), \"\")","v":118},{"$f":"IFERROR(IF(LeningNietBetaald*LeningGoed,Betaaldatum,\"\"), \"\")","v":"2029-03-08"},{"$f":"IFERROR(IF(LeningNietBetaald*LeningGoed,WaardeLening,\"\"), \"\")","v":{"v":322.61700355541325,"d":"€ 322.62"}},{"$f":"IFERROR(IF(LeningNietBetaald*LeningGoed,MaandelijkseBetaling,\"\"), \"\")","v":{"v":108.52627796048073,"d":"€ 108.53"}},{"$f":"IFERROR(IF(LeningNietBetaald*LeningGoed,Hoofdsom,\"\"), \"\")","v":{"v":107.04761669418498,"d":"€ 107.05"}},{"$f":"IFERROR(IF(LeningNietBetaald*LeningGoed,Rentebedrag,\"\"), \"\")","v":{"v":1.4786612662957521,"d":"€ 1.48"}},{"$f":"IFERROR(IF(LeningNietBetaald*LeningGoed,Eindsaldo,\"\"), \"\")","v":{"v":215.5693868612252,"d":"€ 215.57"}}]
[null,{"$f":"IFERROR(IF(LeningNietBetaald*LeningGoed,NummerBetaling,\"\"), \"\")","v":119},{"$f":"IFERROR(IF(LeningNietBetaald*LeningGoed,Betaaldatum,\"\"), \"\")","v":"2029-04-08"},{"$f":"IFERROR(IF(LeningNietBetaald*LeningGoed,WaardeLening,\"\"), \"\")","v":{"v":215.5693868612252,"d":"€ 215.57"}},{"$f":"IFERROR(IF(LeningNietBetaald*LeningGoed,MaandelijkseBetaling,\"\"), \"\")","v":{"v":108.52627796048073,"d":"€ 108.53"}},{"$f":"IFERROR(IF(LeningNietBetaald*LeningGoed,Hoofdsom,\"\"), \"\")","v":{"v":107.5382516040333,"d":"€ 107.54"}},{"$f":"IFERROR(IF(LeningNietBetaald*LeningGoed,Rentebedrag,\"\"), \"\")","v":{"v":0.9880263564474041,"d":"€ 0.99"}},{"$f":"IFERROR(IF(LeningNietBetaald*LeningGoed,Eindsaldo,\"\"), \"\")","v":{"v":108.03113525719527,"d":"€ 108.03"}}]
[null,{"$f":"IFERROR(IF(LeningNietBetaald*LeningGoed,NummerBetaling,\"\"), \"\")","v":120},{"$f":"IFERROR(IF(LeningNietBetaald*LeningGoed,Betaaldatum,\"\"), \"\")","v":"2029-05-08"},{"$f":"IFERROR(IF(LeningNietBetaald*LeningGoed,WaardeLening,\"\"), \"\")","v":{"v":108.03113525719527,"d":"€ 108.03"}},{"$f":"IFERROR(IF(LeningNietBetaald*LeningGoed,MaandelijkseBetaling,\"\"), \"\")","v":{"v":108.52627796048073,"d":"€ 108.53"}},{"$f":"IFERROR(IF(LeningNietBetaald*LeningGoed,Hoofdsom,\"\"), \"\")","v":{"v":108.03113525721848,"d":"€ 108.03"}},{"$f":"IFERROR(IF(LeningNietBetaald*LeningGoed,Rentebedrag,\"\"), \"\")","v":{"v":0.49514270326225146,"d":"€ 0.50"}},{"$f":"IFERROR(IF(LeningNietBetaald*LeningGoed,Eindsaldo,\"\"), \"\")","v":{"v":-2.546585164964199e-11,"d":"-€ 0.00"}}]
[null,{"$f":"IFERROR(IF(LeningNietBetaald*LeningGoed,NummerBetaling,\"\"), \"\")","v":""},{"$f":"IFERROR(IF(LeningNietBetaald*LeningGoed,Betaaldatum,\"\"), \"\")","v":""},{"$f":"IFERROR(IF(LeningNietBetaald*LeningGoed,WaardeLening,\"\"), \"\")","v":""},{"$f":"IFERROR(IF(LeningNietBetaald*LeningGoed,MaandelijkseBetaling,\"\"), \"\")","v":""},{"$f":"IFERROR(IF(LeningNietBetaald*LeningGoed,Hoofdsom,\"\"), \"\")","v":""},{"$f":"IFERROR(IF(LeningNietBetaald*LeningGoed,Rentebedrag,\"\"), \"\")","v":""},{"$f":"IFERROR(IF(LeningNietBetaald*LeningGoed,Eindsaldo,\"\"), \"\")","v":""}]
[null,{"$f":"IFERROR(IF(LeningNietBetaald*LeningGoed,NummerBetaling,\"\"), \"\")","v":""},{"$f":"IFERROR(IF(LeningNietBetaald*LeningGoed,Betaaldatum,\"\"), \"\")","v":""},{"$f":"IFERROR(IF(LeningNietBetaald*LeningGoed,WaardeLening,\"\"), \"\")","v":""},{"$f":"IFERROR(IF(LeningNietBetaald*LeningGoed,MaandelijkseBetaling,\"\"), \"\")","v":""},{"$f":"IFERROR(IF(LeningNietBetaald*LeningGoed,Hoofdsom,\"\"), \"\")","v":""},{"$f":"IFERROR(IF(LeningNietBetaald*LeningGoed,Rentebedrag,\"\"), \"\")","v":""},{"$f":"IFERROR(IF(LeningNietBetaald*LeningGoed,Eindsaldo,\"\"), \"\")","v":""}]
[null,{"$f":"IFERROR(IF(LeningNietBetaald*LeningGoed,NummerBetaling,\"\"), \"\")","v":""},{"$f":"IFERROR(IF(LeningNietBetaald*LeningGoed,Betaaldatum,\"\"), \"\")","v":""},{"$f":"IFERROR(IF(LeningNietBetaald*LeningGoed,WaardeLening,\"\"), \"\")","v":""},{"$f":"IFERROR(IF(LeningNietBetaald*LeningGoed,MaandelijkseBetaling,\"\"), \"\")","v":""},{"$f":"IFERROR(IF(LeningNietBetaald*LeningGoed,Hoofdsom,\"\"), \"\")","v":""},{"$f":"IFERROR(IF(LeningNietBetaald*LeningGoed,Rentebedrag,\"\"), \"\")","v":""},{"$f":"IFERROR(IF(LeningNietBetaald*LeningGoed,Eindsaldo,\"\"), \"\")","v":""}]
[null,{"$f":"IFERROR(IF(LeningNietBetaald*LeningGoed,NummerBetaling,\"\"), \"\")","v":""},{"$f":"IFERROR(IF(LeningNietBetaald*LeningGoed,Betaaldatum,\"\"), \"\")","v":""},{"$f":"IFERROR(IF(LeningNietBetaald*LeningGoed,WaardeLening,\"\"), \"\")","v":""},{"$f":"IFERROR(IF(LeningNietBetaald*LeningGoed,MaandelijkseBetaling,\"\"), \"\")","v":""},{"$f":"IFERROR(IF(LeningNietBetaald*LeningGoed,Hoofdsom,\"\"), \"\")","v":""},{"$f":"IFERROR(IF(LeningNietBetaald*LeningGoed,Rentebedrag,\"\"), \"\")","v":""},{"$f":"IFERROR(IF(LeningNietBetaald*LeningGoed,Eindsaldo,\"\"), \"\")","v":""}]
[null,{"$f":"IFERROR(IF(LeningNietBetaald*LeningGoed,NummerBetaling,\"\"), \"\")","v":""},{"$f":"IFERROR(IF(LeningNietBetaald*LeningGoed,Betaaldatum,\"\"), \"\")","v":""},{"$f":"IFERROR(IF(LeningNietBetaald*LeningGoed,WaardeLening,\"\"), \"\")","v":""},{"$f":"IFERROR(IF(LeningNietBetaald*LeningGoed,MaandelijkseBetaling,\"\"), \"\")","v":""},{"$f":"IFERROR(IF(LeningNietBetaald*LeningGoed,Hoofdsom,\"\"), \"\")","v":""},{"$f":"IFERROR(IF(LeningNietBetaald*LeningGoed,Rentebedrag,\"\"), \"\")","v":""},{"$f":"IFERROR(IF(LeningNietBetaald*LeningGoed,Eindsaldo,\"\"), \"\")","v":""}]
[null,{"$f":"IFERROR(IF(LeningNietBetaald*LeningGoed,NummerBetaling,\"\"), \"\")","v":""},{"$f":"IFERROR(IF(LeningNietBetaald*LeningGoed,Betaaldatum,\"\"), \"\")","v":""},{"$f":"IFERROR(IF(LeningNietBetaald*LeningGoed,WaardeLening,\"\"), \"\")","v":""},{"$f":"IFERROR(IF(LeningNietBetaald*LeningGoed,MaandelijkseBetaling,\"\"), \"\")","v":""},{"$f":"IFERROR(IF(LeningNietBetaald*LeningGoed,Hoofdsom,\"\"), \"\")","v":""},{"$f":"IFERROR(IF(LeningNietBetaald*LeningGoed,Rentebedrag,\"\"), \"\")","v":""},{"$f":"IFERROR(IF(LeningNietBetaald*LeningGoed,Eindsaldo,\"\"), \"\")","v":""}]
[null,{"$f":"IFERROR(IF(LeningNietBetaald*LeningGoed,NummerBetaling,\"\"), \"\")","v":""},{"$f":"IFERROR(IF(LeningNietBetaald*LeningGoed,Betaaldatum,\"\"), \"\")","v":""},{"$f":"IFERROR(IF(LeningNietBetaald*LeningGoed,WaardeLening,\"\"), \"\")","v":""},{"$f":"IFERROR(IF(LeningNietBetaald*LeningGoed,MaandelijkseBetaling,\"\"), \"\")","v":""},{"$f":"IFERROR(IF(LeningNietBetaald*LeningGoed,Hoofdsom,\"\"), \"\")","v":""},{"$f":"IFERROR(IF(LeningNietBetaald*LeningGoed,Rentebedrag,\"\"), \"\")","v":""},{"$f":"IFERROR(IF(LeningNietBetaald*LeningGoed,Eindsaldo,\"\"), \"\")","v":""}]
[null,{"$f":"IFERROR(IF(LeningNietBetaald*LeningGoed,NummerBetaling,\"\"), \"\")","v":""},{"$f":"IFERROR(IF(LeningNietBetaald*LeningGoed,Betaaldatum,\"\"), \"\")","v":""},{"$f":"IFERROR(IF(LeningNietBetaald*LeningGoed,WaardeLening,\"\"), \"\")","v":""},{"$f":"IFERROR(IF(LeningNietBetaald*LeningGoed,MaandelijkseBetaling,\"\"), \"\")","v":""},{"$f":"IFERROR(IF(LeningNietBetaald*LeningGoed,Hoofdsom,\"\"), \"\")","v":""},{"$f":"IFERROR(IF(LeningNietBetaald*LeningGoed,Rentebedrag,\"\"), \"\")","v":""},{"$f":"IFERROR(IF(LeningNietBetaald*LeningGoed,Eindsaldo,\"\"), \"\")","v":""}]
[null,{"$f":"IFERROR(IF(LeningNietBetaald*LeningGoed,NummerBetaling,\"\"), \"\")","v":""},{"$f":"IFERROR(IF(LeningNietBetaald*LeningGoed,Betaaldatum,\"\"), \"\")","v":""},{"$f":"IFERROR(IF(LeningNietBetaald*LeningGoed,WaardeLening,\"\"), \"\")","v":""},{"$f":"IFERROR(IF(LeningNietBetaald*LeningGoed,MaandelijkseBetaling,\"\"), \"\")","v":""},{"$f":"IFERROR(IF(LeningNietBetaald*LeningGoed,Hoofdsom,\"\"), \"\")","v":""},{"$f":"IFERROR(IF(LeningNietBetaald*LeningGoed,Rentebedrag,\"\"), \"\")","v":""},{"$f":"IFERROR(IF(LeningNietBetaald*LeningGoed,Eindsaldo,\"\"), \"\")","v":""}]
[null,{"$f":"IFERROR(IF(LeningNietBetaald*LeningGoed,NummerBetaling,\"\"), \"\")","v":""},{"$f":"IFERROR(IF(LeningNietBetaald*LeningGoed,Betaaldatum,\"\"), \"\")","v":""},{"$f":"IFERROR(IF(LeningNietBetaald*LeningGoed,WaardeLening,\"\"), \"\")","v":""},{"$f":"IFERROR(IF(LeningNietBetaald*LeningGoed,MaandelijkseBetaling,\"\"), \"\")","v":""},{"$f":"IFERROR(IF(LeningNietBetaald*LeningGoed,Hoofdsom,\"\"), \"\")","v":""},{"$f":"IFERROR(IF(LeningNietBetaald*LeningGoed,Rentebedrag,\"\"), \"\")","v":""},{"$f":"IFERROR(IF(LeningNietBetaald*LeningGoed,Eindsaldo,\"\"), \"\")","v":""}]
[null,{"$f":"IFERROR(IF(LeningNietBetaald*LeningGoed,NummerBetaling,\"\"), \"\")","v":""},{"$f":"IFERROR(IF(LeningNietBetaald*LeningGoed,Betaaldatum,\"\"), \"\")","v":""},{"$f":"IFERROR(IF(LeningNietBetaald*LeningGoed,WaardeLening,\"\"), \"\")","v":""},{"$f":"IFERROR(IF(LeningNietBetaald*LeningGoed,MaandelijkseBetaling,\"\"), \"\")","v":""},{"$f":"IFERROR(IF(LeningNietBetaald*LeningGoed,Hoofdsom,\"\"), \"\")","v":""},{"$f":"IFERROR(IF(LeningNietBetaald*LeningGoed,Rentebedrag,\"\"), \"\")","v":""},{"$f":"IFERROR(IF(LeningNietBetaald*LeningGoed,Eindsaldo,\"\"), \"\")","v":""}]
[null,{"$f":"IFERROR(IF(LeningNietBetaald*LeningGoed,NummerBetaling,\"\"), \"\")","v":""},{"$f":"IFERROR(IF(LeningNietBetaald*LeningGoed,Betaaldatum,\"\"), \"\")","v":""},{"$f":"IFERROR(IF(LeningNietBetaald*LeningGoed,WaardeLening,\"\"), \"\")","v":""},{"$f":"IFERROR(IF(LeningNietBetaald*LeningGoed,MaandelijkseBetaling,\"\"), \"\")","v":""},{"$f":"IFERROR(IF(LeningNietBetaald*LeningGoed,Hoofdsom,\"\"), \"\")","v":""},{"$f":"IFERROR(IF(LeningNietBetaald*LeningGoed,Rentebedrag,\"\"), \"\")","v":""},{"$f":"IFERROR(IF(LeningNietBetaald*LeningGoed,Eindsaldo,\"\"), \"\")","v":""}]
[null,{"$f":"IFERROR(IF(LeningNietBetaald*LeningGoed,NummerBetaling,\"\"), \"\")","v":""},{"$f":"IFERROR(IF(LeningNietBetaald*LeningGoed,Betaaldatum,\"\"), \"\")","v":""},{"$f":"IFERROR(IF(LeningNietBetaald*LeningGoed,WaardeLening,\"\"), \"\")","v":""},{"$f":"IFERROR(IF(LeningNietBetaald*LeningGoed,MaandelijkseBetaling,\"\"), \"\")","v":""},{"$f":"IFERROR(IF(LeningNietBetaald*LeningGoed,Hoofdsom,\"\"), \"\")","v":""},{"$f":"IFERROR(IF(LeningNietBetaald*LeningGoed,Rentebedrag,\"\"), \"\")","v":""},{"$f":"IFERROR(IF(LeningNietBetaald*LeningGoed,Eindsaldo,\"\"), \"\")","v":""}]
[null,{"$f":"IFERROR(IF(LeningNietBetaald*LeningGoed,NummerBetaling,\"\"), \"\")","v":""},{"$f":"IFERROR(IF(LeningNietBetaald*LeningGoed,Betaaldatum,\"\"), \"\")","v":""},{"$f":"IFERROR(IF(LeningNietBetaald*LeningGoed,WaardeLening,\"\"), \"\")","v":""},{"$f":"IFERROR(IF(LeningNietBetaald*LeningGoed,MaandelijkseBetaling,\"\"), \"\")","v":""},{"$f":"IFERROR(IF(LeningNietBetaald*LeningGoed,Hoofdsom,\"\"), \"\")","v":""},{"$f":"IFERROR(IF(LeningNietBetaald*LeningGoed,Rentebedrag,\"\"), \"\")","v":""},{"$f":"IFERROR(IF(LeningNietBetaald*LeningGoed,Eindsaldo,\"\"), \"\")","v":""}]
[null,{"$f":"IFERROR(IF(LeningNietBetaald*LeningGoed,NummerBetaling,\"\"), \"\")","v":""},{"$f":"IFERROR(IF(LeningNietBetaald*LeningGoed,Betaaldatum,\"\"), \"\")","v":""},{"$f":"IFERROR(IF(LeningNietBetaald*LeningGoed,WaardeLening,\"\"), \"\")","v":""},{"$f":"IFERROR(IF(LeningNietBetaald*LeningGoed,MaandelijkseBetaling,\"\"), \"\")","v":""},{"$f":"IFERROR(IF(LeningNietBetaald*LeningGoed,Hoofdsom,\"\"), \"\")","v":""},{"$f":"IFERROR(IF(LeningNietBetaald*LeningGoed,Rentebedrag,\"\"), \"\")","v":""},{"$f":"IFERROR(IF(LeningNietBetaald*LeningGoed,Eindsaldo,\"\"), \"\")","v":""}]
[null,{"$f":"IFERROR(IF(LeningNietBetaald*LeningGoed,NummerBetaling,\"\"), \"\")","v":""},{"$f":"IFERROR(IF(LeningNietBetaald*LeningGoed,Betaaldatum,\"\"), \"\")","v":""},{"$f":"IFERROR(IF(LeningNietBetaald*LeningGoed,WaardeLening,\"\"), \"\")","v":""},{"$f":"IFERROR(IF(LeningNietBetaald*LeningGoed,MaandelijkseBetaling,\"\"), \"\")","v":""},{"$f":"IFERROR(IF(LeningNietBetaald*LeningGoed,Hoofdsom,\"\"), \"\")","v":""},{"$f":"IFERROR(IF(LeningNietBetaald*LeningGoed,Rentebedrag,\"\"), \"\")","v":""},{"$f":"IFERROR(IF(LeningNietBetaald*LeningGoed,Eindsaldo,\"\"), \"\")","v":""}]
[null,{"$f":"IFERROR(IF(LeningNietBetaald*LeningGoed,NummerBetaling,\"\"), \"\")","v":""},{"$f":"IFERROR(IF(LeningNietBetaald*LeningGoed,Betaaldatum,\"\"), \"\")","v":""},{"$f":"IFERROR(IF(LeningNietBetaald*LeningGoed,WaardeLening,\"\"), \"\")","v":""},{"$f":"IFERROR(IF(LeningNietBetaald*LeningGoed,MaandelijkseBetaling,\"\"), \"\")","v":""},{"$f":"IFERROR(IF(LeningNietBetaald*LeningGoed,Hoofdsom,\"\"), \"\")","v":""},{"$f":"IFERROR(IF(LeningNietBetaald*LeningGoed,Rentebedrag,\"\"), \"\")","v":""},{"$f":"IFERROR(IF(LeningNietBetaald*LeningGoed,Eindsaldo,\"\"), \"\")","v":""}]
[null,{"$f":"IFERROR(IF(LeningNietBetaald*LeningGoed,NummerBetaling,\"\"), \"\")","v":""},{"$f":"IFERROR(IF(LeningNietBetaald*LeningGoed,Betaaldatum,\"\"), \"\")","v":""},{"$f":"IFERROR(IF(LeningNietBetaald*LeningGoed,WaardeLening,\"\"), \"\")","v":""},{"$f":"IFERROR(IF(LeningNietBetaald*LeningGoed,MaandelijkseBetaling,\"\"), \"\")","v":""},{"$f":"IFERROR(IF(LeningNietBetaald*LeningGoed,Hoofdsom,\"\"), \"\")","v":""},{"$f":"IFERROR(IF(LeningNietBetaald*LeningGoed,Rentebedrag,\"\"), \"\")","v":""},{"$f":"IFERROR(IF(LeningNietBetaald*LeningGoed,Eindsaldo,\"\"), \"\")","v":""}]
[null,{"$f":"IFERROR(IF(LeningNietBetaald*LeningGoed,NummerBetaling,\"\"), \"\")","v":""},{"$f":"IFERROR(IF(LeningNietBetaald*LeningGoed,Betaaldatum,\"\"), \"\")","v":""},{"$f":"IFERROR(IF(LeningNietBetaald*LeningGoed,WaardeLening,\"\"), \"\")","v":""},{"$f":"IFERROR(IF(LeningNietBetaald*LeningGoed,MaandelijkseBetaling,\"\"), \"\")","v":""},{"$f":"IFERROR(IF(LeningNietBetaald*LeningGoed,Hoofdsom,\"\"), \"\")","v":""},{"$f":"IFERROR(IF(LeningNietBetaald*LeningGoed,Rentebedrag,\"\"), \"\")","v":""},{"$f":"IFERROR(IF(LeningNietBetaald*LeningGoed,Eindsaldo,\"\"), \"\")","v":""}]
[null,{"$f":"IFERROR(IF(LeningNietBetaald*LeningGoed,NummerBetaling,\"\"), \"\")","v":""},{"$f":"IFERROR(IF(LeningNietBetaald*LeningGoed,Betaaldatum,\"\"), \"\")","v":""},{"$f":"IFERROR(IF(LeningNietBetaald*LeningGoed,WaardeLening,\"\"), \"\")","v":""},{"$f":"IFERROR(IF(LeningNietBetaald*LeningGoed,MaandelijkseBetaling,\"\"), \"\")","v":""},{"$f":"IFERROR(IF(LeningNietBetaald*LeningGoed,Hoofdsom,\"\"), \"\")","v":""},{"$f":"IFERROR(IF(LeningNietBetaald*LeningGoed,Rentebedrag,\"\"), \"\")","v":""},{"$f":"IFERROR(IF(LeningNietBetaald*LeningGoed,Eindsaldo,\"\"), \"\")","v":""}]
[null,{"$f":"IFERROR(IF(LeningNietBetaald*LeningGoed,NummerBetaling,\"\"), \"\")","v":""},{"$f":"IFERROR(IF(LeningNietBetaald*LeningGoed,Betaaldatum,\"\"), \"\")","v":""},{"$f":"IFERROR(IF(LeningNietBetaald*LeningGoed,WaardeLening,\"\"), \"\")","v":""},{"$f":"IFERROR(IF(LeningNietBetaald*LeningGoed,MaandelijkseBetaling,\"\"), \"\")","v":""},{"$f":"IFERROR(IF(LeningNietBetaald*LeningGoed,Hoofdsom,\"\"), \"\")","v":""},{"$f":"IFERROR(IF(LeningNietBetaald*LeningGoed,Rentebedrag,\"\"), \"\")","v":""},{"$f":"IFERROR(IF(LeningNietBetaald*LeningGoed,Eindsaldo,\"\"), \"\")","v":""}]
[null,{"$f":"IFERROR(IF(LeningNietBetaald*LeningGoed,NummerBetaling,\"\"), \"\")","v":""},{"$f":"IFERROR(IF(LeningNietBetaald*LeningGoed,Betaaldatum,\"\"), \"\")","v":""},{"$f":"IFERROR(IF(LeningNietBetaald*LeningGoed,WaardeLening,\"\"), \"\")","v":""},{"$f":"IFERROR(IF(LeningNietBetaald*LeningGoed,MaandelijkseBetaling,\"\"), \"\")","v":""},{"$f":"IFERROR(IF(LeningNietBetaald*LeningGoed,Hoofdsom,\"\"), \"\")","v":""},{"$f":"IFERROR(IF(LeningNietBetaald*LeningGoed,Rentebedrag,\"\"), \"\")","v":""},{"$f":"IFERROR(IF(LeningNietBetaald*LeningGoed,Eindsaldo,\"\"), \"\")","v":""}]
[null,{"$f":"IFERROR(IF(LeningNietBetaald*LeningGoed,NummerBetaling,\"\"), \"\")","v":""},{"$f":"IFERROR(IF(LeningNietBetaald*LeningGoed,Betaaldatum,\"\"), \"\")","v":""},{"$f":"IFERROR(IF(LeningNietBetaald*LeningGoed,WaardeLening,\"\"), \"\")","v":""},{"$f":"IFERROR(IF(LeningNietBetaald*LeningGoed,MaandelijkseBetaling,\"\"), \"\")","v":""},{"$f":"IFERROR(IF(LeningNietBetaald*LeningGoed,Hoofdsom,\"\"), \"\")","v":""},{"$f":"IFERROR(IF(LeningNietBetaald*LeningGoed,Rentebedrag,\"\"), \"\")","v":""},{"$f":"IFERROR(IF(LeningNietBetaald*LeningGoed,Eindsaldo,\"\"), \"\")","v":""}]
[null,{"$f":"IFERROR(IF(LeningNietBetaald*LeningGoed,NummerBetaling,\"\"), \"\")","v":""},{"$f":"IFERROR(IF(LeningNietBetaald*LeningGoed,Betaaldatum,\"\"), \"\")","v":""},{"$f":"IFERROR(IF(LeningNietBetaald*LeningGoed,WaardeLening,\"\"), \"\")","v":""},{"$f":"IFERROR(IF(LeningNietBetaald*LeningGoed,MaandelijkseBetaling,\"\"), \"\")","v":""},{"$f":"IFERROR(IF(LeningNietBetaald*LeningGoed,Hoofdsom,\"\"), \"\")","v":""},{"$f":"IFERROR(IF(LeningNietBetaald*LeningGoed,Rentebedrag,\"\"), \"\")","v":""},{"$f":"IFERROR(IF(LeningNietBetaald*LeningGoed,Eindsaldo,\"\"), \"\")","v":""}]
[null,{"$f":"IFERROR(IF(LeningNietBetaald*LeningGoed,NummerBetaling,\"\"), \"\")","v":""},{"$f":"IFERROR(IF(LeningNietBetaald*LeningGoed,Betaaldatum,\"\"), \"\")","v":""},{"$f":"IFERROR(IF(LeningNietBetaald*LeningGoed,WaardeLening,\"\"), \"\")","v":""},{"$f":"IFERROR(IF(LeningNietBetaald*LeningGoed,MaandelijkseBetaling,\"\"), \"\")","v":""},{"$f":"IFERROR(IF(LeningNietBetaald*LeningGoed,Hoofdsom,\"\"), \"\")","v":""},{"$f":"IFERROR(IF(LeningNietBetaald*LeningGoed,Rentebedrag,\"\"), \"\")","v":""},{"$f":"IFERROR(IF(LeningNietBetaald*LeningGoed,Eindsaldo,\"\"), \"\")","v":""}]
[null,{"$f":"IFERROR(IF(LeningNietBetaald*LeningGoed,NummerBetaling,\"\"), \"\")","v":""},{"$f":"IFERROR(IF(LeningNietBetaald*LeningGoed,Betaaldatum,\"\"), \"\")","v":""},{"$f":"IFERROR(IF(LeningNietBetaald*LeningGoed,WaardeLening,\"\"), \"\")","v":""},{"$f":"IFERROR(IF(LeningNietBetaald*LeningGoed,MaandelijkseBetaling,\"\"), \"\")","v":""},{"$f":"IFERROR(IF(LeningNietBetaald*LeningGoed,Hoofdsom,\"\"), \"\")","v":""},{"$f":"IFERROR(IF(LeningNietBetaald*LeningGoed,Rentebedrag,\"\"), \"\")","v":""},{"$f":"IFERROR(IF(LeningNietBetaald*LeningGoed,Eindsaldo,\"\"), \"\")","v":""}]
[null,{"$f":"IFERROR(IF(LeningNietBetaald*LeningGoed,NummerBetaling,\"\"), \"\")","v":""},{"$f":"IFERROR(IF(LeningNietBetaald*LeningGoed,Betaaldatum,\"\"), \"\")","v":""},{"$f":"IFERROR(IF(LeningNietBetaald*LeningGoed,WaardeLening,\"\"), \"\")","v":""},{"$f":"IFERROR(IF(LeningNietBetaald*LeningGoed,MaandelijkseBetaling,\"\"), \"\")","v":""},{"$f":"IFERROR(IF(LeningNietBetaald*LeningGoed,Hoofdsom,\"\"), \"\")","v":""},{"$f":"IFERROR(IF(LeningNietBetaald*LeningGoed,Rentebedrag,\"\"), \"\")","v":""},{"$f":"IFERROR(IF(LeningNietBetaald*LeningGoed,Eindsaldo,\"\"), \"\")","v":""}]
[null,{"$f":"IFERROR(IF(LeningNietBetaald*LeningGoed,NummerBetaling,\"\"), \"\")","v":""},{"$f":"IFERROR(IF(LeningNietBetaald*LeningGoed,Betaaldatum,\"\"), \"\")","v":""},{"$f":"IFERROR(IF(LeningNietBetaald*LeningGoed,WaardeLening,\"\"), \"\")","v":""},{"$f":"IFERROR(IF(LeningNietBetaald*LeningGoed,MaandelijkseBetaling,\"\"), \"\")","v":""},{"$f":"IFERROR(IF(LeningNietBetaald*LeningGoed,Hoofdsom,\"\"), \"\")","v":""},{"$f":"IFERROR(IF(LeningNietBetaald*LeningGoed,Rentebedrag,\"\"), \"\")","v":""},{"$f":"IFERROR(IF(LeningNietBetaald*LeningGoed,Eindsaldo,\"\"), \"\")","v":""}]
[null,{"$f":"IFERROR(IF(LeningNietBetaald*LeningGoed,NummerBetaling,\"\"), \"\")","v":""},{"$f":"IFERROR(IF(LeningNietBetaald*LeningGoed,Betaaldatum,\"\"), \"\")","v":""},{"$f":"IFERROR(IF(LeningNietBetaald*LeningGoed,WaardeLening,\"\"), \"\")","v":""},{"$f":"IFERROR(IF(LeningNietBetaald*LeningGoed,MaandelijkseBetaling,\"\"), \"\")","v":""},{"$f":"IFERROR(IF(LeningNietBetaald*LeningGoed,Hoofdsom,\"\"), \"\")","v":""},{"$f":"IFERROR(IF(LeningNietBetaald*LeningGoed,Rentebedrag,\"\"), \"\")","v":""},{"$f":"IFERROR(IF(LeningNietBetaald*LeningGoed,Eindsaldo,\"\"), \"\")","v":""}]
[null,{"$f":"IFERROR(IF(LeningNietBetaald*LeningGoed,NummerBetaling,\"\"), \"\")","v":""},{"$f":"IFERROR(IF(LeningNietBetaald*LeningGoed,Betaaldatum,\"\"), \"\")","v":""},{"$f":"IFERROR(IF(LeningNietBetaald*LeningGoed,WaardeLening,\"\"), \"\")","v":""},{"$f":"IFERROR(IF(LeningNietBetaald*LeningGoed,MaandelijkseBetaling,\"\"), \"\")","v":""},{"$f":"IFERROR(IF(LeningNietBetaald*LeningGoed,Hoofdsom,\"\"), \"\")","v":""},{"$f":"IFERROR(IF(LeningNietBetaald*LeningGoed,Rentebedrag,\"\"), \"\")","v":""},{"$f":"IFERROR(IF(LeningNietBetaald*LeningGoed,Eindsaldo,\"\"), \"\")","v":""}]
[null,{"$f":"IFERROR(IF(LeningNietBetaald*LeningGoed,NummerBetaling,\"\"), \"\")","v":""},{"$f":"IFERROR(IF(LeningNietBetaald*LeningGoed,Betaaldatum,\"\"), \"\")","v":""},{"$f":"IFERROR(IF(LeningNietBetaald*LeningGoed,WaardeLening,\"\"), \"\")","v":""},{"$f":"IFERROR(IF(LeningNietBetaald*LeningGoed,MaandelijkseBetaling,\"\"), \"\")","v":""},{"$f":"IFERROR(IF(LeningNietBetaald*LeningGoed,Hoofdsom,\"\"), \"\")","v":""},{"$f":"IFERROR(IF(LeningNietBetaald*LeningGoed,Rentebedrag,\"\"), \"\")","v":""},{"$f":"IFERROR(IF(LeningNietBetaald*LeningGoed,Eindsaldo,\"\"), \"\")","v":""}]
[null,{"$f":"IFERROR(IF(LeningNietBetaald*LeningGoed,NummerBetaling,\"\"), \"\")","v":""},{"$f":"IFERROR(IF(LeningNietBetaald*LeningGoed,Betaaldatum,\"\"), \"\")","v":""},{"$f":"IFERROR(IF(LeningNietBetaald*LeningGoed,WaardeLening,\"\"), \"\")","v":""},{"$f":"IFERROR(IF(LeningNietBetaald*LeningGoed,MaandelijkseBetaling,\"\"), \"\")","v":""},{"$f":"IFERROR(IF(LeningNietBetaald*LeningGoed,Hoofdsom,\"\"), \"\")","v":""},{"$f":"IFERROR(IF(LeningNietBetaald*LeningGoed,Rentebedrag,\"\"), \"\")","v":""},{"$f":"IFERROR(IF(LeningNietBetaald*LeningGoed,Eindsaldo,\"\"), \"\")","v":""}]
[null,{"$f":"IFERROR(IF(LeningNietBetaald*LeningGoed,NummerBetaling,\"\"), \"\")","v":""},{"$f":"IFERROR(IF(LeningNietBetaald*LeningGoed,Betaaldatum,\"\"), \"\")","v":""},{"$f":"IFERROR(IF(LeningNietBetaald*LeningGoed,WaardeLening,\"\"), \"\")","v":""},{"$f":"IFERROR(IF(LeningNietBetaald*LeningGoed,MaandelijkseBetaling,\"\"), \"\")","v":""},{"$f":"IFERROR(IF(LeningNietBetaald*LeningGoed,Hoofdsom,\"\"), \"\")","v":""},{"$f":"IFERROR(IF(LeningNietBetaald*LeningGoed,Rentebedrag,\"\"), \"\")","v":""},{"$f":"IFERROR(IF(LeningNietBetaald*LeningGoed,Eindsaldo,\"\"), \"\")","v":""}]
[null,{"$f":"IFERROR(IF(LeningNietBetaald*LeningGoed,NummerBetaling,\"\"), \"\")","v":""},{"$f":"IFERROR(IF(LeningNietBetaald*LeningGoed,Betaaldatum,\"\"), \"\")","v":""},{"$f":"IFERROR(IF(LeningNietBetaald*LeningGoed,WaardeLening,\"\"), \"\")","v":""},{"$f":"IFERROR(IF(LeningNietBetaald*LeningGoed,MaandelijkseBetaling,\"\"), \"\")","v":""},{"$f":"IFERROR(IF(LeningNietBetaald*LeningGoed,Hoofdsom,\"\"), \"\")","v":""},{"$f":"IFERROR(IF(LeningNietBetaald*LeningGoed,Rentebedrag,\"\"), \"\")","v":""},{"$f":"IFERROR(IF(LeningNietBetaald*LeningGoed,Eindsaldo,\"\"), \"\")","v":""}]
[null,{"$f":"IFERROR(IF(LeningNietBetaald*LeningGoed,NummerBetaling,\"\"), \"\")","v":""},{"$f":"IFERROR(IF(LeningNietBetaald*LeningGoed,Betaaldatum,\"\"), \"\")","v":""},{"$f":"IFERROR(IF(LeningNietBetaald*LeningGoed,WaardeLening,\"\"), \"\")","v":""},{"$f":"IFERROR(IF(LeningNietBetaald*LeningGoed,MaandelijkseBetaling,\"\"), \"\")","v":""},{"$f":"IFERROR(IF(LeningNietBetaald*LeningGoed,Hoofdsom,\"\"), \"\")","v":""},{"$f":"IFERROR(IF(LeningNietBetaald*LeningGoed,Rentebedrag,\"\"), \"\")","v":""},{"$f":"IFERROR(IF(LeningNietBetaald*LeningGoed,Eindsaldo,\"\"), \"\")","v":""}]
[null,{"$f":"IFERROR(IF(LeningNietBetaald*LeningGoed,NummerBetaling,\"\"), \"\")","v":""},{"$f":"IFERROR(IF(LeningNietBetaald*LeningGoed,Betaaldatum,\"\"), \"\")","v":""},{"$f":"IFERROR(IF(LeningNietBetaald*LeningGoed,WaardeLening,\"\"), \"\")","v":""},{"$f":"IFERROR(IF(LeningNietBetaald*LeningGoed,MaandelijkseBetaling,\"\"), \"\")","v":""},{"$f":"IFERROR(IF(LeningNietBetaald*LeningGoed,Hoofdsom,\"\"), \"\")","v":""},{"$f":"IFERROR(IF(LeningNietBetaald*LeningGoed,Rentebedrag,\"\"), \"\")","v":""},{"$f":"IFERROR(IF(LeningNietBetaald*LeningGoed,Eindsaldo,\"\"), \"\")","v":""}]
[null,{"$f":"IFERROR(IF(LeningNietBetaald*LeningGoed,NummerBetaling,\"\"), \"\")","v":""},{"$f":"IFERROR(IF(LeningNietBetaald*LeningGoed,Betaaldatum,\"\"), \"\")","v":""},{"$f":"IFERROR(IF(LeningNietBetaald*LeningGoed,WaardeLening,\"\"), \"\")","v":""},{"$f":"IFERROR(IF(LeningNietBetaald*LeningGoed,MaandelijkseBetaling,\"\"), \"\")","v":""},{"$f":"IFERROR(IF(LeningNietBetaald*LeningGoed,Hoofdsom,\"\"), \"\")","v":""},{"$f":"IFERROR(IF(LeningNietBetaald*LeningGoed,Rentebedrag,\"\"), \"\")","v":""},{"$f":"IFERROR(IF(LeningNietBetaald*LeningGoed,Eindsaldo,\"\"), \"\")","v":""}]
[null,{"$f":"IFERROR(IF(LeningNietBetaald*LeningGoed,NummerBetaling,\"\"), \"\")","v":""},{"$f":"IFERROR(IF(LeningNietBetaald*LeningGoed,Betaaldatum,\"\"), \"\")","v":""},{"$f":"IFERROR(IF(LeningNietBetaald*LeningGoed,WaardeLening,\"\"), \"\")","v":""},{"$f":"IFERROR(IF(LeningNietBetaald*LeningGoed,MaandelijkseBetaling,\"\"), \"\")","v":""},{"$f":"IFERROR(IF(LeningNietBetaald*LeningGoed,Hoofdsom,\"\"), \"\")","v":""},{"$f":"IFERROR(IF(LeningNietBetaald*LeningGoed,Rentebedrag,\"\"), \"\")","v":""},{"$f":"IFERROR(IF(LeningNietBetaald*LeningGoed,Eindsaldo,\"\"), \"\")","v":""}]
[null,{"$f":"IFERROR(IF(LeningNietBetaald*LeningGoed,NummerBetaling,\"\"), \"\")","v":""},{"$f":"IFERROR(IF(LeningNietBetaald*LeningGoed,Betaaldatum,\"\"), \"\")","v":""},{"$f":"IFERROR(IF(LeningNietBetaald*LeningGoed,WaardeLening,\"\"), \"\")","v":""},{"$f":"IFERROR(IF(LeningNietBetaald*LeningGoed,MaandelijkseBetaling,\"\"), \"\")","v":""},{"$f":"IFERROR(IF(LeningNietBetaald*LeningGoed,Hoofdsom,\"\"), \"\")","v":""},{"$f":"IFERROR(IF(LeningNietBetaald*LeningGoed,Rentebedrag,\"\"), \"\")","v":""},{"$f":"IFERROR(IF(LeningNietBetaald*LeningGoed,Eindsaldo,\"\"), \"\")","v":""}]
[null,{"$f":"IFERROR(IF(LeningNietBetaald*LeningGoed,NummerBetaling,\"\"), \"\")","v":""},{"$f":"IFERROR(IF(LeningNietBetaald*LeningGoed,Betaaldatum,\"\"), \"\")","v":""},{"$f":"IFERROR(IF(LeningNietBetaald*LeningGoed,WaardeLening,\"\"), \"\")","v":""},{"$f":"IFERROR(IF(LeningNietBetaald*LeningGoed,MaandelijkseBetaling,\"\"), \"\")","v":""},{"$f":"IFERROR(IF(LeningNietBetaald*LeningGoed,Hoofdsom,\"\"), \"\")","v":""},{"$f":"IFERROR(IF(LeningNietBetaald*LeningGoed,Rentebedrag,\"\"), \"\")","v":""},{"$f":"IFERROR(IF(LeningNietBetaald*LeningGoed,Eindsaldo,\"\"), \"\")","v":""}]
[null,{"$f":"IFERROR(IF(LeningNietBetaald*LeningGoed,NummerBetaling,\"\"), \"\")","v":""},{"$f":"IFERROR(IF(LeningNietBetaald*LeningGoed,Betaaldatum,\"\"), \"\")","v":""},{"$f":"IFERROR(IF(LeningNietBetaald*LeningGoed,WaardeLening,\"\"), \"\")","v":""},{"$f":"IFERROR(IF(LeningNietBetaald*LeningGoed,MaandelijkseBetaling,\"\"), \"\")","v":""},{"$f":"IFERROR(IF(LeningNietBetaald*LeningGoed,Hoofdsom,\"\"), \"\")","v":""},{"$f":"IFERROR(IF(LeningNietBetaald*LeningGoed,Rentebedrag,\"\"), \"\")","v":""},{"$f":"IFERROR(IF(LeningNietBetaald*LeningGoed,Eindsaldo,\"\"), \"\")","v":""}]
[null,{"$f":"IFERROR(IF(LeningNietBetaald*LeningGoed,NummerBetaling,\"\"), \"\")","v":""},{"$f":"IFERROR(IF(LeningNietBetaald*LeningGoed,Betaaldatum,\"\"), \"\")","v":""},{"$f":"IFERROR(IF(LeningNietBetaald*LeningGoed,WaardeLening,\"\"), \"\")","v":""},{"$f":"IFERROR(IF(LeningNietBetaald*LeningGoed,MaandelijkseBetaling,\"\"), \"\")","v":""},{"$f":"IFERROR(IF(LeningNietBetaald*LeningGoed,Hoofdsom,\"\"), \"\")","v":""},{"$f":"IFERROR(IF(LeningNietBetaald*LeningGoed,Rentebedrag,\"\"), \"\")","v":""},{"$f":"IFERROR(IF(LeningNietBetaald*LeningGoed,Eindsaldo,\"\"), \"\")","v":""}]
[null,{"$f":"IFERROR(IF(LeningNietBetaald*LeningGoed,NummerBetaling,\"\"), \"\")","v":""},{"$f":"IFERROR(IF(LeningNietBetaald*LeningGoed,Betaaldatum,\"\"), \"\")","v":""},{"$f":"IFERROR(IF(LeningNietBetaald*LeningGoed,WaardeLening,\"\"), \"\")","v":""},{"$f":"IFERROR(IF(LeningNietBetaald*LeningGoed,MaandelijkseBetaling,\"\"), \"\")","v":""},{"$f":"IFERROR(IF(LeningNietBetaald*LeningGoed,Hoofdsom,\"\"), \"\")","v":""},{"$f":"IFERROR(IF(LeningNietBetaald*LeningGoed,Rentebedrag,\"\"), \"\")","v":""},{"$f":"IFERROR(IF(LeningNietBetaald*LeningGoed,Eindsaldo,\"\"), \"\")","v":""}]
[null,{"$f":"IFERROR(IF(LeningNietBetaald*LeningGoed,NummerBetaling,\"\"), \"\")","v":""},{"$f":"IFERROR(IF(LeningNietBetaald*LeningGoed,Betaaldatum,\"\"), \"\")","v":""},{"$f":"IFERROR(IF(LeningNietBetaald*LeningGoed,WaardeLening,\"\"), \"\")","v":""},{"$f":"IFERROR(IF(LeningNietBetaald*LeningGoed,MaandelijkseBetaling,\"\"), \"\")","v":""},{"$f":"IFERROR(IF(LeningNietBetaald*LeningGoed,Hoofdsom,\"\"), \"\")","v":""},{"$f":"IFERROR(IF(LeningNietBetaald*LeningGoed,Rentebedrag,\"\"), \"\")","v":""},{"$f":"IFERROR(IF(LeningNietBetaald*LeningGoed,Eindsaldo,\"\"), \"\")","v":""}]
[null,{"$f":"IFERROR(IF(LeningNietBetaald*LeningGoed,NummerBetaling,\"\"), \"\")","v":""},{"$f":"IFERROR(IF(LeningNietBetaald*LeningGoed,Betaaldatum,\"\"), \"\")","v":""},{"$f":"IFERROR(IF(LeningNietBetaald*LeningGoed,WaardeLening,\"\"), \"\")","v":""},{"$f":"IFERROR(IF(LeningNietBetaald*LeningGoed,MaandelijkseBetaling,\"\"), \"\")","v":""},{"$f":"IFERROR(IF(LeningNietBetaald*LeningGoed,Hoofdsom,\"\"), \"\")","v":""},{"$f":"IFERROR(IF(LeningNietBetaald*LeningGoed,Rentebedrag,\"\"), \"\")","v":""},{"$f":"IFERROR(IF(LeningNietBetaald*LeningGoed,Eindsaldo,\"\"), \"\")","v":""}]
[null,{"$f":"IFERROR(IF(LeningNietBetaald*LeningGoed,NummerBetaling,\"\"), \"\")","v":""},{"$f":"IFERROR(IF(LeningNietBetaald*LeningGoed,Betaaldatum,\"\"), \"\")","v":""},{"$f":"IFERROR(IF(LeningNietBetaald*LeningGoed,WaardeLening,\"\"), \"\")","v":""},{"$f":"IFERROR(IF(LeningNietBetaald*LeningGoed,MaandelijkseBetaling,\"\"), \"\")","v":""},{"$f":"IFERROR(IF(LeningNietBetaald*LeningGoed,Hoofdsom,\"\"), \"\")","v":""},{"$f":"IFERROR(IF(LeningNietBetaald*LeningGoed,Rentebedrag,\"\"), \"\")","v":""},{"$f":"IFERROR(IF(LeningNietBetaald*LeningGoed,Eindsaldo,\"\"), \"\")","v":""}]
[null,{"$f":"IFERROR(IF(LeningNietBetaald*LeningGoed,NummerBetaling,\"\"), \"\")","v":""},{"$f":"IFERROR(IF(LeningNietBetaald*LeningGoed,Betaaldatum,\"\"), \"\")","v":""},{"$f":"IFERROR(IF(LeningNietBetaald*LeningGoed,WaardeLening,\"\"), \"\")","v":""},{"$f":"IFERROR(IF(LeningNietBetaald*LeningGoed,MaandelijkseBetaling,\"\"), \"\")","v":""},{"$f":"IFERROR(IF(LeningNietBetaald*LeningGoed,Hoofdsom,\"\"), \"\")","v":""},{"$f":"IFERROR(IF(LeningNietBetaald*LeningGoed,Rentebedrag,\"\"), \"\")","v":""},{"$f":"IFERROR(IF(LeningNietBetaald*LeningGoed,Eindsaldo,\"\"), \"\")","v":""}]
[null,{"$f":"IFERROR(IF(LeningNietBetaald*LeningGoed,NummerBetaling,\"\"), \"\")","v":""},{"$f":"IFERROR(IF(LeningNietBetaald*LeningGoed,Betaaldatum,\"\"), \"\")","v":""},{"$f":"IFERROR(IF(LeningNietBetaald*LeningGoed,WaardeLening,\"\"), \"\")","v":""},{"$f":"IFERROR(IF(LeningNietBetaald*LeningGoed,MaandelijkseBetaling,\"\"), \"\")","v":""},{"$f":"IFERROR(IF(LeningNietBetaald*LeningGoed,Hoofdsom,\"\"), \"\")","v":""},{"$f":"IFERROR(IF(LeningNietBetaald*LeningGoed,Rentebedrag,\"\"), \"\")","v":""},{"$f":"IFERROR(IF(LeningNietBetaald*LeningGoed,Eindsaldo,\"\"), \"\")","v":""}]
[null,{"$f":"IFERROR(IF(LeningNietBetaald*LeningGoed,NummerBetaling,\"\"), \"\")","v":""},{"$f":"IFERROR(IF(LeningNietBetaald*LeningGoed,Betaaldatum,\"\"), \"\")","v":""},{"$f":"IFERROR(IF(LeningNietBetaald*LeningGoed,WaardeLening,\"\"), \"\")","v":""},{"$f":"IFERROR(IF(LeningNietBetaald*LeningGoed,MaandelijkseBetaling,\"\"), \"\")","v":""},{"$f":"IFERROR(IF(LeningNietBetaald*LeningGoed,Hoofdsom,\"\"), \"\")","v":""},{"$f":"IFERROR(IF(LeningNietBetaald*LeningGoed,Rentebedrag,\"\"), \"\")","v":""},{"$f":"IFERROR(IF(LeningNietBetaald*LeningGoed,Eindsaldo,\"\"), \"\")","v":""}]
[null,{"$f":"IFERROR(IF(LeningNietBetaald*LeningGoed,NummerBetaling,\"\"), \"\")","v":""},{"$f":"IFERROR(IF(LeningNietBetaald*LeningGoed,Betaaldatum,\"\"), \"\")","v":""},{"$f":"IFERROR(IF(LeningNietBetaald*LeningGoed,WaardeLening,\"\"), \"\")","v":""},{"$f":"IFERROR(IF(LeningNietBetaald*LeningGoed,MaandelijkseBetaling,\"\"), \"\")","v":""},{"$f":"IFERROR(IF(LeningNietBetaald*LeningGoed,Hoofdsom,\"\"), \"\")","v":""},{"$f":"IFERROR(IF(LeningNietBetaald*LeningGoed,Rentebedrag,\"\"), \"\")","v":""},{"$f":"IFERROR(IF(LeningNietBetaald*LeningGoed,Eindsaldo,\"\"), \"\")","v":""}]
[null,{"$f":"IFERROR(IF(LeningNietBetaald*LeningGoed,NummerBetaling,\"\"), \"\")","v":""},{"$f":"IFERROR(IF(LeningNietBetaald*LeningGoed,Betaaldatum,\"\"), \"\")","v":""},{"$f":"IFERROR(IF(LeningNietBetaald*LeningGoed,WaardeLening,\"\"), \"\")","v":""},{"$f":"IFERROR(IF(LeningNietBetaald*LeningGoed,MaandelijkseBetaling,\"\"), \"\")","v":""},{"$f":"IFERROR(IF(LeningNietBetaald*LeningGoed,Hoofdsom,\"\"), \"\")","v":""},{"$f":"IFERROR(IF(LeningNietBetaald*LeningGoed,Rentebedrag,\"\"), \"\")","v":""},{"$f":"IFERROR(IF(LeningNietBetaald*LeningGoed,Eindsaldo,\"\"), \"\")","v":""}]
[null,{"$f":"IFERROR(IF(LeningNietBetaald*LeningGoed,NummerBetaling,\"\"), \"\")","v":""},{"$f":"IFERROR(IF(LeningNietBetaald*LeningGoed,Betaaldatum,\"\"), \"\")","v":""},{"$f":"IFERROR(IF(LeningNietBetaald*LeningGoed,WaardeLening,\"\"), \"\")","v":""},{"$f":"IFERROR(IF(LeningNietBetaald*LeningGoed,MaandelijkseBetaling,\"\"), \"\")","v":""},{"$f":"IFERROR(IF(LeningNietBetaald*LeningGoed,Hoofdsom,\"\"), \"\")","v":""},{"$f":"IFERROR(IF(LeningNietBetaald*LeningGoed,Rentebedrag,\"\"), \"\")","v":""},{"$f":"IFERROR(IF(LeningNietBetaald*LeningGoed,Eindsaldo,\"\"), \"\")","v":""}]
[null,{"$f":"IFERROR(IF(LeningNietBetaald*LeningGoed,NummerBetaling,\"\"), \"\")","v":""},{"$f":"IFERROR(IF(LeningNietBetaald*LeningGoed,Betaaldatum,\"\"), \"\")","v":""},{"$f":"IFERROR(IF(LeningNietBetaald*LeningGoed,WaardeLening,\"\"), \"\")","v":""},{"$f":"IFERROR(IF(LeningNietBetaald*LeningGoed,MaandelijkseBetaling,\"\"), \"\")","v":""},{"$f":"IFERROR(IF(LeningNietBetaald*LeningGoed,Hoofdsom,\"\"), \"\")","v":""},{"$f":"IFERROR(IF(LeningNietBetaald*LeningGoed,Rentebedrag,\"\"), \"\")","v":""},{"$f":"IFERROR(IF(LeningNietBetaald*LeningGoed,Eindsaldo,\"\"), \"\")","v":""}]
[null,{"$f":"IFERROR(IF(LeningNietBetaald*LeningGoed,NummerBetaling,\"\"), \"\")","v":""},{"$f":"IFERROR(IF(LeningNietBetaald*LeningGoed,Betaaldatum,\"\"), \"\")","v":""},{"$f":"IFERROR(IF(LeningNietBetaald*LeningGoed,WaardeLening,\"\"), \"\")","v":""},{"$f":"IFERROR(IF(LeningNietBetaald*LeningGoed,MaandelijkseBetaling,\"\"), \"\")","v":""},{"$f":"IFERROR(IF(LeningNietBetaald*LeningGoed,Hoofdsom,\"\"), \"\")","v":""},{"$f":"IFERROR(IF(LeningNietBetaald*LeningGoed,Rentebedrag,\"\"), \"\")","v":""},{"$f":"IFERROR(IF(LeningNietBetaald*LeningGoed,Eindsaldo,\"\"), \"\")","v":""}]
[null,{"$f":"IFERROR(IF(LeningNietBetaald*LeningGoed,NummerBetaling,\"\"), \"\")","v":""},{"$f":"IFERROR(IF(LeningNietBetaald*LeningGoed,Betaaldatum,\"\"), \"\")","v":""},{"$f":"IFERROR(IF(LeningNietBetaald*LeningGoed,WaardeLening,\"\"), \"\")","v":""},{"$f":"IFERROR(IF(LeningNietBetaald*LeningGoed,MaandelijkseBetaling,\"\"), \"\")","v":""},{"$f":"IFERROR(IF(LeningNietBetaald*LeningGoed,Hoofdsom,\"\"), \"\")","v":""},{"$f":"IFERROR(IF(LeningNietBetaald*LeningGoed,Rentebedrag,\"\"), \"\")","v":""},{"$f":"IFERROR(IF(LeningNietBetaald*LeningGoed,Eindsaldo,\"\"), \"\")","v":""}]
[null,{"$f":"IFERROR(IF(LeningNietBetaald*LeningGoed,NummerBetaling,\"\"), \"\")","v":""},{"$f":"IFERROR(IF(LeningNietBetaald*LeningGoed,Betaaldatum,\"\"), \"\")","v":""},{"$f":"IFERROR(IF(LeningNietBetaald*LeningGoed,WaardeLening,\"\"), \"\")","v":""},{"$f":"IFERROR(IF(LeningNietBetaald*LeningGoed,MaandelijkseBetaling,\"\"), \"\")","v":""},{"$f":"IFERROR(IF(LeningNietBetaald*LeningGoed,Hoofdsom,\"\"), \"\")","v":""},{"$f":"IFERROR(IF(LeningNietBetaald*LeningGoed,Rentebedrag,\"\"), \"\")","v":""},{"$f":"IFERROR(IF(LeningNietBetaald*LeningGoed,Eindsaldo,\"\"), \"\")","v":""}]
[null,{"$f":"IFERROR(IF(LeningNietBetaald*LeningGoed,NummerBetaling,\"\"), \"\")","v":""},{"$f":"IFERROR(IF(LeningNietBetaald*LeningGoed,Betaaldatum,\"\"), \"\")","v":""},{"$f":"IFERROR(IF(LeningNietBetaald*LeningGoed,WaardeLening,\"\"), \"\")","v":""},{"$f":"IFERROR(IF(LeningNietBetaald*LeningGoed,MaandelijkseBetaling,\"\"), \"\")","v":""},{"$f":"IFERROR(IF(LeningNietBetaald*LeningGoed,Hoofdsom,\"\"), \"\")","v":""},{"$f":"IFERROR(IF(LeningNietBetaald*LeningGoed,Rentebedrag,\"\"), \"\")","v":""},{"$f":"IFERROR(IF(LeningNietBetaald*LeningGoed,Eindsaldo,\"\"), \"\")","v":""}]
[null,{"$f":"IFERROR(IF(LeningNietBetaald*LeningGoed,NummerBetaling,\"\"), \"\")","v":""},{"$f":"IFERROR(IF(LeningNietBetaald*LeningGoed,Betaaldatum,\"\"), \"\")","v":""},{"$f":"IFERROR(IF(LeningNietBetaald*LeningGoed,WaardeLening,\"\"), \"\")","v":""},{"$f":"IFERROR(IF(LeningNietBetaald*LeningGoed,MaandelijkseBetaling,\"\"), \"\")","v":""},{"$f":"IFERROR(IF(LeningNietBetaald*LeningGoed,Hoofdsom,\"\"), \"\")","v":""},{"$f":"IFERROR(IF(LeningNietBetaald*LeningGoed,Rentebedrag,\"\"), \"\")","v":""},{"$f":"IFERROR(IF(LeningNietBetaald*LeningGoed,Eindsaldo,\"\"), \"\")","v":""}]
[null,{"$f":"IFERROR(IF(LeningNietBetaald*LeningGoed,NummerBetaling,\"\"), \"\")","v":""},{"$f":"IFERROR(IF(LeningNietBetaald*LeningGoed,Betaaldatum,\"\"), \"\")","v":""},{"$f":"IFERROR(IF(LeningNietBetaald*LeningGoed,WaardeLening,\"\"), \"\")","v":""},{"$f":"IFERROR(IF(LeningNietBetaald*LeningGoed,MaandelijkseBetaling,\"\"), \"\")","v":""},{"$f":"IFERROR(IF(LeningNietBetaald*LeningGoed,Hoofdsom,\"\"), \"\")","v":""},{"$f":"IFERROR(IF(LeningNietBetaald*LeningGoed,Rentebedrag,\"\"), \"\")","v":""},{"$f":"IFERROR(IF(LeningNietBetaald*LeningGoed,Eindsaldo,\"\"), \"\")","v":""}]
[null,{"$f":"IFERROR(IF(LeningNietBetaald*LeningGoed,NummerBetaling,\"\"), \"\")","v":""},{"$f":"IFERROR(IF(LeningNietBetaald*LeningGoed,Betaaldatum,\"\"), \"\")","v":""},{"$f":"IFERROR(IF(LeningNietBetaald*LeningGoed,WaardeLening,\"\"), \"\")","v":""},{"$f":"IFERROR(IF(LeningNietBetaald*LeningGoed,MaandelijkseBetaling,\"\"), \"\")","v":""},{"$f":"IFERROR(IF(LeningNietBetaald*LeningGoed,Hoofdsom,\"\"), \"\")","v":""},{"$f":"IFERROR(IF(LeningNietBetaald*LeningGoed,Rentebedrag,\"\"), \"\")","v":""},{"$f":"IFERROR(IF(LeningNietBetaald*LeningGoed,Eindsaldo,\"\"), \"\")","v":""}]
[null,{"$f":"IFERROR(IF(LeningNietBetaald*LeningGoed,NummerBetaling,\"\"), \"\")","v":""},{"$f":"IFERROR(IF(LeningNietBetaald*LeningGoed,Betaaldatum,\"\"), \"\")","v":""},{"$f":"IFERROR(IF(LeningNietBetaald*LeningGoed,WaardeLening,\"\"), \"\")","v":""},{"$f":"IFERROR(IF(LeningNietBetaald*LeningGoed,MaandelijkseBetaling,\"\"), \"\")","v":""},{"$f":"IFERROR(IF(LeningNietBetaald*LeningGoed,Hoofdsom,\"\"), \"\")","v":""},{"$f":"IFERROR(IF(LeningNietBetaald*LeningGoed,Rentebedrag,\"\"), \"\")","v":""},{"$f":"IFERROR(IF(LeningNietBetaald*LeningGoed,Eindsaldo,\"\"), \"\")","v":""}]
[null,{"$f":"IFERROR(IF(LeningNietBetaald*LeningGoed,NummerBetaling,\"\"), \"\")","v":""},{"$f":"IFERROR(IF(LeningNietBetaald*LeningGoed,Betaaldatum,\"\"), \"\")","v":""},{"$f":"IFERROR(IF(LeningNietBetaald*LeningGoed,WaardeLening,\"\"), \"\")","v":""},{"$f":"IFERROR(IF(LeningNietBetaald*LeningGoed,MaandelijkseBetaling,\"\"), \"\")","v":""},{"$f":"IFERROR(IF(LeningNietBetaald*LeningGoed,Hoofdsom,\"\"), \"\")","v":""},{"$f":"IFERROR(IF(LeningNietBetaald*LeningGoed,Rentebedrag,\"\"), \"\")","v":""},{"$f":"IFERROR(IF(LeningNietBetaald*LeningGoed,Eindsaldo,\"\"), \"\")","v":""}]
[null,{"$f":"IFERROR(IF(LeningNietBetaald*LeningGoed,NummerBetaling,\"\"), \"\")","v":""},{"$f":"IFERROR(IF(LeningNietBetaald*LeningGoed,Betaaldatum,\"\"), \"\")","v":""},{"$f":"IFERROR(IF(LeningNietBetaald*LeningGoed,WaardeLening,\"\"), \"\")","v":""},{"$f":"IFERROR(IF(LeningNietBetaald*LeningGoed,MaandelijkseBetaling,\"\"), \"\")","v":""},{"$f":"IFERROR(IF(LeningNietBetaald*LeningGoed,Hoofdsom,\"\"), \"\")","v":""},{"$f":"IFERROR(IF(LeningNietBetaald*LeningGoed,Rentebedrag,\"\"), \"\")","v":""},{"$f":"IFERROR(IF(LeningNietBetaald*LeningGoed,Eindsaldo,\"\"), \"\")","v":""}]
[null,{"$f":"IFERROR(IF(LeningNietBetaald*LeningGoed,NummerBetaling,\"\"), \"\")","v":""},{"$f":"IFERROR(IF(LeningNietBetaald*LeningGoed,Betaaldatum,\"\"), \"\")","v":""},{"$f":"IFERROR(IF(LeningNietBetaald*LeningGoed,WaardeLening,\"\"), \"\")","v":""},{"$f":"IFERROR(IF(LeningNietBetaald*LeningGoed,MaandelijkseBetaling,\"\"), \"\")","v":""},{"$f":"IFERROR(IF(LeningNietBetaald*LeningGoed,Hoofdsom,\"\"), \"\")","v":""},{"$f":"IFERROR(IF(LeningNietBetaald*LeningGoed,Rentebedrag,\"\"), \"\")","v":""},{"$f":"IFERROR(IF(LeningNietBetaald*LeningGoed,Eindsaldo,\"\"), \"\")","v":""}]
[null,{"$f":"IFERROR(IF(LeningNietBetaald*LeningGoed,NummerBetaling,\"\"), \"\")","v":""},{"$f":"IFERROR(IF(LeningNietBetaald*LeningGoed,Betaaldatum,\"\"), \"\")","v":""},{"$f":"IFERROR(IF(LeningNietBetaald*LeningGoed,WaardeLening,\"\"), \"\")","v":""},{"$f":"IFERROR(IF(LeningNietBetaald*LeningGoed,MaandelijkseBetaling,\"\"), \"\")","v":""},{"$f":"IFERROR(IF(LeningNietBetaald*LeningGoed,Hoofdsom,\"\"), \"\")","v":""},{"$f":"IFERROR(IF(LeningNietBetaald*LeningGoed,Rentebedrag,\"\"), \"\")","v":""},{"$f":"IFERROR(IF(LeningNietBetaald*LeningGoed,Eindsaldo,\"\"), \"\")","v":""}]
[null,{"$f":"IFERROR(IF(LeningNietBetaald*LeningGoed,NummerBetaling,\"\"), \"\")","v":""},{"$f":"IFERROR(IF(LeningNietBetaald*LeningGoed,Betaaldatum,\"\"), \"\")","v":""},{"$f":"IFERROR(IF(LeningNietBetaald*LeningGoed,WaardeLening,\"\"), \"\")","v":""},{"$f":"IFERROR(IF(LeningNietBetaald*LeningGoed,MaandelijkseBetaling,\"\"), \"\")","v":""},{"$f":"IFERROR(IF(LeningNietBetaald*LeningGoed,Hoofdsom,\"\"), \"\")","v":""},{"$f":"IFERROR(IF(LeningNietBetaald*LeningGoed,Rentebedrag,\"\"), \"\")","v":""},{"$f":"IFERROR(IF(LeningNietBetaald*LeningGoed,Eindsaldo,\"\"), \"\")","v":""}]
[null,{"$f":"IFERROR(IF(LeningNietBetaald*LeningGoed,NummerBetaling,\"\"), \"\")","v":""},{"$f":"IFERROR(IF(LeningNietBetaald*LeningGoed,Betaaldatum,\"\"), \"\")","v":""},{"$f":"IFERROR(IF(LeningNietBetaald*LeningGoed,WaardeLening,\"\"), \"\")","v":""},{"$f":"IFERROR(IF(LeningNietBetaald*LeningGoed,MaandelijkseBetaling,\"\"), \"\")","v":""},{"$f":"IFERROR(IF(LeningNietBetaald*LeningGoed,Hoofdsom,\"\"), \"\")","v":""},{"$f":"IFERROR(IF(LeningNietBetaald*LeningGoed,Rentebedrag,\"\"), \"\")","v":""},{"$f":"IFERROR(IF(LeningNietBetaald*LeningGoed,Eindsaldo,\"\"), \"\")","v":""}]
[null,{"$f":"IFERROR(IF(LeningNietBetaald*LeningGoed,NummerBetaling,\"\"), \"\")","v":""},{"$f":"IFERROR(IF(LeningNietBetaald*LeningGoed,Betaaldatum,\"\"), \"\")","v":""},{"$f":"IFERROR(IF(LeningNietBetaald*LeningGoed,WaardeLening,\"\"), \"\")","v":""},{"$f":"IFERROR(IF(LeningNietBetaald*LeningGoed,MaandelijkseBetaling,\"\"), \"\")","v":""},{"$f":"IFERROR(IF(LeningNietBetaald*LeningGoed,Hoofdsom,\"\"), \"\")","v":""},{"$f":"IFERROR(IF(LeningNietBetaald*LeningGoed,Rentebedrag,\"\"), \"\")","v":""},{"$f":"IFERROR(IF(LeningNietBetaald*LeningGoed,Eindsaldo,\"\"), \"\")","v":""}]
[null,{"$f":"IFERROR(IF(LeningNietBetaald*LeningGoed,NummerBetaling,\"\"), \"\")","v":""},{"$f":"IFERROR(IF(LeningNietBetaald*LeningGoed,Betaaldatum,\"\"), \"\")","v":""},{"$f":"IFERROR(IF(LeningNietBetaald*LeningGoed,WaardeLening,\"\"), \"\")","v":""},{"$f":"IFERROR(IF(LeningNietBetaald*LeningGoed,MaandelijkseBetaling,\"\"), \"\")","v":""},{"$f":"IFERROR(IF(LeningNietBetaald*LeningGoed,Hoofdsom,\"\"), \"\")","v":""},{"$f":"IFERROR(IF(LeningNietBetaald*LeningGoed,Rentebedrag,\"\"), \"\")","v":""},{"$f":"IFERROR(IF(LeningNietBetaald*LeningGoed,Eindsaldo,\"\"), \"\")","v":""}]
[null,{"$f":"IFERROR(IF(LeningNietBetaald*LeningGoed,NummerBetaling,\"\"), \"\")","v":""},{"$f":"IFERROR(IF(LeningNietBetaald*LeningGoed,Betaaldatum,\"\"), \"\")","v":""},{"$f":"IFERROR(IF(LeningNietBetaald*LeningGoed,WaardeLening,\"\"), \"\")","v":""},{"$f":"IFERROR(IF(LeningNietBetaald*LeningGoed,MaandelijkseBetaling,\"\"), \"\")","v":""},{"$f":"IFERROR(IF(LeningNietBetaald*LeningGoed,Hoofdsom,\"\"), \"\")","v":""},{"$f":"IFERROR(IF(LeningNietBetaald*LeningGoed,Rentebedrag,\"\"), \"\")","v":""},{"$f":"IFERROR(IF(LeningNietBetaald*LeningGoed,Eindsaldo,\"\"), \"\")","v":""}]
[null,{"$f":"IFERROR(IF(LeningNietBetaald*LeningGoed,NummerBetaling,\"\"), \"\")","v":""},{"$f":"IFERROR(IF(LeningNietBetaald*LeningGoed,Betaaldatum,\"\"), \"\")","v":""},{"$f":"IFERROR(IF(LeningNietBetaald*LeningGoed,WaardeLening,\"\"), \"\")","v":""},{"$f":"IFERROR(IF(LeningNietBetaald*LeningGoed,MaandelijkseBetaling,\"\"), \"\")","v":""},{"$f":"IFERROR(IF(LeningNietBetaald*LeningGoed,Hoofdsom,\"\"), \"\")","v":""},{"$f":"IFERROR(IF(LeningNietBetaald*LeningGoed,Rentebedrag,\"\"), \"\")","v":""},{"$f":"IFERROR(IF(LeningNietBetaald*LeningGoed,Eindsaldo,\"\"), \"\")","v":""}]
[null,{"$f":"IFERROR(IF(LeningNietBetaald*LeningGoed,NummerBetaling,\"\"), \"\")","v":""},{"$f":"IFERROR(IF(LeningNietBetaald*LeningGoed,Betaaldatum,\"\"), \"\")","v":""},{"$f":"IFERROR(IF(LeningNietBetaald*LeningGoed,WaardeLening,\"\"), \"\")","v":""},{"$f":"IFERROR(IF(LeningNietBetaald*LeningGoed,MaandelijkseBetaling,\"\"), \"\")","v":""},{"$f":"IFERROR(IF(LeningNietBetaald*LeningGoed,Hoofdsom,\"\"), \"\")","v":""},{"$f":"IFERROR(IF(LeningNietBetaald*LeningGoed,Rentebedrag,\"\"), \"\")","v":""},{"$f":"IFERROR(IF(LeningNietBetaald*LeningGoed,Eindsaldo,\"\"), \"\")","v":""}]
[null,{"$f":"IFERROR(IF(LeningNietBetaald*LeningGoed,NummerBetaling,\"\"), \"\")","v":""},{"$f":"IFERROR(IF(LeningNietBetaald*LeningGoed,Betaaldatum,\"\"), \"\")","v":""},{"$f":"IFERROR(IF(LeningNietBetaald*LeningGoed,WaardeLening,\"\"), \"\")","v":""},{"$f":"IFERROR(IF(LeningNietBetaald*LeningGoed,MaandelijkseBetaling,\"\"), \"\")","v":""},{"$f":"IFERROR(IF(LeningNietBetaald*LeningGoed,Hoofdsom,\"\"), \"\")","v":""},{"$f":"IFERROR(IF(LeningNietBetaald*LeningGoed,Rentebedrag,\"\"), \"\")","v":""},{"$f":"IFERROR(IF(LeningNietBetaald*LeningGoed,Eindsaldo,\"\"), \"\")","v":""}]
[null,{"$f":"IFERROR(IF(LeningNietBetaald*LeningGoed,NummerBetaling,\"\"), \"\")","v":""},{"$f":"IFERROR(IF(LeningNietBetaald*LeningGoed,Betaaldatum,\"\"), \"\")","v":""},{"$f":"IFERROR(IF(LeningNietBetaald*LeningGoed,WaardeLening,\"\"), \"\")","v":""},{"$f":"IFERROR(IF(LeningNietBetaald*LeningGoed,MaandelijkseBetaling,\"\"), \"\")","v":""},{"$f":"IFERROR(IF(LeningNietBetaald*LeningGoed,Hoofdsom,\"\"), \"\")","v":""},{"$f":"IFERROR(IF(LeningNietBetaald*LeningGoed,Rentebedrag,\"\"), \"\")","v":""},{"$f":"IFERROR(IF(LeningNietBetaald*LeningGoed,Eindsaldo,\"\"), \"\")","v":""}]
[null,{"$f":"IFERROR(IF(LeningNietBetaald*LeningGoed,NummerBetaling,\"\"), \"\")","v":""},{"$f":"IFERROR(IF(LeningNietBetaald*LeningGoed,Betaaldatum,\"\"), \"\")","v":""},{"$f":"IFERROR(IF(LeningNietBetaald*LeningGoed,WaardeLening,\"\"), \"\")","v":""},{"$f":"IFERROR(IF(LeningNietBetaald*LeningGoed,MaandelijkseBetaling,\"\"), \"\")","v":""},{"$f":"IFERROR(IF(LeningNietBetaald*LeningGoed,Hoofdsom,\"\"), \"\")","v":""},{"$f":"IFERROR(IF(LeningNietBetaald*LeningGoed,Rentebedrag,\"\"), \"\")","v":""},{"$f":"IFERROR(IF(LeningNietBetaald*LeningGoed,Eindsaldo,\"\"), \"\")","v":""}]
[null,{"$f":"IFERROR(IF(LeningNietBetaald*LeningGoed,NummerBetaling,\"\"), \"\")","v":""},{"$f":"IFERROR(IF(LeningNietBetaald*LeningGoed,Betaaldatum,\"\"), \"\")","v":""},{"$f":"IFERROR(IF(LeningNietBetaald*LeningGoed,WaardeLening,\"\"), \"\")","v":""},{"$f":"IFERROR(IF(LeningNietBetaald*LeningGoed,MaandelijkseBetaling,\"\"), \"\")","v":""},{"$f":"IFERROR(IF(LeningNietBetaald*LeningGoed,Hoofdsom,\"\"), \"\")","v":""},{"$f":"IFERROR(IF(LeningNietBetaald*LeningGoed,Rentebedrag,\"\"), \"\")","v":""},{"$f":"IFERROR(IF(LeningNietBetaald*LeningGoed,Eindsaldo,\"\"), \"\")","v":""}]
[null,{"$f":"IFERROR(IF(LeningNietBetaald*LeningGoed,NummerBetaling,\"\"), \"\")","v":""},{"$f":"IFERROR(IF(LeningNietBetaald*LeningGoed,Betaaldatum,\"\"), \"\")","v":""},{"$f":"IFERROR(IF(LeningNietBetaald*LeningGoed,WaardeLening,\"\"), \"\")","v":""},{"$f":"IFERROR(IF(LeningNietBetaald*LeningGoed,MaandelijkseBetaling,\"\"), \"\")","v":""},{"$f":"IFERROR(IF(LeningNietBetaald*LeningGoed,Hoofdsom,\"\"), \"\")","v":""},{"$f":"IFERROR(IF(LeningNietBetaald*LeningGoed,Rentebedrag,\"\"), \"\")","v":""},{"$f":"IFERROR(IF(LeningNietBetaald*LeningGoed,Eindsaldo,\"\"), \"\")","v":""}]
[null,{"$f":"IFERROR(IF(LeningNietBetaald*LeningGoed,NummerBetaling,\"\"), \"\")","v":""},{"$f":"IFERROR(IF(LeningNietBetaald*LeningGoed,Betaaldatum,\"\"), \"\")","v":""},{"$f":"IFERROR(IF(LeningNietBetaald*LeningGoed,WaardeLening,\"\"), \"\")","v":""},{"$f":"IFERROR(IF(LeningNietBetaald*LeningGoed,MaandelijkseBetaling,\"\"), \"\")","v":""},{"$f":"IFERROR(IF(LeningNietBetaald*LeningGoed,Hoofdsom,\"\"), \"\")","v":""},{"$f":"IFERROR(IF(LeningNietBetaald*LeningGoed,Rentebedrag,\"\"), \"\")","v":""},{"$f":"IFERROR(IF(LeningNietBetaald*LeningGoed,Eindsaldo,\"\"), \"\")","v":""}]
[null,{"$f":"IFERROR(IF(LeningNietBetaald*LeningGoed,NummerBetaling,\"\"), \"\")","v":""},{"$f":"IFERROR(IF(LeningNietBetaald*LeningGoed,Betaaldatum,\"\"), \"\")","v":""},{"$f":"IFERROR(IF(LeningNietBetaald*LeningGoed,WaardeLening,\"\"), \"\")","v":""},{"$f":"IFERROR(IF(LeningNietBetaald*LeningGoed,MaandelijkseBetaling,\"\"), \"\")","v":""},{"$f":"IFERROR(IF(LeningNietBetaald*LeningGoed,Hoofdsom,\"\"), \"\")","v":""},{"$f":"IFERROR(IF(LeningNietBetaald*LeningGoed,Rentebedrag,\"\"), \"\")","v":""},{"$f":"IFERROR(IF(LeningNietBetaald*LeningGoed,Eindsaldo,\"\"), \"\")","v":""}]
[null,{"$f":"IFERROR(IF(LeningNietBetaald*LeningGoed,NummerBetaling,\"\"), \"\")","v":""},{"$f":"IFERROR(IF(LeningNietBetaald*LeningGoed,Betaaldatum,\"\"), \"\")","v":""},{"$f":"IFERROR(IF(LeningNietBetaald*LeningGoed,WaardeLening,\"\"), \"\")","v":""},{"$f":"IFERROR(IF(LeningNietBetaald*LeningGoed,MaandelijkseBetaling,\"\"), \"\")","v":""},{"$f":"IFERROR(IF(LeningNietBetaald*LeningGoed,Hoofdsom,\"\"), \"\")","v":""},{"$f":"IFERROR(IF(LeningNietBetaald*LeningGoed,Rentebedrag,\"\"), \"\")","v":""},{"$f":"IFERROR(IF(LeningNietBetaald*LeningGoed,Eindsaldo,\"\"), \"\")","v":""}]
[null,{"$f":"IFERROR(IF(LeningNietBetaald*LeningGoed,NummerBetaling,\"\"), \"\")","v":""},{"$f":"IFERROR(IF(LeningNietBetaald*LeningGoed,Betaaldatum,\"\"), \"\")","v":""},{"$f":"IFERROR(IF(LeningNietBetaald*LeningGoed,WaardeLening,\"\"), \"\")","v":""},{"$f":"IFERROR(IF(LeningNietBetaald*LeningGoed,MaandelijkseBetaling,\"\"), \"\")","v":""},{"$f":"IFERROR(IF(LeningNietBetaald*LeningGoed,Hoofdsom,\"\"), \"\")","v":""},{"$f":"IFERROR(IF(LeningNietBetaald*LeningGoed,Rentebedrag,\"\"), \"\")","v":""},{"$f":"IFERROR(IF(LeningNietBetaald*LeningGoed,Eindsaldo,\"\"), \"\")","v":""}]
[null,{"$f":"IFERROR(IF(LeningNietBetaald*LeningGoed,NummerBetaling,\"\"), \"\")","v":""},{"$f":"IFERROR(IF(LeningNietBetaald*LeningGoed,Betaaldatum,\"\"), \"\")","v":""},{"$f":"IFERROR(IF(LeningNietBetaald*LeningGoed,WaardeLening,\"\"), \"\")","v":""},{"$f":"IFERROR(IF(LeningNietBetaald*LeningGoed,MaandelijkseBetaling,\"\"), \"\")","v":""},{"$f":"IFERROR(IF(LeningNietBetaald*LeningGoed,Hoofdsom,\"\"), \"\")","v":""},{"$f":"IFERROR(IF(LeningNietBetaald*LeningGoed,Rentebedrag,\"\"), \"\")","v":""},{"$f":"IFERROR(IF(LeningNietBetaald*LeningGoed,Eindsaldo,\"\"), \"\")","v":""}]
[null,{"$f":"IFERROR(IF(LeningNietBetaald*LeningGoed,NummerBetaling,\"\"), \"\")","v":""},{"$f":"IFERROR(IF(LeningNietBetaald*LeningGoed,Betaaldatum,\"\"), \"\")","v":""},{"$f":"IFERROR(IF(LeningNietBetaald*LeningGoed,WaardeLening,\"\"), \"\")","v":""},{"$f":"IFERROR(IF(LeningNietBetaald*LeningGoed,MaandelijkseBetaling,\"\"), \"\")","v":""},{"$f":"IFERROR(IF(LeningNietBetaald*LeningGoed,Hoofdsom,\"\"), \"\")","v":""},{"$f":"IFERROR(IF(LeningNietBetaald*LeningGoed,Rentebedrag,\"\"), \"\")","v":""},{"$f":"IFERROR(IF(LeningNietBetaald*LeningGoed,Eindsaldo,\"\"), \"\")","v":""}]
[null,{"$f":"IFERROR(IF(LeningNietBetaald*LeningGoed,NummerBetaling,\"\"), \"\")","v":""},{"$f":"IFERROR(IF(LeningNietBetaald*LeningGoed,Betaaldatum,\"\"), \"\")","v":""},{"$f":"IFERROR(IF(LeningNietBetaald*LeningGoed,WaardeLening,\"\"), \"\")","v":""},{"$f":"IFERROR(IF(LeningNietBetaald*LeningGoed,MaandelijkseBetaling,\"\"), \"\")","v":""},{"$f":"IFERROR(IF(LeningNietBetaald*LeningGoed,Hoofdsom,\"\"), \"\")","v":""},{"$f":"IFERROR(IF(LeningNietBetaald*LeningGoed,Rentebedrag,\"\"), \"\")","v":""},{"$f":"IFERROR(IF(LeningNietBetaald*LeningGoed,Eindsaldo,\"\"), \"\")","v":""}]
[null,{"$f":"IFERROR(IF(LeningNietBetaald*LeningGoed,NummerBetaling,\"\"), \"\")","v":""},{"$f":"IFERROR(IF(LeningNietBetaald*LeningGoed,Betaaldatum,\"\"), \"\")","v":""},{"$f":"IFERROR(IF(LeningNietBetaald*LeningGoed,WaardeLening,\"\"), \"\")","v":""},{"$f":"IFERROR(IF(LeningNietBetaald*LeningGoed,MaandelijkseBetaling,\"\"), \"\")","v":""},{"$f":"IFERROR(IF(LeningNietBetaald*LeningGoed,Hoofdsom,\"\"), \"\")","v":""},{"$f":"IFERROR(IF(LeningNietBetaald*LeningGoed,Rentebedrag,\"\"), \"\")","v":""},{"$f":"IFERROR(IF(LeningNietBetaald*LeningGoed,Eindsaldo,\"\"), \"\")","v":""}]
[null,{"$f":"IFERROR(IF(LeningNietBetaald*LeningGoed,NummerBetaling,\"\"), \"\")","v":""},{"$f":"IFERROR(IF(LeningNietBetaald*LeningGoed,Betaaldatum,\"\"), \"\")","v":""},{"$f":"IFERROR(IF(LeningNietBetaald*LeningGoed,WaardeLening,\"\"), \"\")","v":""},{"$f":"IFERROR(IF(LeningNietBetaald*LeningGoed,MaandelijkseBetaling,\"\"), \"\")","v":""},{"$f":"IFERROR(IF(LeningNietBetaald*LeningGoed,Hoofdsom,\"\"), \"\")","v":""},{"$f":"IFERROR(IF(LeningNietBetaald*LeningGoed,Rentebedrag,\"\"), \"\")","v":""},{"$f":"IFERROR(IF(LeningNietBetaald*LeningGoed,Eindsaldo,\"\"), \"\")","v":""}]
[null,{"$f":"IFERROR(IF(LeningNietBetaald*LeningGoed,NummerBetaling,\"\"), \"\")","v":""},{"$f":"IFERROR(IF(LeningNietBetaald*LeningGoed,Betaaldatum,\"\"), \"\")","v":""},{"$f":"IFERROR(IF(LeningNietBetaald*LeningGoed,WaardeLening,\"\"), \"\")","v":""},{"$f":"IFERROR(IF(LeningNietBetaald*LeningGoed,MaandelijkseBetaling,\"\"), \"\")","v":""},{"$f":"IFERROR(IF(LeningNietBetaald*LeningGoed,Hoofdsom,\"\"), \"\")","v":""},{"$f":"IFERROR(IF(LeningNietBetaald*LeningGoed,Rentebedrag,\"\"), \"\")","v":""},{"$f":"IFERROR(IF(LeningNietBetaald*LeningGoed,Eindsaldo,\"\"), \"\")","v":""}]
[null,{"$f":"IFERROR(IF(LeningNietBetaald*LeningGoed,NummerBetaling,\"\"), \"\")","v":""},{"$f":"IFERROR(IF(LeningNietBetaald*LeningGoed,Betaaldatum,\"\"), \"\")","v":""},{"$f":"IFERROR(IF(LeningNietBetaald*LeningGoed,WaardeLening,\"\"), \"\")","v":""},{"$f":"IFERROR(IF(LeningNietBetaald*LeningGoed,MaandelijkseBetaling,\"\"), \"\")","v":""},{"$f":"IFERROR(IF(LeningNietBetaald*LeningGoed,Hoofdsom,\"\"), \"\")","v":""},{"$f":"IFERROR(IF(LeningNietBetaald*LeningGoed,Rentebedrag,\"\"), \"\")","v":""},{"$f":"IFERROR(IF(LeningNietBetaald*LeningGoed,Eindsaldo,\"\"), \"\")","v":""}]
[null,{"$f":"IFERROR(IF(LeningNietBetaald*LeningGoed,NummerBetaling,\"\"), \"\")","v":""},{"$f":"IFERROR(IF(LeningNietBetaald*LeningGoed,Betaaldatum,\"\"), \"\")","v":""},{"$f":"IFERROR(IF(LeningNietBetaald*LeningGoed,WaardeLening,\"\"), \"\")","v":""},{"$f":"IFERROR(IF(LeningNietBetaald*LeningGoed,MaandelijkseBetaling,\"\"), \"\")","v":""},{"$f":"IFERROR(IF(LeningNietBetaald*LeningGoed,Hoofdsom,\"\"), \"\")","v":""},{"$f":"IFERROR(IF(LeningNietBetaald*LeningGoed,Rentebedrag,\"\"), \"\")","v":""},{"$f":"IFERROR(IF(LeningNietBetaald*LeningGoed,Eindsaldo,\"\"), \"\")","v":""}]
[null,{"$f":"IFERROR(IF(LeningNietBetaald*LeningGoed,NummerBetaling,\"\"), \"\")","v":""},{"$f":"IFERROR(IF(LeningNietBetaald*LeningGoed,Betaaldatum,\"\"), \"\")","v":""},{"$f":"IFERROR(IF(LeningNietBetaald*LeningGoed,WaardeLening,\"\"), \"\")","v":""},{"$f":"IFERROR(IF(LeningNietBetaald*LeningGoed,MaandelijkseBetaling,\"\"), \"\")","v":""},{"$f":"IFERROR(IF(LeningNietBetaald*LeningGoed,Hoofdsom,\"\"), \"\")","v":""},{"$f":"IFERROR(IF(LeningNietBetaald*LeningGoed,Rentebedrag,\"\"), \"\")","v":""},{"$f":"IFERROR(IF(LeningNietBetaald*LeningGoed,Eindsaldo,\"\"), \"\")","v":""}]
[null,{"$f":"IFERROR(IF(LeningNietBetaald*LeningGoed,NummerBetaling,\"\"), \"\")","v":""},{"$f":"IFERROR(IF(LeningNietBetaald*LeningGoed,Betaaldatum,\"\"), \"\")","v":""},{"$f":"IFERROR(IF(LeningNietBetaald*LeningGoed,WaardeLening,\"\"), \"\")","v":""},{"$f":"IFERROR(IF(LeningNietBetaald*LeningGoed,MaandelijkseBetaling,\"\"), \"\")","v":""},{"$f":"IFERROR(IF(LeningNietBetaald*LeningGoed,Hoofdsom,\"\"), \"\")","v":""},{"$f":"IFERROR(IF(LeningNietBetaald*LeningGoed,Rentebedrag,\"\"), \"\")","v":""},{"$f":"IFERROR(IF(LeningNietBetaald*LeningGoed,Eindsaldo,\"\"), \"\")","v":""}]
[null,{"$f":"IFERROR(IF(LeningNietBetaald*LeningGoed,NummerBetaling,\"\"), \"\")","v":""},{"$f":"IFERROR(IF(LeningNietBetaald*LeningGoed,Betaaldatum,\"\"), \"\")","v":""},{"$f":"IFERROR(IF(LeningNietBetaald*LeningGoed,WaardeLening,\"\"), \"\")","v":""},{"$f":"IFERROR(IF(LeningNietBetaald*LeningGoed,MaandelijkseBetaling,\"\"), \"\")","v":""},{"$f":"IFERROR(IF(LeningNietBetaald*LeningGoed,Hoofdsom,\"\"), \"\")","v":""},{"$f":"IFERROR(IF(LeningNietBetaald*LeningGoed,Rentebedrag,\"\"), \"\")","v":""},{"$f":"IFERROR(IF(LeningNietBetaald*LeningGoed,Eindsaldo,\"\"), \"\")","v":""}]
[null,{"$f":"IFERROR(IF(LeningNietBetaald*LeningGoed,NummerBetaling,\"\"), \"\")","v":""},{"$f":"IFERROR(IF(LeningNietBetaald*LeningGoed,Betaaldatum,\"\"), \"\")","v":""},{"$f":"IFERROR(IF(LeningNietBetaald*LeningGoed,WaardeLening,\"\"), \"\")","v":""},{"$f":"IFERROR(IF(LeningNietBetaald*LeningGoed,MaandelijkseBetaling,\"\"), \"\")","v":""},{"$f":"IFERROR(IF(LeningNietBetaald*LeningGoed,Hoofdsom,\"\"), \"\")","v":""},{"$f":"IFERROR(IF(LeningNietBetaald*LeningGoed,Rentebedrag,\"\"), \"\")","v":""},{"$f":"IFERROR(IF(LeningNietBetaald*LeningGoed,Eindsaldo,\"\"), \"\")","v":""}]
[null,{"$f":"IFERROR(IF(LeningNietBetaald*LeningGoed,NummerBetaling,\"\"), \"\")","v":""},{"$f":"IFERROR(IF(LeningNietBetaald*LeningGoed,Betaaldatum,\"\"), \"\")","v":""},{"$f":"IFERROR(IF(LeningNietBetaald*LeningGoed,WaardeLening,\"\"), \"\")","v":""},{"$f":"IFERROR(IF(LeningNietBetaald*LeningGoed,MaandelijkseBetaling,\"\"), \"\")","v":""},{"$f":"IFERROR(IF(LeningNietBetaald*LeningGoed,Hoofdsom,\"\"), \"\")","v":""},{"$f":"IFERROR(IF(LeningNietBetaald*LeningGoed,Rentebedrag,\"\"), \"\")","v":""},{"$f":"IFERROR(IF(LeningNietBetaald*LeningGoed,Eindsaldo,\"\"), \"\")","v":""}]
[null,{"$f":"IFERROR(IF(LeningNietBetaald*LeningGoed,NummerBetaling,\"\"), \"\")","v":""},{"$f":"IFERROR(IF(LeningNietBetaald*LeningGoed,Betaaldatum,\"\"), \"\")","v":""},{"$f":"IFERROR(IF(LeningNietBetaald*LeningGoed,WaardeLening,\"\"), \"\")","v":""},{"$f":"IFERROR(IF(LeningNietBetaald*LeningGoed,MaandelijkseBetaling,\"\"), \"\")","v":""},{"$f":"IFERROR(IF(LeningNietBetaald*LeningGoed,Hoofdsom,\"\"), \"\")","v":""},{"$f":"IFERROR(IF(LeningNietBetaald*LeningGoed,Rentebedrag,\"\"), \"\")","v":""},{"$f":"IFERROR(IF(LeningNietBetaald*LeningGoed,Eindsaldo,\"\"), \"\")","v":""}]
[null,{"$f":"IFERROR(IF(LeningNietBetaald*LeningGoed,NummerBetaling,\"\"), \"\")","v":""},{"$f":"IFERROR(IF(LeningNietBetaald*LeningGoed,Betaaldatum,\"\"), \"\")","v":""},{"$f":"IFERROR(IF(LeningNietBetaald*LeningGoed,WaardeLening,\"\"), \"\")","v":""},{"$f":"IFERROR(IF(LeningNietBetaald*LeningGoed,MaandelijkseBetaling,\"\"), \"\")","v":""},{"$f":"IFERROR(IF(LeningNietBetaald*LeningGoed,Hoofdsom,\"\"), \"\")","v":""},{"$f":"IFERROR(IF(LeningNietBetaald*LeningGoed,Rentebedrag,\"\"), \"\")","v":""},{"$f":"IFERROR(IF(LeningNietBetaald*LeningGoed,Eindsaldo,\"\"), \"\")","v":""}]
[null,{"$f":"IFERROR(IF(LeningNietBetaald*LeningGoed,NummerBetaling,\"\"), \"\")","v":""},{"$f":"IFERROR(IF(LeningNietBetaald*LeningGoed,Betaaldatum,\"\"), \"\")","v":""},{"$f":"IFERROR(IF(LeningNietBetaald*LeningGoed,WaardeLening,\"\"), \"\")","v":""},{"$f":"IFERROR(IF(LeningNietBetaald*LeningGoed,MaandelijkseBetaling,\"\"), \"\")","v":""},{"$f":"IFERROR(IF(LeningNietBetaald*LeningGoed,Hoofdsom,\"\"), \"\")","v":""},{"$f":"IFERROR(IF(LeningNietBetaald*LeningGoed,Rentebedrag,\"\"), \"\")","v":""},{"$f":"IFERROR(IF(LeningNietBetaald*LeningGoed,Eindsaldo,\"\"), \"\")","v":""}]
[null,{"$f":"IFERROR(IF(LeningNietBetaald*LeningGoed,NummerBetaling,\"\"), \"\")","v":""},{"$f":"IFERROR(IF(LeningNietBetaald*LeningGoed,Betaaldatum,\"\"), \"\")","v":""},{"$f":"IFERROR(IF(LeningNietBetaald*LeningGoed,WaardeLening,\"\"), \"\")","v":""},{"$f":"IFERROR(IF(LeningNietBetaald*LeningGoed,MaandelijkseBetaling,\"\"), \"\")","v":""},{"$f":"IFERROR(IF(LeningNietBetaald*LeningGoed,Hoofdsom,\"\"), \"\")","v":""},{"$f":"IFERROR(IF(LeningNietBetaald*LeningGoed,Rentebedrag,\"\"), \"\")","v":""},{"$f":"IFERROR(IF(LeningNietBetaald*LeningGoed,Eindsaldo,\"\"), \"\")","v":""}]
[null,{"$f":"IFERROR(IF(LeningNietBetaald*LeningGoed,NummerBetaling,\"\"), \"\")","v":""},{"$f":"IFERROR(IF(LeningNietBetaald*LeningGoed,Betaaldatum,\"\"), \"\")","v":""},{"$f":"IFERROR(IF(LeningNietBetaald*LeningGoed,WaardeLening,\"\"), \"\")","v":""},{"$f":"IFERROR(IF(LeningNietBetaald*LeningGoed,MaandelijkseBetaling,\"\"), \"\")","v":""},{"$f":"IFERROR(IF(LeningNietBetaald*LeningGoed,Hoofdsom,\"\"), \"\")","v":""},{"$f":"IFERROR(IF(LeningNietBetaald*LeningGoed,Rentebedrag,\"\"), \"\")","v":""},{"$f":"IFERROR(IF(LeningNietBetaald*LeningGoed,Eindsaldo,\"\"), \"\")","v":""}]
[null,{"$f":"IFERROR(IF(LeningNietBetaald*LeningGoed,NummerBetaling,\"\"), \"\")","v":""},{"$f":"IFERROR(IF(LeningNietBetaald*LeningGoed,Betaaldatum,\"\"), \"\")","v":""},{"$f":"IFERROR(IF(LeningNietBetaald*LeningGoed,WaardeLening,\"\"), \"\")","v":""},{"$f":"IFERROR(IF(LeningNietBetaald*LeningGoed,MaandelijkseBetaling,\"\"), \"\")","v":""},{"$f":"IFERROR(IF(LeningNietBetaald*LeningGoed,Hoofdsom,\"\"), \"\")","v":""},{"$f":"IFERROR(IF(LeningNietBetaald*LeningGoed,Rentebedrag,\"\"), \"\")","v":""},{"$f":"IFERROR(IF(LeningNietBetaald*LeningGoed,Eindsaldo,\"\"), \"\")","v":""}]
[null,{"$f":"IFERROR(IF(LeningNietBetaald*LeningGoed,NummerBetaling,\"\"), \"\")","v":""},{"$f":"IFERROR(IF(LeningNietBetaald*LeningGoed,Betaaldatum,\"\"), \"\")","v":""},{"$f":"IFERROR(IF(LeningNietBetaald*LeningGoed,WaardeLening,\"\"), \"\")","v":""},{"$f":"IFERROR(IF(LeningNietBetaald*LeningGoed,MaandelijkseBetaling,\"\"), \"\")","v":""},{"$f":"IFERROR(IF(LeningNietBetaald*LeningGoed,Hoofdsom,\"\"), \"\")","v":""},{"$f":"IFERROR(IF(LeningNietBetaald*LeningGoed,Rentebedrag,\"\"), \"\")","v":""},{"$f":"IFERROR(IF(LeningNietBetaald*LeningGoed,Eindsaldo,\"\"), \"\")","v":""}]
[null,{"$f":"IFERROR(IF(LeningNietBetaald*LeningGoed,NummerBetaling,\"\"), \"\")","v":""},{"$f":"IFERROR(IF(LeningNietBetaald*LeningGoed,Betaaldatum,\"\"), \"\")","v":""},{"$f":"IFERROR(IF(LeningNietBetaald*LeningGoed,WaardeLening,\"\"), \"\")","v":""},{"$f":"IFERROR(IF(LeningNietBetaald*LeningGoed,MaandelijkseBetaling,\"\"), \"\")","v":""},{"$f":"IFERROR(IF(LeningNietBetaald*LeningGoed,Hoofdsom,\"\"), \"\")","v":""},{"$f":"IFERROR(IF(LeningNietBetaald*LeningGoed,Rentebedrag,\"\"), \"\")","v":""},{"$f":"IFERROR(IF(LeningNietBetaald*LeningGoed,Eindsaldo,\"\"), \"\")","v":""}]
[null,{"$f":"IFERROR(IF(LeningNietBetaald*LeningGoed,NummerBetaling,\"\"), \"\")","v":""},{"$f":"IFERROR(IF(LeningNietBetaald*LeningGoed,Betaaldatum,\"\"), \"\")","v":""},{"$f":"IFERROR(IF(LeningNietBetaald*LeningGoed,WaardeLening,\"\"), \"\")","v":""},{"$f":"IFERROR(IF(LeningNietBetaald*LeningGoed,MaandelijkseBetaling,\"\"), \"\")","v":""},{"$f":"IFERROR(IF(LeningNietBetaald*LeningGoed,Hoofdsom,\"\"), \"\")","v":""},{"$f":"IFERROR(IF(LeningNietBetaald*LeningGoed,Rentebedrag,\"\"), \"\")","v":""},{"$f":"IFERROR(IF(LeningNietBetaald*LeningGoed,Eindsaldo,\"\"), \"\")","v":""}]
[null,{"$f":"IFERROR(IF(LeningNietBetaald*LeningGoed,NummerBetaling,\"\"), \"\")","v":""},{"$f":"IFERROR(IF(LeningNietBetaald*LeningGoed,Betaaldatum,\"\"), \"\")","v":""},{"$f":"IFERROR(IF(LeningNietBetaald*LeningGoed,WaardeLening,\"\"), \"\")","v":""},{"$f":"IFERROR(IF(LeningNietBetaald*LeningGoed,MaandelijkseBetaling,\"\"), \"\")","v":""},{"$f":"IFERROR(IF(LeningNietBetaald*LeningGoed,Hoofdsom,\"\"), \"\")","v":""},{"$f":"IFERROR(IF(LeningNietBetaald*LeningGoed,Rentebedrag,\"\"), \"\")","v":""},{"$f":"IFERROR(IF(LeningNietBetaald*LeningGoed,Eindsaldo,\"\"), \"\")","v":""}]
[null,{"$f":"IFERROR(IF(LeningNietBetaald*LeningGoed,NummerBetaling,\"\"), \"\")","v":""},{"$f":"IFERROR(IF(LeningNietBetaald*LeningGoed,Betaaldatum,\"\"), \"\")","v":""},{"$f":"IFERROR(IF(LeningNietBetaald*LeningGoed,WaardeLening,\"\"), \"\")","v":""},{"$f":"IFERROR(IF(LeningNietBetaald*LeningGoed,MaandelijkseBetaling,\"\"), \"\")","v":""},{"$f":"IFERROR(IF(LeningNietBetaald*LeningGoed,Hoofdsom,\"\"), \"\")","v":""},{"$f":"IFERROR(IF(LeningNietBetaald*LeningGoed,Rentebedrag,\"\"), \"\")","v":""},{"$f":"IFERROR(IF(LeningNietBetaald*LeningGoed,Eindsaldo,\"\"), \"\")","v":""}]
[null,{"$f":"IFERROR(IF(LeningNietBetaald*LeningGoed,NummerBetaling,\"\"), \"\")","v":""},{"$f":"IFERROR(IF(LeningNietBetaald*LeningGoed,Betaaldatum,\"\"), \"\")","v":""},{"$f":"IFERROR(IF(LeningNietBetaald*LeningGoed,WaardeLening,\"\"), \"\")","v":""},{"$f":"IFERROR(IF(LeningNietBetaald*LeningGoed,MaandelijkseBetaling,\"\"), \"\")","v":""},{"$f":"IFERROR(IF(LeningNietBetaald*LeningGoed,Hoofdsom,\"\"), \"\")","v":""},{"$f":"IFERROR(IF(LeningNietBetaald*LeningGoed,Rentebedrag,\"\"), \"\")","v":""},{"$f":"IFERROR(IF(LeningNietBetaald*LeningGoed,Eindsaldo,\"\"), \"\")","v":""}]
[null,{"$f":"IFERROR(IF(LeningNietBetaald*LeningGoed,NummerBetaling,\"\"), \"\")","v":""},{"$f":"IFERROR(IF(LeningNietBetaald*LeningGoed,Betaaldatum,\"\"), \"\")","v":""},{"$f":"IFERROR(IF(LeningNietBetaald*LeningGoed,WaardeLening,\"\"), \"\")","v":""},{"$f":"IFERROR(IF(LeningNietBetaald*LeningGoed,MaandelijkseBetaling,\"\"), \"\")","v":""},{"$f":"IFERROR(IF(LeningNietBetaald*LeningGoed,Hoofdsom,\"\"), \"\")","v":""},{"$f":"IFERROR(IF(LeningNietBetaald*LeningGoed,Rentebedrag,\"\"), \"\")","v":""},{"$f":"IFERROR(IF(LeningNietBetaald*LeningGoed,Eindsaldo,\"\"), \"\")","v":""}]
[null,{"$f":"IFERROR(IF(LeningNietBetaald*LeningGoed,NummerBetaling,\"\"), \"\")","v":""},{"$f":"IFERROR(IF(LeningNietBetaald*LeningGoed,Betaaldatum,\"\"), \"\")","v":""},{"$f":"IFERROR(IF(LeningNietBetaald*LeningGoed,WaardeLening,\"\"), \"\")","v":""},{"$f":"IFERROR(IF(LeningNietBetaald*LeningGoed,MaandelijkseBetaling,\"\"), \"\")","v":""},{"$f":"IFERROR(IF(LeningNietBetaald*LeningGoed,Hoofdsom,\"\"), \"\")","v":""},{"$f":"IFERROR(IF(LeningNietBetaald*LeningGoed,Rentebedrag,\"\"), \"\")","v":""},{"$f":"IFERROR(IF(LeningNietBetaald*LeningGoed,Eindsaldo,\"\"), \"\")","v":""}]
[null,{"$f":"IFERROR(IF(LeningNietBetaald*LeningGoed,NummerBetaling,\"\"), \"\")","v":""},{"$f":"IFERROR(IF(LeningNietBetaald*LeningGoed,Betaaldatum,\"\"), \"\")","v":""},{"$f":"IFERROR(IF(LeningNietBetaald*LeningGoed,WaardeLening,\"\"), \"\")","v":""},{"$f":"IFERROR(IF(LeningNietBetaald*LeningGoed,MaandelijkseBetaling,\"\"), \"\")","v":""},{"$f":"IFERROR(IF(LeningNietBetaald*LeningGoed,Hoofdsom,\"\"), \"\")","v":""},{"$f":"IFERROR(IF(LeningNietBetaald*LeningGoed,Rentebedrag,\"\"), \"\")","v":""},{"$f":"IFERROR(IF(LeningNietBetaald*LeningGoed,Eindsaldo,\"\"), \"\")","v":""}]
[null,{"$f":"IFERROR(IF(LeningNietBetaald*LeningGoed,NummerBetaling,\"\"), \"\")","v":""},{"$f":"IFERROR(IF(LeningNietBetaald*LeningGoed,Betaaldatum,\"\"), \"\")","v":""},{"$f":"IFERROR(IF(LeningNietBetaald*LeningGoed,WaardeLening,\"\"), \"\")","v":""},{"$f":"IFERROR(IF(LeningNietBetaald*LeningGoed,MaandelijkseBetaling,\"\"), \"\")","v":""},{"$f":"IFERROR(IF(LeningNietBetaald*LeningGoed,Hoofdsom,\"\"), \"\")","v":""},{"$f":"IFERROR(IF(LeningNietBetaald*LeningGoed,Rentebedrag,\"\"), \"\")","v":""},{"$f":"IFERROR(IF(LeningNietBetaald*LeningGoed,Eindsaldo,\"\"), \"\")","v":""}]
[null,{"$f":"IFERROR(IF(LeningNietBetaald*LeningGoed,NummerBetaling,\"\"), \"\")","v":""},{"$f":"IFERROR(IF(LeningNietBetaald*LeningGoed,Betaaldatum,\"\"), \"\")","v":""},{"$f":"IFERROR(IF(LeningNietBetaald*LeningGoed,WaardeLening,\"\"), \"\")","v":""},{"$f":"IFERROR(IF(LeningNietBetaald*LeningGoed,MaandelijkseBetaling,\"\"), \"\")","v":""},{"$f":"IFERROR(IF(LeningNietBetaald*LeningGoed,Hoofdsom,\"\"), \"\")","v":""},{"$f":"IFERROR(IF(LeningNietBetaald*LeningGoed,Rentebedrag,\"\"), \"\")","v":""},{"$f":"IFERROR(IF(LeningNietBetaald*LeningGoed,Eindsaldo,\"\"), \"\")","v":""}]
[null,{"$f":"IFERROR(IF(LeningNietBetaald*LeningGoed,NummerBetaling,\"\"), \"\")","v":""},{"$f":"IFERROR(IF(LeningNietBetaald*LeningGoed,Betaaldatum,\"\"), \"\")","v":""},{"$f":"IFERROR(IF(LeningNietBetaald*LeningGoed,WaardeLening,\"\"), \"\")","v":""},{"$f":"IFERROR(IF(LeningNietBetaald*LeningGoed,MaandelijkseBetaling,\"\"), \"\")","v":""},{"$f":"IFERROR(IF(LeningNietBetaald*LeningGoed,Hoofdsom,\"\"), \"\")","v":""},{"$f":"IFERROR(IF(LeningNietBetaald*LeningGoed,Rentebedrag,\"\"), \"\")","v":""},{"$f":"IFERROR(IF(LeningNietBetaald*LeningGoed,Eindsaldo,\"\"), \"\")","v":""}]
[null,{"$f":"IFERROR(IF(LeningNietBetaald*LeningGoed,NummerBetaling,\"\"), \"\")","v":""},{"$f":"IFERROR(IF(LeningNietBetaald*LeningGoed,Betaaldatum,\"\"), \"\")","v":""},{"$f":"IFERROR(IF(LeningNietBetaald*LeningGoed,WaardeLening,\"\"), \"\")","v":""},{"$f":"IFERROR(IF(LeningNietBetaald*LeningGoed,MaandelijkseBetaling,\"\"), \"\")","v":""},{"$f":"IFERROR(IF(LeningNietBetaald*LeningGoed,Hoofdsom,\"\"), \"\")","v":""},{"$f":"IFERROR(IF(LeningNietBetaald*LeningGoed,Rentebedrag,\"\"), \"\")","v":""},{"$f":"IFERROR(IF(LeningNietBetaald*LeningGoed,Eindsaldo,\"\"), \"\")","v":""}]
[null,{"$f":"IFERROR(IF(LeningNietBetaald*LeningGoed,NummerBetaling,\"\"), \"\")","v":""},{"$f":"IFERROR(IF(LeningNietBetaald*LeningGoed,Betaaldatum,\"\"), \"\")","v":""},{"$f":"IFERROR(IF(LeningNietBetaald*LeningGoed,WaardeLening,\"\"), \"\")","v":""},{"$f":"IFERROR(IF(LeningNietBetaald*LeningGoed,MaandelijkseBetaling,\"\"), \"\")","v":""},{"$f":"IFERROR(IF(LeningNietBetaald*LeningGoed,Hoofdsom,\"\"), \"\")","v":""},{"$f":"IFERROR(IF(LeningNietBetaald*LeningGoed,Rentebedrag,\"\"), \"\")","v":""},{"$f":"IFERROR(IF(LeningNietBetaald*LeningGoed,Eindsaldo,\"\"), \"\")","v":""}]
[null,{"$f":"IFERROR(IF(LeningNietBetaald*LeningGoed,NummerBetaling,\"\"), \"\")","v":""},{"$f":"IFERROR(IF(LeningNietBetaald*LeningGoed,Betaaldatum,\"\"), \"\")","v":""},{"$f":"IFERROR(IF(LeningNietBetaald*LeningGoed,WaardeLening,\"\"), \"\")","v":""},{"$f":"IFERROR(IF(LeningNietBetaald*LeningGoed,MaandelijkseBetaling,\"\"), \"\")","v":""},{"$f":"IFERROR(IF(LeningNietBetaald*LeningGoed,Hoofdsom,\"\"), \"\")","v":""},{"$f":"IFERROR(IF(LeningNietBetaald*LeningGoed,Rentebedrag,\"\"), \"\")","v":""},{"$f":"IFERROR(IF(LeningNietBetaald*LeningGoed,Eindsaldo,\"\"), \"\")","v":""}]
[null,{"$f":"IFERROR(IF(LeningNietBetaald*LeningGoed,NummerBetaling,\"\"), \"\")","v":""},{"$f":"IFERROR(IF(LeningNietBetaald*LeningGoed,Betaaldatum,\"\"), \"\")","v":""},{"$f":"IFERROR(IF(LeningNietBetaald*LeningGoed,WaardeLening,\"\"), \"\")","v":""},{"$f":"IFERROR(IF(LeningNietBetaald*LeningGoed,MaandelijkseBetaling,\"\"), \"\")","v":""},{"$f":"IFERROR(IF(LeningNietBetaald*LeningGoed,Hoofdsom,\"\"), \"\")","v":""},{"$f":"IFERROR(IF(LeningNietBetaald*LeningGoed,Rentebedrag,\"\"), \"\")","v":""},{"$f":"IFERROR(IF(LeningNietBetaald*LeningGoed,Eindsaldo,\"\"), \"\")","v":""}]
[null,{"$f":"IFERROR(IF(LeningNietBetaald*LeningGoed,NummerBetaling,\"\"), \"\")","v":""},{"$f":"IFERROR(IF(LeningNietBetaald*LeningGoed,Betaaldatum,\"\"), \"\")","v":""},{"$f":"IFERROR(IF(LeningNietBetaald*LeningGoed,WaardeLening,\"\"), \"\")","v":""},{"$f":"IFERROR(IF(LeningNietBetaald*LeningGoed,MaandelijkseBetaling,\"\"), \"\")","v":""},{"$f":"IFERROR(IF(LeningNietBetaald*LeningGoed,Hoofdsom,\"\"), \"\")","v":""},{"$f":"IFERROR(IF(LeningNietBetaald*LeningGoed,Rentebedrag,\"\"), \"\")","v":""},{"$f":"IFERROR(IF(LeningNietBetaald*LeningGoed,Eindsaldo,\"\"), \"\")","v":""}]
[null,{"$f":"IFERROR(IF(LeningNietBetaald*LeningGoed,NummerBetaling,\"\"), \"\")","v":""},{"$f":"IFERROR(IF(LeningNietBetaald*LeningGoed,Betaaldatum,\"\"), \"\")","v":""},{"$f":"IFERROR(IF(LeningNietBetaald*LeningGoed,WaardeLening,\"\"), \"\")","v":""},{"$f":"IFERROR(IF(LeningNietBetaald*LeningGoed,MaandelijkseBetaling,\"\"), \"\")","v":""},{"$f":"IFERROR(IF(LeningNietBetaald*LeningGoed,Hoofdsom,\"\"), \"\")","v":""},{"$f":"IFERROR(IF(LeningNietBetaald*LeningGoed,Rentebedrag,\"\"), \"\")","v":""},{"$f":"IFERROR(IF(LeningNietBetaald*LeningGoed,Eindsaldo,\"\"), \"\")","v":""}]
[null,{"$f":"IFERROR(IF(LeningNietBetaald*LeningGoed,NummerBetaling,\"\"), \"\")","v":""},{"$f":"IFERROR(IF(LeningNietBetaald*LeningGoed,Betaaldatum,\"\"), \"\")","v":""},{"$f":"IFERROR(IF(LeningNietBetaald*LeningGoed,WaardeLening,\"\"), \"\")","v":""},{"$f":"IFERROR(IF(LeningNietBetaald*LeningGoed,MaandelijkseBetaling,\"\"), \"\")","v":""},{"$f":"IFERROR(IF(LeningNietBetaald*LeningGoed,Hoofdsom,\"\"), \"\")","v":""},{"$f":"IFERROR(IF(LeningNietBetaald*LeningGoed,Rentebedrag,\"\"), \"\")","v":""},{"$f":"IFERROR(IF(LeningNietBetaald*LeningGoed,Eindsaldo,\"\"), \"\")","v":""}]
[null,{"$f":"IFERROR(IF(LeningNietBetaald*LeningGoed,NummerBetaling,\"\"), \"\")","v":""},{"$f":"IFERROR(IF(LeningNietBetaald*LeningGoed,Betaaldatum,\"\"), \"\")","v":""},{"$f":"IFERROR(IF(LeningNietBetaald*LeningGoed,WaardeLening,\"\"), \"\")","v":""},{"$f":"IFERROR(IF(LeningNietBetaald*LeningGoed,MaandelijkseBetaling,\"\"), \"\")","v":""},{"$f":"IFERROR(IF(LeningNietBetaald*LeningGoed,Hoofdsom,\"\"), \"\")","v":""},{"$f":"IFERROR(IF(LeningNietBetaald*LeningGoed,Rentebedrag,\"\"), \"\")","v":""},{"$f":"IFERROR(IF(LeningNietBetaald*LeningGoed,Eindsaldo,\"\"), \"\")","v":""}]
[null,{"$f":"IFERROR(IF(LeningNietBetaald*LeningGoed,NummerBetaling,\"\"), \"\")","v":""},{"$f":"IFERROR(IF(LeningNietBetaald*LeningGoed,Betaaldatum,\"\"), \"\")","v":""},{"$f":"IFERROR(IF(LeningNietBetaald*LeningGoed,WaardeLening,\"\"), \"\")","v":""},{"$f":"IFERROR(IF(LeningNietBetaald*LeningGoed,MaandelijkseBetaling,\"\"), \"\")","v":""},{"$f":"IFERROR(IF(LeningNietBetaald*LeningGoed,Hoofdsom,\"\"), \"\")","v":""},{"$f":"IFERROR(IF(LeningNietBetaald*LeningGoed,Rentebedrag,\"\"), \"\")","v":""},{"$f":"IFERROR(IF(LeningNietBetaald*LeningGoed,Eindsaldo,\"\"), \"\")","v":""}]
[null,{"$f":"IFERROR(IF(LeningNietBetaald*LeningGoed,NummerBetaling,\"\"), \"\")","v":""},{"$f":"IFERROR(IF(LeningNietBetaald*LeningGoed,Betaaldatum,\"\"), \"\")","v":""},{"$f":"IFERROR(IF(LeningNietBetaald*LeningGoed,WaardeLening,\"\"), \"\")","v":""},{"$f":"IFERROR(IF(LeningNietBetaald*LeningGoed,MaandelijkseBetaling,\"\"), \"\")","v":""},{"$f":"IFERROR(IF(LeningNietBetaald*LeningGoed,Hoofdsom,\"\"), \"\")","v":""},{"$f":"IFERROR(IF(LeningNietBetaald*LeningGoed,Rentebedrag,\"\"), \"\")","v":""},{"$f":"IFERROR(IF(LeningNietBetaald*LeningGoed,Eindsaldo,\"\"), \"\")","v":""}]
[null,{"$f":"IFERROR(IF(LeningNietBetaald*LeningGoed,NummerBetaling,\"\"), \"\")","v":""},{"$f":"IFERROR(IF(LeningNietBetaald*LeningGoed,Betaaldatum,\"\"), \"\")","v":""},{"$f":"IFERROR(IF(LeningNietBetaald*LeningGoed,WaardeLening,\"\"), \"\")","v":""},{"$f":"IFERROR(IF(LeningNietBetaald*LeningGoed,MaandelijkseBetaling,\"\"), \"\")","v":""},{"$f":"IFERROR(IF(LeningNietBetaald*LeningGoed,Hoofdsom,\"\"), \"\")","v":""},{"$f":"IFERROR(IF(LeningNietBetaald*LeningGoed,Rentebedrag,\"\"), \"\")","v":""},{"$f":"IFERROR(IF(LeningNietBetaald*LeningGoed,Eindsaldo,\"\"), \"\")","v":""}]
[null,{"$f":"IFERROR(IF(LeningNietBetaald*LeningGoed,NummerBetaling,\"\"), \"\")","v":""},{"$f":"IFERROR(IF(LeningNietBetaald*LeningGoed,Betaaldatum,\"\"), \"\")","v":""},{"$f":"IFERROR(IF(LeningNietBetaald*LeningGoed,WaardeLening,\"\"), \"\")","v":""},{"$f":"IFERROR(IF(LeningNietBetaald*LeningGoed,MaandelijkseBetaling,\"\"), \"\")","v":""},{"$f":"IFERROR(IF(LeningNietBetaald*LeningGoed,Hoofdsom,\"\"), \"\")","v":""},{"$f":"IFERROR(IF(LeningNietBetaald*LeningGoed,Rentebedrag,\"\"), \"\")","v":""},{"$f":"IFERROR(IF(LeningNietBetaald*LeningGoed,Eindsaldo,\"\"), \"\")","v":""}]
[null,{"$f":"IFERROR(IF(LeningNietBetaald*LeningGoed,NummerBetaling,\"\"), \"\")","v":""},{"$f":"IFERROR(IF(LeningNietBetaald*LeningGoed,Betaaldatum,\"\"), \"\")","v":""},{"$f":"IFERROR(IF(LeningNietBetaald*LeningGoed,WaardeLening,\"\"), \"\")","v":""},{"$f":"IFERROR(IF(LeningNietBetaald*LeningGoed,MaandelijkseBetaling,\"\"), \"\")","v":""},{"$f":"IFERROR(IF(LeningNietBetaald*LeningGoed,Hoofdsom,\"\"), \"\")","v":""},{"$f":"IFERROR(IF(LeningNietBetaald*LeningGoed,Rentebedrag,\"\"), \"\")","v":""},{"$f":"IFERROR(IF(LeningNietBetaald*LeningGoed,Eindsaldo,\"\"), \"\")","v":""}]
[null,{"$f":"IFERROR(IF(LeningNietBetaald*LeningGoed,NummerBetaling,\"\"), \"\")","v":""},{"$f":"IFERROR(IF(LeningNietBetaald*LeningGoed,Betaaldatum,\"\"), \"\")","v":""},{"$f":"IFERROR(IF(LeningNietBetaald*LeningGoed,WaardeLening,\"\"), \"\")","v":""},{"$f":"IFERROR(IF(LeningNietBetaald*LeningGoed,MaandelijkseBetaling,\"\"), \"\")","v":""},{"$f":"IFERROR(IF(LeningNietBetaald*LeningGoed,Hoofdsom,\"\"), \"\")","v":""},{"$f":"IFERROR(IF(LeningNietBetaald*LeningGoed,Rentebedrag,\"\"), \"\")","v":""},{"$f":"IFERROR(IF(LeningNietBetaald*LeningGoed,Eindsaldo,\"\"), \"\")","v":""}]
[null,{"$f":"IFERROR(IF(LeningNietBetaald*LeningGoed,NummerBetaling,\"\"), \"\")","v":""},{"$f":"IFERROR(IF(LeningNietBetaald*LeningGoed,Betaaldatum,\"\"), \"\")","v":""},{"$f":"IFERROR(IF(LeningNietBetaald*LeningGoed,WaardeLening,\"\"), \"\")","v":""},{"$f":"IFERROR(IF(LeningNietBetaald*LeningGoed,MaandelijkseBetaling,\"\"), \"\")","v":""},{"$f":"IFERROR(IF(LeningNietBetaald*LeningGoed,Hoofdsom,\"\"), \"\")","v":""},{"$f":"IFERROR(IF(LeningNietBetaald*LeningGoed,Rentebedrag,\"\"), \"\")","v":""},{"$f":"IFERROR(IF(LeningNietBetaald*LeningGoed,Eindsaldo,\"\"), \"\")","v":""}]
[null,{"$f":"IFERROR(IF(LeningNietBetaald*LeningGoed,NummerBetaling,\"\"), \"\")","v":""},{"$f":"IFERROR(IF(LeningNietBetaald*LeningGoed,Betaaldatum,\"\"), \"\")","v":""},{"$f":"IFERROR(IF(LeningNietBetaald*LeningGoed,WaardeLening,\"\"), \"\")","v":""},{"$f":"IFERROR(IF(LeningNietBetaald*LeningGoed,MaandelijkseBetaling,\"\"), \"\")","v":""},{"$f":"IFERROR(IF(LeningNietBetaald*LeningGoed,Hoofdsom,\"\"), \"\")","v":""},{"$f":"IFERROR(IF(LeningNietBetaald*LeningGoed,Rentebedrag,\"\"), \"\")","v":""},{"$f":"IFERROR(IF(LeningNietBetaald*LeningGoed,Eindsaldo,\"\"), \"\")","v":""}]
[null,{"$f":"IFERROR(IF(LeningNietBetaald*LeningGoed,NummerBetaling,\"\"), \"\")","v":""},{"$f":"IFERROR(IF(LeningNietBetaald*LeningGoed,Betaaldatum,\"\"), \"\")","v":""},{"$f":"IFERROR(IF(LeningNietBetaald*LeningGoed,WaardeLening,\"\"), \"\")","v":""},{"$f":"IFERROR(IF(LeningNietBetaald*LeningGoed,MaandelijkseBetaling,\"\"), \"\")","v":""},{"$f":"IFERROR(IF(LeningNietBetaald*LeningGoed,Hoofdsom,\"\"), \"\")","v":""},{"$f":"IFERROR(IF(LeningNietBetaald*LeningGoed,Rentebedrag,\"\"), \"\")","v":""},{"$f":"IFERROR(IF(LeningNietBetaald*LeningGoed,Eindsaldo,\"\"), \"\")","v":""}]
[null,{"$f":"IFERROR(IF(LeningNietBetaald*LeningGoed,NummerBetaling,\"\"), \"\")","v":""},{"$f":"IFERROR(IF(LeningNietBetaald*LeningGoed,Betaaldatum,\"\"), \"\")","v":""},{"$f":"IFERROR(IF(LeningNietBetaald*LeningGoed,WaardeLening,\"\"), \"\")","v":""},{"$f":"IFERROR(IF(LeningNietBetaald*LeningGoed,MaandelijkseBetaling,\"\"), \"\")","v":""},{"$f":"IFERROR(IF(LeningNietBetaald*LeningGoed,Hoofdsom,\"\"), \"\")","v":""},{"$f":"IFERROR(IF(LeningNietBetaald*LeningGoed,Rentebedrag,\"\"), \"\")","v":""},{"$f":"IFERROR(IF(LeningNietBetaald*LeningGoed,Eindsaldo,\"\"), \"\")","v":""}]
[null,{"$f":"IFERROR(IF(LeningNietBetaald*LeningGoed,NummerBetaling,\"\"), \"\")","v":""},{"$f":"IFERROR(IF(LeningNietBetaald*LeningGoed,Betaaldatum,\"\"), \"\")","v":""},{"$f":"IFERROR(IF(LeningNietBetaald*LeningGoed,WaardeLening,\"\"), \"\")","v":""},{"$f":"IFERROR(IF(LeningNietBetaald*LeningGoed,MaandelijkseBetaling,\"\"), \"\")","v":""},{"$f":"IFERROR(IF(LeningNietBetaald*LeningGoed,Hoofdsom,\"\"), \"\")","v":""},{"$f":"IFERROR(IF(LeningNietBetaald*LeningGoed,Rentebedrag,\"\"), \"\")","v":""},{"$f":"IFERROR(IF(LeningNietBetaald*LeningGoed,Eindsaldo,\"\"), \"\")","v":""}]
[null,{"$f":"IFERROR(IF(LeningNietBetaald*LeningGoed,NummerBetaling,\"\"), \"\")","v":""},{"$f":"IFERROR(IF(LeningNietBetaald*LeningGoed,Betaaldatum,\"\"), \"\")","v":""},{"$f":"IFERROR(IF(LeningNietBetaald*LeningGoed,WaardeLening,\"\"), \"\")","v":""},{"$f":"IFERROR(IF(LeningNietBetaald*LeningGoed,MaandelijkseBetaling,\"\"), \"\")","v":""},{"$f":"IFERROR(IF(LeningNietBetaald*LeningGoed,Hoofdsom,\"\"), \"\")","v":""},{"$f":"IFERROR(IF(LeningNietBetaald*LeningGoed,Rentebedrag,\"\"), \"\")","v":""},{"$f":"IFERROR(IF(LeningNietBetaald*LeningGoed,Eindsaldo,\"\"), \"\")","v":""}]
[null,{"$f":"IFERROR(IF(LeningNietBetaald*LeningGoed,NummerBetaling,\"\"), \"\")","v":""},{"$f":"IFERROR(IF(LeningNietBetaald*LeningGoed,Betaaldatum,\"\"), \"\")","v":""},{"$f":"IFERROR(IF(LeningNietBetaald*LeningGoed,WaardeLening,\"\"), \"\")","v":""},{"$f":"IFERROR(IF(LeningNietBetaald*LeningGoed,MaandelijkseBetaling,\"\"), \"\")","v":""},{"$f":"IFERROR(IF(LeningNietBetaald*LeningGoed,Hoofdsom,\"\"), \"\")","v":""},{"$f":"IFERROR(IF(LeningNietBetaald*LeningGoed,Rentebedrag,\"\"), \"\")","v":""},{"$f":"IFERROR(IF(LeningNietBetaald*LeningGoed,Eindsaldo,\"\"), \"\")","v":""}]
[null,{"$f":"IFERROR(IF(LeningNietBetaald*LeningGoed,NummerBetaling,\"\"), \"\")","v":""},{"$f":"IFERROR(IF(LeningNietBetaald*LeningGoed,Betaaldatum,\"\"), \"\")","v":""},{"$f":"IFERROR(IF(LeningNietBetaald*LeningGoed,WaardeLening,\"\"), \"\")","v":""},{"$f":"IFERROR(IF(LeningNietBetaald*LeningGoed,MaandelijkseBetaling,\"\"), \"\")","v":""},{"$f":"IFERROR(IF(LeningNietBetaald*LeningGoed,Hoofdsom,\"\"), \"\")","v":""},{"$f":"IFERROR(IF(LeningNietBetaald*LeningGoed,Rentebedrag,\"\"), \"\")","v":""},{"$f":"IFERROR(IF(LeningNietBetaald*LeningGoed,Eindsaldo,\"\"), \"\")","v":""}]
[null,{"$f":"IFERROR(IF(LeningNietBetaald*LeningGoed,NummerBetaling,\"\"), \"\")","v":""},{"$f":"IFERROR(IF(LeningNietBetaald*LeningGoed,Betaaldatum,\"\"), \"\")","v":""},{"$f":"IFERROR(IF(LeningNietBetaald*LeningGoed,WaardeLening,\"\"), \"\")","v":""},{"$f":"IFERROR(IF(LeningNietBetaald*LeningGoed,MaandelijkseBetaling,\"\"), \"\")","v":""},{"$f":"IFERROR(IF(LeningNietBetaald*LeningGoed,Hoofdsom,\"\"), \"\")","v":""},{"$f":"IFERROR(IF(LeningNietBetaald*LeningGoed,Rentebedrag,\"\"), \"\")","v":""},{"$f":"IFERROR(IF(LeningNietBetaald*LeningGoed,Eindsaldo,\"\"), \"\")","v":""}]
[null,{"$f":"IFERROR(IF(LeningNietBetaald*LeningGoed,NummerBetaling,\"\"), \"\")","v":""},{"$f":"IFERROR(IF(LeningNietBetaald*LeningGoed,Betaaldatum,\"\"), \"\")","v":""},{"$f":"IFERROR(IF(LeningNietBetaald*LeningGoed,WaardeLening,\"\"), \"\")","v":""},{"$f":"IFERROR(IF(LeningNietBetaald*LeningGoed,MaandelijkseBetaling,\"\"), \"\")","v":""},{"$f":"IFERROR(IF(LeningNietBetaald*LeningGoed,Hoofdsom,\"\"), \"\")","v":""},{"$f":"IFERROR(IF(LeningNietBetaald*LeningGoed,Rentebedrag,\"\"), \"\")","v":""},{"$f":"IFERROR(IF(LeningNietBetaald*LeningGoed,Eindsaldo,\"\"), \"\")","v":""}]
[null,{"$f":"IFERROR(IF(LeningNietBetaald*LeningGoed,NummerBetaling,\"\"), \"\")","v":""},{"$f":"IFERROR(IF(LeningNietBetaald*LeningGoed,Betaaldatum,\"\"), \"\")","v":""},{"$f":"IFERROR(IF(LeningNietBetaald*LeningGoed,WaardeLening,\"\"), \"\")","v":""},{"$f":"IFERROR(IF(LeningNietBetaald*LeningGoed,MaandelijkseBetaling,\"\"), \"\")","v":""},{"$f":"IFERROR(IF(LeningNietBetaald*LeningGoed,Hoofdsom,\"\"), \"\")","v":""},{"$f":"IFERROR(IF(LeningNietBetaald*LeningGoed,Rentebedrag,\"\"), \"\")","v":""},{"$f":"IFERROR(IF(LeningNietBetaald*LeningGoed,Eindsaldo,\"\"), \"\")","v":""}]
[null,{"$f":"IFERROR(IF(LeningNietBetaald*LeningGoed,NummerBetaling,\"\"), \"\")","v":""},{"$f":"IFERROR(IF(LeningNietBetaald*LeningGoed,Betaaldatum,\"\"), \"\")","v":""},{"$f":"IFERROR(IF(LeningNietBetaald*LeningGoed,WaardeLening,\"\"), \"\")","v":""},{"$f":"IFERROR(IF(LeningNietBetaald*LeningGoed,MaandelijkseBetaling,\"\"), \"\")","v":""},{"$f":"IFERROR(IF(LeningNietBetaald*LeningGoed,Hoofdsom,\"\"), \"\")","v":""},{"$f":"IFERROR(IF(LeningNietBetaald*LeningGoed,Rentebedrag,\"\"), \"\")","v":""},{"$f":"IFERROR(IF(LeningNietBetaald*LeningGoed,Eindsaldo,\"\"), \"\")","v":""}]
[null,{"$f":"IFERROR(IF(LeningNietBetaald*LeningGoed,NummerBetaling,\"\"), \"\")","v":""},{"$f":"IFERROR(IF(LeningNietBetaald*LeningGoed,Betaaldatum,\"\"), \"\")","v":""},{"$f":"IFERROR(IF(LeningNietBetaald*LeningGoed,WaardeLening,\"\"), \"\")","v":""},{"$f":"IFERROR(IF(LeningNietBetaald*LeningGoed,MaandelijkseBetaling,\"\"), \"\")","v":""},{"$f":"IFERROR(IF(LeningNietBetaald*LeningGoed,Hoofdsom,\"\"), \"\")","v":""},{"$f":"IFERROR(IF(LeningNietBetaald*LeningGoed,Rentebedrag,\"\"), \"\")","v":""},{"$f":"IFERROR(IF(LeningNietBetaald*LeningGoed,Eindsaldo,\"\"), \"\")","v":""}]
[null,{"$f":"IFERROR(IF(LeningNietBetaald*LeningGoed,NummerBetaling,\"\"), \"\")","v":""},{"$f":"IFERROR(IF(LeningNietBetaald*LeningGoed,Betaaldatum,\"\"), \"\")","v":""},{"$f":"IFERROR(IF(LeningNietBetaald*LeningGoed,WaardeLening,\"\"), \"\")","v":""},{"$f":"IFERROR(IF(LeningNietBetaald*LeningGoed,MaandelijkseBetaling,\"\"), \"\")","v":""},{"$f":"IFERROR(IF(LeningNietBetaald*LeningGoed,Hoofdsom,\"\"), \"\")","v":""},{"$f":"IFERROR(IF(LeningNietBetaald*LeningGoed,Rentebedrag,\"\"), \"\")","v":""},{"$f":"IFERROR(IF(LeningNietBetaald*LeningGoed,Eindsaldo,\"\"), \"\")","v":""}]
[null,{"$f":"IFERROR(IF(LeningNietBetaald*LeningGoed,NummerBetaling,\"\"), \"\")","v":""},{"$f":"IFERROR(IF(LeningNietBetaald*LeningGoed,Betaaldatum,\"\"), \"\")","v":""},{"$f":"IFERROR(IF(LeningNietBetaald*LeningGoed,WaardeLening,\"\"), \"\")","v":""},{"$f":"IFERROR(IF(LeningNietBetaald*LeningGoed,MaandelijkseBetaling,\"\"), \"\")","v":""},{"$f":"IFERROR(IF(LeningNietBetaald*LeningGoed,Hoofdsom,\"\"), \"\")","v":""},{"$f":"IFERROR(IF(LeningNietBetaald*LeningGoed,Rentebedrag,\"\"), \"\")","v":""},{"$f":"IFERROR(IF(LeningNietBetaald*LeningGoed,Eindsaldo,\"\"), \"\")","v":""}]
[null,{"$f":"IFERROR(IF(LeningNietBetaald*LeningGoed,NummerBetaling,\"\"), \"\")","v":""},{"$f":"IFERROR(IF(LeningNietBetaald*LeningGoed,Betaaldatum,\"\"), \"\")","v":""},{"$f":"IFERROR(IF(LeningNietBetaald*LeningGoed,WaardeLening,\"\"), \"\")","v":""},{"$f":"IFERROR(IF(LeningNietBetaald*LeningGoed,MaandelijkseBetaling,\"\"), \"\")","v":""},{"$f":"IFERROR(IF(LeningNietBetaald*LeningGoed,Hoofdsom,\"\"), \"\")","v":""},{"$f":"IFERROR(IF(LeningNietBetaald*LeningGoed,Rentebedrag,\"\"), \"\")","v":""},{"$f":"IFERROR(IF(LeningNietBetaald*LeningGoed,Eindsaldo,\"\"), \"\")","v":""}]
[null,{"$f":"IFERROR(IF(LeningNietBetaald*LeningGoed,NummerBetaling,\"\"), \"\")","v":""},{"$f":"IFERROR(IF(LeningNietBetaald*LeningGoed,Betaaldatum,\"\"), \"\")","v":""},{"$f":"IFERROR(IF(LeningNietBetaald*LeningGoed,WaardeLening,\"\"), \"\")","v":""},{"$f":"IFERROR(IF(LeningNietBetaald*LeningGoed,MaandelijkseBetaling,\"\"), \"\")","v":""},{"$f":"IFERROR(IF(LeningNietBetaald*LeningGoed,Hoofdsom,\"\"), \"\")","v":""},{"$f":"IFERROR(IF(LeningNietBetaald*LeningGoed,Rentebedrag,\"\"), \"\")","v":""},{"$f":"IFERROR(IF(LeningNietBetaald*LeningGoed,Eindsaldo,\"\"), \"\")","v":""}]
[null,{"$f":"IFERROR(IF(LeningNietBetaald*LeningGoed,NummerBetaling,\"\"), \"\")","v":""},{"$f":"IFERROR(IF(LeningNietBetaald*LeningGoed,Betaaldatum,\"\"), \"\")","v":""},{"$f":"IFERROR(IF(LeningNietBetaald*LeningGoed,WaardeLening,\"\"), \"\")","v":""},{"$f":"IFERROR(IF(LeningNietBetaald*LeningGoed,MaandelijkseBetaling,\"\"), \"\")","v":""},{"$f":"IFERROR(IF(LeningNietBetaald*LeningGoed,Hoofdsom,\"\"), \"\")","v":""},{"$f":"IFERROR(IF(LeningNietBetaald*LeningGoed,Rentebedrag,\"\"), \"\")","v":""},{"$f":"IFERROR(IF(LeningNietBetaald*LeningGoed,Eindsaldo,\"\"), \"\")","v":""}]
[null,{"$f":"IFERROR(IF(LeningNietBetaald*LeningGoed,NummerBetaling,\"\"), \"\")","v":""},{"$f":"IFERROR(IF(LeningNietBetaald*LeningGoed,Betaaldatum,\"\"), \"\")","v":""},{"$f":"IFERROR(IF(LeningNietBetaald*LeningGoed,WaardeLening,\"\"), \"\")","v":""},{"$f":"IFERROR(IF(LeningNietBetaald*LeningGoed,MaandelijkseBetaling,\"\"), \"\")","v":""},{"$f":"IFERROR(IF(LeningNietBetaald*LeningGoed,Hoofdsom,\"\"), \"\")","v":""},{"$f":"IFERROR(IF(LeningNietBetaald*LeningGoed,Rentebedrag,\"\"), \"\")","v":""},{"$f":"IFERROR(IF(LeningNietBetaald*LeningGoed,Eindsaldo,\"\"), \"\")","v":""}]
[null,{"$f":"IFERROR(IF(LeningNietBetaald*LeningGoed,NummerBetaling,\"\"), \"\")","v":""},{"$f":"IFERROR(IF(LeningNietBetaald*LeningGoed,Betaaldatum,\"\"), \"\")","v":""},{"$f":"IFERROR(IF(LeningNietBetaald*LeningGoed,WaardeLening,\"\"), \"\")","v":""},{"$f":"IFERROR(IF(LeningNietBetaald*LeningGoed,MaandelijkseBetaling,\"\"), \"\")","v":""},{"$f":"IFERROR(IF(LeningNietBetaald*LeningGoed,Hoofdsom,\"\"), \"\")","v":""},{"$f":"IFERROR(IF(LeningNietBetaald*LeningGoed,Rentebedrag,\"\"), \"\")","v":""},{"$f":"IFERROR(IF(LeningNietBetaald*LeningGoed,Eindsaldo,\"\"), \"\")","v":""}]
[null,{"$f":"IFERROR(IF(LeningNietBetaald*LeningGoed,NummerBetaling,\"\"), \"\")","v":""},{"$f":"IFERROR(IF(LeningNietBetaald*LeningGoed,Betaaldatum,\"\"), \"\")","v":""},{"$f":"IFERROR(IF(LeningNietBetaald*LeningGoed,WaardeLening,\"\"), \"\")","v":""},{"$f":"IFERROR(IF(LeningNietBetaald*LeningGoed,MaandelijkseBetaling,\"\"), \"\")","v":""},{"$f":"IFERROR(IF(LeningNietBetaald*LeningGoed,Hoofdsom,\"\"), \"\")","v":""},{"$f":"IFERROR(IF(LeningNietBetaald*LeningGoed,Rentebedrag,\"\"), \"\")","v":""},{"$f":"IFERROR(IF(LeningNietBetaald*LeningGoed,Eindsaldo,\"\"), \"\")","v":""}]
[null,{"$f":"IFERROR(IF(LeningNietBetaald*LeningGoed,NummerBetaling,\"\"), \"\")","v":""},{"$f":"IFERROR(IF(LeningNietBetaald*LeningGoed,Betaaldatum,\"\"), \"\")","v":""},{"$f":"IFERROR(IF(LeningNietBetaald*LeningGoed,WaardeLening,\"\"), \"\")","v":""},{"$f":"IFERROR(IF(LeningNietBetaald*LeningGoed,MaandelijkseBetaling,\"\"), \"\")","v":""},{"$f":"IFERROR(IF(LeningNietBetaald*LeningGoed,Hoofdsom,\"\"), \"\")","v":""},{"$f":"IFERROR(IF(LeningNietBetaald*LeningGoed,Rentebedrag,\"\"), \"\")","v":""},{"$f":"IFERROR(IF(LeningNietBetaald*LeningGoed,Eindsaldo,\"\"), \"\")","v":""}]
[null,{"$f":"IFERROR(IF(LeningNietBetaald*LeningGoed,NummerBetaling,\"\"), \"\")","v":""},{"$f":"IFERROR(IF(LeningNietBetaald*LeningGoed,Betaaldatum,\"\"), \"\")","v":""},{"$f":"IFERROR(IF(LeningNietBetaald*LeningGoed,WaardeLening,\"\"), \"\")","v":""},{"$f":"IFERROR(IF(LeningNietBetaald*LeningGoed,MaandelijkseBetaling,\"\"), \"\")","v":""},{"$f":"IFERROR(IF(LeningNietBetaald*LeningGoed,Hoofdsom,\"\"), \"\")","v":""},{"$f":"IFERROR(IF(LeningNietBetaald*LeningGoed,Rentebedrag,\"\"), \"\")","v":""},{"$f":"IFERROR(IF(LeningNietBetaald*LeningGoed,Eindsaldo,\"\"), \"\")","v":""}]
[null,{"$f":"IFERROR(IF(LeningNietBetaald*LeningGoed,NummerBetaling,\"\"), \"\")","v":""},{"$f":"IFERROR(IF(LeningNietBetaald*LeningGoed,Betaaldatum,\"\"), \"\")","v":""},{"$f":"IFERROR(IF(LeningNietBetaald*LeningGoed,WaardeLening,\"\"), \"\")","v":""},{"$f":"IFERROR(IF(LeningNietBetaald*LeningGoed,MaandelijkseBetaling,\"\"), \"\")","v":""},{"$f":"IFERROR(IF(LeningNietBetaald*LeningGoed,Hoofdsom,\"\"), \"\")","v":""},{"$f":"IFERROR(IF(LeningNietBetaald*LeningGoed,Rentebedrag,\"\"), \"\")","v":""},{"$f":"IFERROR(IF(LeningNietBetaald*LeningGoed,Eindsaldo,\"\"), \"\")","v":""}]
[null,{"$f":"IFERROR(IF(LeningNietBetaald*LeningGoed,NummerBetaling,\"\"), \"\")","v":""},{"$f":"IFERROR(IF(LeningNietBetaald*LeningGoed,Betaaldatum,\"\"), \"\")","v":""},{"$f":"IFERROR(IF(LeningNietBetaald*LeningGoed,WaardeLening,\"\"), \"\")","v":""},{"$f":"IFERROR(IF(LeningNietBetaald*LeningGoed,MaandelijkseBetaling,\"\"), \"\")","v":""},{"$f":"IFERROR(IF(LeningNietBetaald*LeningGoed,Hoofdsom,\"\"), \"\")","v":""},{"$f":"IFERROR(IF(LeningNietBetaald*LeningGoed,Rentebedrag,\"\"), \"\")","v":""},{"$f":"IFERROR(IF(LeningNietBetaald*LeningGoed,Eindsaldo,\"\"), \"\")","v":""}]
[null,{"$f":"IFERROR(IF(LeningNietBetaald*LeningGoed,NummerBetaling,\"\"), \"\")","v":""},{"$f":"IFERROR(IF(LeningNietBetaald*LeningGoed,Betaaldatum,\"\"), \"\")","v":""},{"$f":"IFERROR(IF(LeningNietBetaald*LeningGoed,WaardeLening,\"\"), \"\")","v":""},{"$f":"IFERROR(IF(LeningNietBetaald*LeningGoed,MaandelijkseBetaling,\"\"), \"\")","v":""},{"$f":"IFERROR(IF(LeningNietBetaald*LeningGoed,Hoofdsom,\"\"), \"\")","v":""},{"$f":"IFERROR(IF(LeningNietBetaald*LeningGoed,Rentebedrag,\"\"), \"\")","v":""},{"$f":"IFERROR(IF(LeningNietBetaald*LeningGoed,Eindsaldo,\"\"), \"\")","v":""}]
[null,{"$f":"IFERROR(IF(LeningNietBetaald*LeningGoed,NummerBetaling,\"\"), \"\")","v":""},{"$f":"IFERROR(IF(LeningNietBetaald*LeningGoed,Betaaldatum,\"\"), \"\")","v":""},{"$f":"IFERROR(IF(LeningNietBetaald*LeningGoed,WaardeLening,\"\"), \"\")","v":""},{"$f":"IFERROR(IF(LeningNietBetaald*LeningGoed,MaandelijkseBetaling,\"\"), \"\")","v":""},{"$f":"IFERROR(IF(LeningNietBetaald*LeningGoed,Hoofdsom,\"\"), \"\")","v":""},{"$f":"IFERROR(IF(LeningNietBetaald*LeningGoed,Rentebedrag,\"\"), \"\")","v":""},{"$f":"IFERROR(IF(LeningNietBetaald*LeningGoed,Eindsaldo,\"\"), \"\")","v":""}]
[null,{"$f":"IFERROR(IF(LeningNietBetaald*LeningGoed,NummerBetaling,\"\"), \"\")","v":""},{"$f":"IFERROR(IF(LeningNietBetaald*LeningGoed,Betaaldatum,\"\"), \"\")","v":""},{"$f":"IFERROR(IF(LeningNietBetaald*LeningGoed,WaardeLening,\"\"), \"\")","v":""},{"$f":"IFERROR(IF(LeningNietBetaald*LeningGoed,MaandelijkseBetaling,\"\"), \"\")","v":""},{"$f":"IFERROR(IF(LeningNietBetaald*LeningGoed,Hoofdsom,\"\"), \"\")","v":""},{"$f":"IFERROR(IF(LeningNietBetaald*LeningGoed,Rentebedrag,\"\"), \"\")","v":""},{"$f":"IFERROR(IF(LeningNietBetaald*LeningGoed,Eindsaldo,\"\"), \"\")","v":""}]
[null,{"$f":"IFERROR(IF(LeningNietBetaald*LeningGoed,NummerBetaling,\"\"), \"\")","v":""},{"$f":"IFERROR(IF(LeningNietBetaald*LeningGoed,Betaaldatum,\"\"), \"\")","v":""},{"$f":"IFERROR(IF(LeningNietBetaald*LeningGoed,WaardeLening,\"\"), \"\")","v":""},{"$f":"IFERROR(IF(LeningNietBetaald*LeningGoed,MaandelijkseBetaling,\"\"), \"\")","v":""},{"$f":"IFERROR(IF(LeningNietBetaald*LeningGoed,Hoofdsom,\"\"), \"\")","v":""},{"$f":"IFERROR(IF(LeningNietBetaald*LeningGoed,Rentebedrag,\"\"), \"\")","v":""},{"$f":"IFERROR(IF(LeningNietBetaald*LeningGoed,Eindsaldo,\"\"), \"\")","v":""}]
[null,{"$f":"IFERROR(IF(LeningNietBetaald*LeningGoed,NummerBetaling,\"\"), \"\")","v":""},{"$f":"IFERROR(IF(LeningNietBetaald*LeningGoed,Betaaldatum,\"\"), \"\")","v":""},{"$f":"IFERROR(IF(LeningNietBetaald*LeningGoed,WaardeLening,\"\"), \"\")","v":""},{"$f":"IFERROR(IF(LeningNietBetaald*LeningGoed,MaandelijkseBetaling,\"\"), \"\")","v":""},{"$f":"IFERROR(IF(LeningNietBetaald*LeningGoed,Hoofdsom,\"\"), \"\")","v":""},{"$f":"IFERROR(IF(LeningNietBetaald*LeningGoed,Rentebedrag,\"\"), \"\")","v":""},{"$f":"IFERROR(IF(LeningNietBetaald*LeningGoed,Eindsaldo,\"\"), \"\")","v":""}]
[null,{"$f":"IFERROR(IF(LeningNietBetaald*LeningGoed,NummerBetaling,\"\"), \"\")","v":""},{"$f":"IFERROR(IF(LeningNietBetaald*LeningGoed,Betaaldatum,\"\"), \"\")","v":""},{"$f":"IFERROR(IF(LeningNietBetaald*LeningGoed,WaardeLening,\"\"), \"\")","v":""},{"$f":"IFERROR(IF(LeningNietBetaald*LeningGoed,MaandelijkseBetaling,\"\"), \"\")","v":""},{"$f":"IFERROR(IF(LeningNietBetaald*LeningGoed,Hoofdsom,\"\"), \"\")","v":""},{"$f":"IFERROR(IF(LeningNietBetaald*LeningGoed,Rentebedrag,\"\"), \"\")","v":""},{"$f":"IFERROR(IF(LeningNietBetaald*LeningGoed,Eindsaldo,\"\"), \"\")","v":""}]
[null,{"$f":"IFERROR(IF(LeningNietBetaald*LeningGoed,NummerBetaling,\"\"), \"\")","v":""},{"$f":"IFERROR(IF(LeningNietBetaald*LeningGoed,Betaaldatum,\"\"), \"\")","v":""},{"$f":"IFERROR(IF(LeningNietBetaald*LeningGoed,WaardeLening,\"\"), \"\")","v":""},{"$f":"IFERROR(IF(LeningNietBetaald*LeningGoed,MaandelijkseBetaling,\"\"), \"\")","v":""},{"$f":"IFERROR(IF(LeningNietBetaald*LeningGoed,Hoofdsom,\"\"), \"\")","v":""},{"$f":"IFERROR(IF(LeningNietBetaald*LeningGoed,Rentebedrag,\"\"), \"\")","v":""},{"$f":"IFERROR(IF(LeningNietBetaald*LeningGoed,Eindsaldo,\"\"), \"\")","v":""}]
[null,{"$f":"IFERROR(IF(LeningNietBetaald*LeningGoed,NummerBetaling,\"\"), \"\")","v":""},{"$f":"IFERROR(IF(LeningNietBetaald*LeningGoed,Betaaldatum,\"\"), \"\")","v":""},{"$f":"IFERROR(IF(LeningNietBetaald*LeningGoed,WaardeLening,\"\"), \"\")","v":""},{"$f":"IFERROR(IF(LeningNietBetaald*LeningGoed,MaandelijkseBetaling,\"\"), \"\")","v":""},{"$f":"IFERROR(IF(LeningNietBetaald*LeningGoed,Hoofdsom,\"\"), \"\")","v":""},{"$f":"IFERROR(IF(LeningNietBetaald*LeningGoed,Rentebedrag,\"\"), \"\")","v":""},{"$f":"IFERROR(IF(LeningNietBetaald*LeningGoed,Eindsaldo,\"\"), \"\")","v":""}]
[null,{"$f":"IFERROR(IF(LeningNietBetaald*LeningGoed,NummerBetaling,\"\"), \"\")","v":""},{"$f":"IFERROR(IF(LeningNietBetaald*LeningGoed,Betaaldatum,\"\"), \"\")","v":""},{"$f":"IFERROR(IF(LeningNietBetaald*LeningGoed,WaardeLening,\"\"), \"\")","v":""},{"$f":"IFERROR(IF(LeningNietBetaald*LeningGoed,MaandelijkseBetaling,\"\"), \"\")","v":""},{"$f":"IFERROR(IF(LeningNietBetaald*LeningGoed,Hoofdsom,\"\"), \"\")","v":""},{"$f":"IFERROR(IF(LeningNietBetaald*LeningGoed,Rentebedrag,\"\"), \"\")","v":""},{"$f":"IFERROR(IF(LeningNietBetaald*LeningGoed,Eindsaldo,\"\"), \"\")","v":""}]
[null,{"$f":"IFERROR(IF(LeningNietBetaald*LeningGoed,NummerBetaling,\"\"), \"\")","v":""},{"$f":"IFERROR(IF(LeningNietBetaald*LeningGoed,Betaaldatum,\"\"), \"\")","v":""},{"$f":"IFERROR(IF(LeningNietBetaald*LeningGoed,WaardeLening,\"\"), \"\")","v":""},{"$f":"IFERROR(IF(LeningNietBetaald*LeningGoed,MaandelijkseBetaling,\"\"), \"\")","v":""},{"$f":"IFERROR(IF(LeningNietBetaald*LeningGoed,Hoofdsom,\"\"), \"\")","v":""},{"$f":"IFERROR(IF(LeningNietBetaald*LeningGoed,Rentebedrag,\"\"), \"\")","v":""},{"$f":"IFERROR(IF(LeningNietBetaald*LeningGoed,Eindsaldo,\"\"), \"\")","v":""}]
[null,{"$f":"IFERROR(IF(LeningNietBetaald*LeningGoed,NummerBetaling,\"\"), \"\")","v":""},{"$f":"IFERROR(IF(LeningNietBetaald*LeningGoed,Betaaldatum,\"\"), \"\")","v":""},{"$f":"IFERROR(IF(LeningNietBetaald*LeningGoed,WaardeLening,\"\"), \"\")","v":""},{"$f":"IFERROR(IF(LeningNietBetaald*LeningGoed,MaandelijkseBetaling,\"\"), \"\")","v":""},{"$f":"IFERROR(IF(LeningNietBetaald*LeningGoed,Hoofdsom,\"\"), \"\")","v":""},{"$f":"IFERROR(IF(LeningNietBetaald*LeningGoed,Rentebedrag,\"\"), \"\")","v":""},{"$f":"IFERROR(IF(LeningNietBetaald*LeningGoed,Eindsaldo,\"\"), \"\")","v":""}]
[null,{"$f":"IFERROR(IF(LeningNietBetaald*LeningGoed,NummerBetaling,\"\"), \"\")","v":""},{"$f":"IFERROR(IF(LeningNietBetaald*LeningGoed,Betaaldatum,\"\"), \"\")","v":""},{"$f":"IFERROR(IF(LeningNietBetaald*LeningGoed,WaardeLening,\"\"), \"\")","v":""},{"$f":"IFERROR(IF(LeningNietBetaald*LeningGoed,MaandelijkseBetaling,\"\"), \"\")","v":""},{"$f":"IFERROR(IF(LeningNietBetaald*LeningGoed,Hoofdsom,\"\"), \"\")","v":""},{"$f":"IFERROR(IF(LeningNietBetaald*LeningGoed,Rentebedrag,\"\"), \"\")","v":""},{"$f":"IFERROR(IF(LeningNietBetaald*LeningGoed,Eindsaldo,\"\"), \"\")","v":""}]
[null,{"$f":"IFERROR(IF(LeningNietBetaald*LeningGoed,NummerBetaling,\"\"), \"\")","v":""},{"$f":"IFERROR(IF(LeningNietBetaald*LeningGoed,Betaaldatum,\"\"), \"\")","v":""},{"$f":"IFERROR(IF(LeningNietBetaald*LeningGoed,WaardeLening,\"\"), \"\")","v":""},{"$f":"IFERROR(IF(LeningNietBetaald*LeningGoed,MaandelijkseBetaling,\"\"), \"\")","v":""},{"$f":"IFERROR(IF(LeningNietBetaald*LeningGoed,Hoofdsom,\"\"), \"\")","v":""},{"$f":"IFERROR(IF(LeningNietBetaald*LeningGoed,Rentebedrag,\"\"), \"\")","v":""},{"$f":"IFERROR(IF(LeningNietBetaald*LeningGoed,Eindsaldo,\"\"), \"\")","v":""}]
[null,{"$f":"IFERROR(IF(LeningNietBetaald*LeningGoed,NummerBetaling,\"\"), \"\")","v":""},{"$f":"IFERROR(IF(LeningNietBetaald*LeningGoed,Betaaldatum,\"\"), \"\")","v":""},{"$f":"IFERROR(IF(LeningNietBetaald*LeningGoed,WaardeLening,\"\"), \"\")","v":""},{"$f":"IFERROR(IF(LeningNietBetaald*LeningGoed,MaandelijkseBetaling,\"\"), \"\")","v":""},{"$f":"IFERROR(IF(LeningNietBetaald*LeningGoed,Hoofdsom,\"\"), \"\")","v":""},{"$f":"IFERROR(IF(LeningNietBetaald*LeningGoed,Rentebedrag,\"\"), \"\")","v":""},{"$f":"IFERROR(IF(LeningNietBetaald*LeningGoed,Eindsaldo,\"\"), \"\")","v":""}]
[null,{"$f":"IFERROR(IF(LeningNietBetaald*LeningGoed,NummerBetaling,\"\"), \"\")","v":""},{"$f":"IFERROR(IF(LeningNietBetaald*LeningGoed,Betaaldatum,\"\"), \"\")","v":""},{"$f":"IFERROR(IF(LeningNietBetaald*LeningGoed,WaardeLening,\"\"), \"\")","v":""},{"$f":"IFERROR(IF(LeningNietBetaald*LeningGoed,MaandelijkseBetaling,\"\"), \"\")","v":""},{"$f":"IFERROR(IF(LeningNietBetaald*LeningGoed,Hoofdsom,\"\"), \"\")","v":""},{"$f":"IFERROR(IF(LeningNietBetaald*LeningGoed,Rentebedrag,\"\"), \"\")","v":""},{"$f":"IFERROR(IF(LeningNietBetaald*LeningGoed,Eindsaldo,\"\"), \"\")","v":""}]
[null,{"$f":"IFERROR(IF(LeningNietBetaald*LeningGoed,NummerBetaling,\"\"), \"\")","v":""},{"$f":"IFERROR(IF(LeningNietBetaald*LeningGoed,Betaaldatum,\"\"), \"\")","v":""},{"$f":"IFERROR(IF(LeningNietBetaald*LeningGoed,WaardeLening,\"\"), \"\")","v":""},{"$f":"IFERROR(IF(LeningNietBetaald*LeningGoed,MaandelijkseBetaling,\"\"), \"\")","v":""},{"$f":"IFERROR(IF(LeningNietBetaald*LeningGoed,Hoofdsom,\"\"), \"\")","v":""},{"$f":"IFERROR(IF(LeningNietBetaald*LeningGoed,Rentebedrag,\"\"), \"\")","v":""},{"$f":"IFERROR(IF(LeningNietBetaald*LeningGoed,Eindsaldo,\"\"), \"\")","v":""}]
[null,{"$f":"IFERROR(IF(LeningNietBetaald*LeningGoed,NummerBetaling,\"\"), \"\")","v":""},{"$f":"IFERROR(IF(LeningNietBetaald*LeningGoed,Betaaldatum,\"\"), \"\")","v":""},{"$f":"IFERROR(IF(LeningNietBetaald*LeningGoed,WaardeLening,\"\"), \"\")","v":""},{"$f":"IFERROR(IF(LeningNietBetaald*LeningGoed,MaandelijkseBetaling,\"\"), \"\")","v":""},{"$f":"IFERROR(IF(LeningNietBetaald*LeningGoed,Hoofdsom,\"\"), \"\")","v":""},{"$f":"IFERROR(IF(LeningNietBetaald*LeningGoed,Rentebedrag,\"\"), \"\")","v":""},{"$f":"IFERROR(IF(LeningNietBetaald*LeningGoed,Eindsaldo,\"\"), \"\")","v":""}]
[null,{"$f":"IFERROR(IF(LeningNietBetaald*LeningGoed,NummerBetaling,\"\"), \"\")","v":""},{"$f":"IFERROR(IF(LeningNietBetaald*LeningGoed,Betaaldatum,\"\"), \"\")","v":""},{"$f":"IFERROR(IF(LeningNietBetaald*LeningGoed,WaardeLening,\"\"), \"\")","v":""},{"$f":"IFERROR(IF(LeningNietBetaald*LeningGoed,MaandelijkseBetaling,\"\"), \"\")","v":""},{"$f":"IFERROR(IF(LeningNietBetaald*LeningGoed,Hoofdsom,\"\"), \"\")","v":""},{"$f":"IFERROR(IF(LeningNietBetaald*LeningGoed,Rentebedrag,\"\"), \"\")","v":""},{"$f":"IFERROR(IF(LeningNietBetaald*LeningGoed,Eindsaldo,\"\"), \"\")","v":""}]
[null,{"$f":"IFERROR(IF(LeningNietBetaald*LeningGoed,NummerBetaling,\"\"), \"\")","v":""},{"$f":"IFERROR(IF(LeningNietBetaald*LeningGoed,Betaaldatum,\"\"), \"\")","v":""},{"$f":"IFERROR(IF(LeningNietBetaald*LeningGoed,WaardeLening,\"\"), \"\")","v":""},{"$f":"IFERROR(IF(LeningNietBetaald*LeningGoed,MaandelijkseBetaling,\"\"), \"\")","v":""},{"$f":"IFERROR(IF(LeningNietBetaald*LeningGoed,Hoofdsom,\"\"), \"\")","v":""},{"$f":"IFERROR(IF(LeningNietBetaald*LeningGoed,Rentebedrag,\"\"), \"\")","v":""},{"$f":"IFERROR(IF(LeningNietBetaald*LeningGoed,Eindsaldo,\"\"), \"\")","v":""}]
[null,{"$f":"IFERROR(IF(LeningNietBetaald*LeningGoed,NummerBetaling,\"\"), \"\")","v":""},{"$f":"IFERROR(IF(LeningNietBetaald*LeningGoed,Betaaldatum,\"\"), \"\")","v":""},{"$f":"IFERROR(IF(LeningNietBetaald*LeningGoed,WaardeLening,\"\"), \"\")","v":""},{"$f":"IFERROR(IF(LeningNietBetaald*LeningGoed,MaandelijkseBetaling,\"\"), \"\")","v":""},{"$f":"IFERROR(IF(LeningNietBetaald*LeningGoed,Hoofdsom,\"\"), \"\")","v":""},{"$f":"IFERROR(IF(LeningNietBetaald*LeningGoed,Rentebedrag,\"\"), \"\")","v":""},{"$f":"IFERROR(IF(LeningNietBetaald*LeningGoed,Eindsaldo,\"\"), \"\")","v":""}]
[null,{"$f":"IFERROR(IF(LeningNietBetaald*LeningGoed,NummerBetaling,\"\"), \"\")","v":""},{"$f":"IFERROR(IF(LeningNietBetaald*LeningGoed,Betaaldatum,\"\"), \"\")","v":""},{"$f":"IFERROR(IF(LeningNietBetaald*LeningGoed,WaardeLening,\"\"), \"\")","v":""},{"$f":"IFERROR(IF(LeningNietBetaald*LeningGoed,MaandelijkseBetaling,\"\"), \"\")","v":""},{"$f":"IFERROR(IF(LeningNietBetaald*LeningGoed,Hoofdsom,\"\"), \"\")","v":""},{"$f":"IFERROR(IF(LeningNietBetaald*LeningGoed,Rentebedrag,\"\"), \"\")","v":""},{"$f":"IFERROR(IF(LeningNietBetaald*LeningGoed,Eindsaldo,\"\"), \"\")","v":""}]
[null,{"$f":"IFERROR(IF(LeningNietBetaald*LeningGoed,NummerBetaling,\"\"), \"\")","v":""},{"$f":"IFERROR(IF(LeningNietBetaald*LeningGoed,Betaaldatum,\"\"), \"\")","v":""},{"$f":"IFERROR(IF(LeningNietBetaald*LeningGoed,WaardeLening,\"\"), \"\")","v":""},{"$f":"IFERROR(IF(LeningNietBetaald*LeningGoed,MaandelijkseBetaling,\"\"), \"\")","v":""},{"$f":"IFERROR(IF(LeningNietBetaald*LeningGoed,Hoofdsom,\"\"), \"\")","v":""},{"$f":"IFERROR(IF(LeningNietBetaald*LeningGoed,Rentebedrag,\"\"), \"\")","v":""},{"$f":"IFERROR(IF(LeningNietBetaald*LeningGoed,Eindsaldo,\"\"), \"\")","v":""}]
[null,{"$f":"IFERROR(IF(LeningNietBetaald*LeningGoed,NummerBetaling,\"\"), \"\")","v":""},{"$f":"IFERROR(IF(LeningNietBetaald*LeningGoed,Betaaldatum,\"\"), \"\")","v":""},{"$f":"IFERROR(IF(LeningNietBetaald*LeningGoed,WaardeLening,\"\"), \"\")","v":""},{"$f":"IFERROR(IF(LeningNietBetaald*LeningGoed,MaandelijkseBetaling,\"\"), \"\")","v":""},{"$f":"IFERROR(IF(LeningNietBetaald*LeningGoed,Hoofdsom,\"\"), \"\")","v":""},{"$f":"IFERROR(IF(LeningNietBetaald*LeningGoed,Rentebedrag,\"\"), \"\")","v":""},{"$f":"IFERROR(IF(LeningNietBetaald*LeningGoed,Eindsaldo,\"\"), \"\")","v":""}]
[null,{"$f":"IFERROR(IF(LeningNietBetaald*LeningGoed,NummerBetaling,\"\"), \"\")","v":""},{"$f":"IFERROR(IF(LeningNietBetaald*LeningGoed,Betaaldatum,\"\"), \"\")","v":""},{"$f":"IFERROR(IF(LeningNietBetaald*LeningGoed,WaardeLening,\"\"), \"\")","v":""},{"$f":"IFERROR(IF(LeningNietBetaald*LeningGoed,MaandelijkseBetaling,\"\"), \"\")","v":""},{"$f":"IFERROR(IF(LeningNietBetaald*LeningGoed,Hoofdsom,\"\"), \"\")","v":""},{"$f":"IFERROR(IF(LeningNietBetaald*LeningGoed,Rentebedrag,\"\"), \"\")","v":""},{"$f":"IFERROR(IF(LeningNietBetaald*LeningGoed,Eindsaldo,\"\"), \"\")","v":""}]
[null,{"$f":"IFERROR(IF(LeningNietBetaald*LeningGoed,NummerBetaling,\"\"), \"\")","v":""},{"$f":"IFERROR(IF(LeningNietBetaald*LeningGoed,Betaaldatum,\"\"), \"\")","v":""},{"$f":"IFERROR(IF(LeningNietBetaald*LeningGoed,WaardeLening,\"\"), \"\")","v":""},{"$f":"IFERROR(IF(LeningNietBetaald*LeningGoed,MaandelijkseBetaling,\"\"), \"\")","v":""},{"$f":"IFERROR(IF(LeningNietBetaald*LeningGoed,Hoofdsom,\"\"), \"\")","v":""},{"$f":"IFERROR(IF(LeningNietBetaald*LeningGoed,Rentebedrag,\"\"), \"\")","v":""},{"$f":"IFERROR(IF(LeningNietBetaald*LeningGoed,Eindsaldo,\"\"), \"\")","v":""}]
[null,{"$f":"IFERROR(IF(LeningNietBetaald*LeningGoed,NummerBetaling,\"\"), \"\")","v":""},{"$f":"IFERROR(IF(LeningNietBetaald*LeningGoed,Betaaldatum,\"\"), \"\")","v":""},{"$f":"IFERROR(IF(LeningNietBetaald*LeningGoed,WaardeLening,\"\"), \"\")","v":""},{"$f":"IFERROR(IF(LeningNietBetaald*LeningGoed,MaandelijkseBetaling,\"\"), \"\")","v":""},{"$f":"IFERROR(IF(LeningNietBetaald*LeningGoed,Hoofdsom,\"\"), \"\")","v":""},{"$f":"IFERROR(IF(LeningNietBetaald*LeningGoed,Rentebedrag,\"\"), \"\")","v":""},{"$f":"IFERROR(IF(LeningNietBetaald*LeningGoed,Eindsaldo,\"\"), \"\")","v":""}]
[null,{"$f":"IFERROR(IF(LeningNietBetaald*LeningGoed,NummerBetaling,\"\"), \"\")","v":""},{"$f":"IFERROR(IF(LeningNietBetaald*LeningGoed,Betaaldatum,\"\"), \"\")","v":""},{"$f":"IFERROR(IF(LeningNietBetaald*LeningGoed,WaardeLening,\"\"), \"\")","v":""},{"$f":"IFERROR(IF(LeningNietBetaald*LeningGoed,MaandelijkseBetaling,\"\"), \"\")","v":""},{"$f":"IFERROR(IF(LeningNietBetaald*LeningGoed,Hoofdsom,\"\"), \"\")","v":""},{"$f":"IFERROR(IF(LeningNietBetaald*LeningGoed,Rentebedrag,\"\"), \"\")","v":""},{"$f":"IFERROR(IF(LeningNietBetaald*LeningGoed,Eindsaldo,\"\"), \"\")","v":""}]
[null,{"$f":"IFERROR(IF(LeningNietBetaald*LeningGoed,NummerBetaling,\"\"), \"\")","v":""},{"$f":"IFERROR(IF(LeningNietBetaald*LeningGoed,Betaaldatum,\"\"), \"\")","v":""},{"$f":"IFERROR(IF(LeningNietBetaald*LeningGoed,WaardeLening,\"\"), \"\")","v":""},{"$f":"IFERROR(IF(LeningNietBetaald*LeningGoed,MaandelijkseBetaling,\"\"), \"\")","v":""},{"$f":"IFERROR(IF(LeningNietBetaald*LeningGoed,Hoofdsom,\"\"), \"\")","v":""},{"$f":"IFERROR(IF(LeningNietBetaald*LeningGoed,Rentebedrag,\"\"), \"\")","v":""},{"$f":"IFERROR(IF(LeningNietBetaald*LeningGoed,Eindsaldo,\"\"), \"\")","v":""}]
[null,{"$f":"IFERROR(IF(LeningNietBetaald*LeningGoed,NummerBetaling,\"\"), \"\")","v":""},{"$f":"IFERROR(IF(LeningNietBetaald*LeningGoed,Betaaldatum,\"\"), \"\")","v":""},{"$f":"IFERROR(IF(LeningNietBetaald*LeningGoed,WaardeLening,\"\"), \"\")","v":""},{"$f":"IFERROR(IF(LeningNietBetaald*LeningGoed,MaandelijkseBetaling,\"\"), \"\")","v":""},{"$f":"IFERROR(IF(LeningNietBetaald*LeningGoed,Hoofdsom,\"\"), \"\")","v":""},{"$f":"IFERROR(IF(LeningNietBetaald*LeningGoed,Rentebedrag,\"\"), \"\")","v":""},{"$f":"IFERROR(IF(LeningNietBetaald*LeningGoed,Eindsaldo,\"\"), \"\")","v":""}]
[null,{"$f":"IFERROR(IF(LeningNietBetaald*LeningGoed,NummerBetaling,\"\"), \"\")","v":""},{"$f":"IFERROR(IF(LeningNietBetaald*LeningGoed,Betaaldatum,\"\"), \"\")","v":""},{"$f":"IFERROR(IF(LeningNietBetaald*LeningGoed,WaardeLening,\"\"), \"\")","v":""},{"$f":"IFERROR(IF(LeningNietBetaald*LeningGoed,MaandelijkseBetaling,\"\"), \"\")","v":""},{"$f":"IFERROR(IF(LeningNietBetaald*LeningGoed,Hoofdsom,\"\"), \"\")","v":""},{"$f":"IFERROR(IF(LeningNietBetaald*LeningGoed,Rentebedrag,\"\"), \"\")","v":""},{"$f":"IFERROR(IF(LeningNietBetaald*LeningGoed,Eindsaldo,\"\"), \"\")","v":""}]
[null,{"$f":"IFERROR(IF(LeningNietBetaald*LeningGoed,NummerBetaling,\"\"), \"\")","v":""},{"$f":"IFERROR(IF(LeningNietBetaald*LeningGoed,Betaaldatum,\"\"), \"\")","v":""},{"$f":"IFERROR(IF(LeningNietBetaald*LeningGoed,WaardeLening,\"\"), \"\")","v":""},{"$f":"IFERROR(IF(LeningNietBetaald*LeningGoed,MaandelijkseBetaling,\"\"), \"\")","v":""},{"$f":"IFERROR(IF(LeningNietBetaald*LeningGoed,Hoofdsom,\"\"), \"\")","v":""},{"$f":"IFERROR(IF(LeningNietBetaald*LeningGoed,Rentebedrag,\"\"), \"\")","v":""},{"$f":"IFERROR(IF(LeningNietBetaald*LeningGoed,Eindsaldo,\"\"), \"\")","v":""}]
[null,{"$f":"IFERROR(IF(LeningNietBetaald*LeningGoed,NummerBetaling,\"\"), \"\")","v":""},{"$f":"IFERROR(IF(LeningNietBetaald*LeningGoed,Betaaldatum,\"\"), \"\")","v":""},{"$f":"IFERROR(IF(LeningNietBetaald*LeningGoed,WaardeLening,\"\"), \"\")","v":""},{"$f":"IFERROR(IF(LeningNietBetaald*LeningGoed,MaandelijkseBetaling,\"\"), \"\")","v":""},{"$f":"IFERROR(IF(LeningNietBetaald*LeningGoed,Hoofdsom,\"\"), \"\")","v":""},{"$f":"IFERROR(IF(LeningNietBetaald*LeningGoed,Rentebedrag,\"\"), \"\")","v":""},{"$f":"IFERROR(IF(LeningNietBetaald*LeningGoed,Eindsaldo,\"\"), \"\")","v":""}]
[null,{"$f":"IFERROR(IF(LeningNietBetaald*LeningGoed,NummerBetaling,\"\"), \"\")","v":""},{"$f":"IFERROR(IF(LeningNietBetaald*LeningGoed,Betaaldatum,\"\"), \"\")","v":""},{"$f":"IFERROR(IF(LeningNietBetaald*LeningGoed,WaardeLening,\"\"), \"\")","v":""},{"$f":"IFERROR(IF(LeningNietBetaald*LeningGoed,MaandelijkseBetaling,\"\"), \"\")","v":""},{"$f":"IFERROR(IF(LeningNietBetaald*LeningGoed,Hoofdsom,\"\"), \"\")","v":""},{"$f":"IFERROR(IF(LeningNietBetaald*LeningGoed,Rentebedrag,\"\"), \"\")","v":""},{"$f":"IFERROR(IF(LeningNietBetaald*LeningGoed,Eindsaldo,\"\"), \"\")","v":""}]
[null,{"$f":"IFERROR(IF(LeningNietBetaald*LeningGoed,NummerBetaling,\"\"), \"\")","v":""},{"$f":"IFERROR(IF(LeningNietBetaald*LeningGoed,Betaaldatum,\"\"), \"\")","v":""},{"$f":"IFERROR(IF(LeningNietBetaald*LeningGoed,WaardeLening,\"\"), \"\")","v":""},{"$f":"IFERROR(IF(LeningNietBetaald*LeningGoed,MaandelijkseBetaling,\"\"), \"\")","v":""},{"$f":"IFERROR(IF(LeningNietBetaald*LeningGoed,Hoofdsom,\"\"), \"\")","v":""},{"$f":"IFERROR(IF(LeningNietBetaald*LeningGoed,Rentebedrag,\"\"), \"\")","v":""},{"$f":"IFERROR(IF(LeningNietBetaald*LeningGoed,Eindsaldo,\"\"), \"\")","v":""}]
[null,{"$f":"IFERROR(IF(LeningNietBetaald*LeningGoed,NummerBetaling,\"\"), \"\")","v":""},{"$f":"IFERROR(IF(LeningNietBetaald*LeningGoed,Betaaldatum,\"\"), \"\")","v":""},{"$f":"IFERROR(IF(LeningNietBetaald*LeningGoed,WaardeLening,\"\"), \"\")","v":""},{"$f":"IFERROR(IF(LeningNietBetaald*LeningGoed,MaandelijkseBetaling,\"\"), \"\")","v":""},{"$f":"IFERROR(IF(LeningNietBetaald*LeningGoed,Hoofdsom,\"\"), \"\")","v":""},{"$f":"IFERROR(IF(LeningNietBetaald*LeningGoed,Rentebedrag,\"\"), \"\")","v":""},{"$f":"IFERROR(IF(LeningNietBetaald*LeningGoed,Eindsaldo,\"\"), \"\")","v":""}]
[null,{"$f":"IFERROR(IF(LeningNietBetaald*LeningGoed,NummerBetaling,\"\"), \"\")","v":""},{"$f":"IFERROR(IF(LeningNietBetaald*LeningGoed,Betaaldatum,\"\"), \"\")","v":""},{"$f":"IFERROR(IF(LeningNietBetaald*LeningGoed,WaardeLening,\"\"), \"\")","v":""},{"$f":"IFERROR(IF(LeningNietBetaald*LeningGoed,MaandelijkseBetaling,\"\"), \"\")","v":""},{"$f":"IFERROR(IF(LeningNietBetaald*LeningGoed,Hoofdsom,\"\"), \"\")","v":""},{"$f":"IFERROR(IF(LeningNietBetaald*LeningGoed,Rentebedrag,\"\"), \"\")","v":""},{"$f":"IFERROR(IF(LeningNietBetaald*LeningGoed,Eindsaldo,\"\"), \"\")","v":""}]
[null,{"$f":"IFERROR(IF(LeningNietBetaald*LeningGoed,NummerBetaling,\"\"), \"\")","v":""},{"$f":"IFERROR(IF(LeningNietBetaald*LeningGoed,Betaaldatum,\"\"), \"\")","v":""},{"$f":"IFERROR(IF(LeningNietBetaald*LeningGoed,WaardeLening,\"\"), \"\")","v":""},{"$f":"IFERROR(IF(LeningNietBetaald*LeningGoed,MaandelijkseBetaling,\"\"), \"\")","v":""},{"$f":"IFERROR(IF(LeningNietBetaald*LeningGoed,Hoofdsom,\"\"), \"\")","v":""},{"$f":"IFERROR(IF(LeningNietBetaald*LeningGoed,Rentebedrag,\"\"), \"\")","v":""},{"$f":"IFERROR(IF(LeningNietBetaald*LeningGoed,Eindsaldo,\"\"), \"\")","v":""}]
[null,{"$f":"IFERROR(IF(LeningNietBetaald*LeningGoed,NummerBetaling,\"\"), \"\")","v":""},{"$f":"IFERROR(IF(LeningNietBetaald*LeningGoed,Betaaldatum,\"\"), \"\")","v":""},{"$f":"IFERROR(IF(LeningNietBetaald*LeningGoed,WaardeLening,\"\"), \"\")","v":""},{"$f":"IFERROR(IF(LeningNietBetaald*LeningGoed,MaandelijkseBetaling,\"\"), \"\")","v":""},{"$f":"IFERROR(IF(LeningNietBetaald*LeningGoed,Hoofdsom,\"\"), \"\")","v":""},{"$f":"IFERROR(IF(LeningNietBetaald*LeningGoed,Rentebedrag,\"\"), \"\")","v":""},{"$f":"IFERROR(IF(LeningNietBetaald*LeningGoed,Eindsaldo,\"\"), \"\")","v":""}]
[null,{"$f":"IFERROR(IF(LeningNietBetaald*LeningGoed,NummerBetaling,\"\"), \"\")","v":""},{"$f":"IFERROR(IF(LeningNietBetaald*LeningGoed,Betaaldatum,\"\"), \"\")","v":""},{"$f":"IFERROR(IF(LeningNietBetaald*LeningGoed,WaardeLening,\"\"), \"\")","v":""},{"$f":"IFERROR(IF(LeningNietBetaald*LeningGoed,MaandelijkseBetaling,\"\"), \"\")","v":""},{"$f":"IFERROR(IF(LeningNietBetaald*LeningGoed,Hoofdsom,\"\"), \"\")","v":""},{"$f":"IFERROR(IF(LeningNietBetaald*LeningGoed,Rentebedrag,\"\"), \"\")","v":""},{"$f":"IFERROR(IF(LeningNietBetaald*LeningGoed,Eindsaldo,\"\"), \"\")","v":""}]
[null,{"$f":"IFERROR(IF(LeningNietBetaald*LeningGoed,NummerBetaling,\"\"), \"\")","v":""},{"$f":"IFERROR(IF(LeningNietBetaald*LeningGoed,Betaaldatum,\"\"), \"\")","v":""},{"$f":"IFERROR(IF(LeningNietBetaald*LeningGoed,WaardeLening,\"\"), \"\")","v":""},{"$f":"IFERROR(IF(LeningNietBetaald*LeningGoed,MaandelijkseBetaling,\"\"), \"\")","v":""},{"$f":"IFERROR(IF(LeningNietBetaald*LeningGoed,Hoofdsom,\"\"), \"\")","v":""},{"$f":"IFERROR(IF(LeningNietBetaald*LeningGoed,Rentebedrag,\"\"), \"\")","v":""},{"$f":"IFERROR(IF(LeningNietBetaald*LeningGoed,Eindsaldo,\"\"), \"\")","v":""}]
[null,{"$f":"IFERROR(IF(LeningNietBetaald*LeningGoed,NummerBetaling,\"\"), \"\")","v":""},{"$f":"IFERROR(IF(LeningNietBetaald*LeningGoed,Betaaldatum,\"\"), \"\")","v":""},{"$f":"IFERROR(IF(LeningNietBetaald*LeningGoed,WaardeLening,\"\"), \"\")","v":""},{"$f":"IFERROR(IF(LeningNietBetaald*LeningGoed,MaandelijkseBetaling,\"\"), \"\")","v":""},{"$f":"IFERROR(IF(LeningNietBetaald*LeningGoed,Hoofdsom,\"\"), \"\")","v":""},{"$f":"IFERROR(IF(LeningNietBetaald*LeningGoed,Rentebedrag,\"\"), \"\")","v":""},{"$f":"IFERROR(IF(LeningNietBetaald*LeningGoed,Eindsaldo,\"\"), \"\")","v":""}]
[null,{"$f":"IFERROR(IF(LeningNietBetaald*LeningGoed,NummerBetaling,\"\"), \"\")","v":""},{"$f":"IFERROR(IF(LeningNietBetaald*LeningGoed,Betaaldatum,\"\"), \"\")","v":""},{"$f":"IFERROR(IF(LeningNietBetaald*LeningGoed,WaardeLening,\"\"), \"\")","v":""},{"$f":"IFERROR(IF(LeningNietBetaald*LeningGoed,MaandelijkseBetaling,\"\"), \"\")","v":""},{"$f":"IFERROR(IF(LeningNietBetaald*LeningGoed,Hoofdsom,\"\"), \"\")","v":""},{"$f":"IFERROR(IF(LeningNietBetaald*LeningGoed,Rentebedrag,\"\"), \"\")","v":""},{"$f":"IFERROR(IF(LeningNietBetaald*LeningGoed,Eindsaldo,\"\"), \"\")","v":""}]
[null,{"$f":"IFERROR(IF(LeningNietBetaald*LeningGoed,NummerBetaling,\"\"), \"\")","v":""},{"$f":"IFERROR(IF(LeningNietBetaald*LeningGoed,Betaaldatum,\"\"), \"\")","v":""},{"$f":"IFERROR(IF(LeningNietBetaald*LeningGoed,WaardeLening,\"\"), \"\")","v":""},{"$f":"IFERROR(IF(LeningNietBetaald*LeningGoed,MaandelijkseBetaling,\"\"), \"\")","v":""},{"$f":"IFERROR(IF(LeningNietBetaald*LeningGoed,Hoofdsom,\"\"), \"\")","v":""},{"$f":"IFERROR(IF(LeningNietBetaald*LeningGoed,Rentebedrag,\"\"), \"\")","v":""},{"$f":"IFERROR(IF(LeningNietBetaald*LeningGoed,Eindsaldo,\"\"), \"\")","v":""}]
[null,{"$f":"IFERROR(IF(LeningNietBetaald*LeningGoed,NummerBetaling,\"\"), \"\")","v":""},{"$f":"IFERROR(IF(LeningNietBetaald*LeningGoed,Betaaldatum,\"\"), \"\")","v":""},{"$f":"IFERROR(IF(LeningNietBetaald*LeningGoed,WaardeLening,\"\"), \"\")","v":""},{"$f":"IFERROR(IF(LeningNietBetaald*LeningGoed,MaandelijkseBetaling,\"\"), \"\")","v":""},{"$f":"IFERROR(IF(LeningNietBetaald*LeningGoed,Hoofdsom,\"\"), \"\")","v":""},{"$f":"IFERROR(IF(LeningNietBetaald*LeningGoed,Rentebedrag,\"\"), \"\")","v":""},{"$f":"IFERROR(IF(LeningNietBetaald*LeningGoed,Eindsaldo,\"\"), \"\")","v":""}]
[null,{"$f":"IFERROR(IF(LeningNietBetaald*LeningGoed,NummerBetaling,\"\"), \"\")","v":""},{"$f":"IFERROR(IF(LeningNietBetaald*LeningGoed,Betaaldatum,\"\"), \"\")","v":""},{"$f":"IFERROR(IF(LeningNietBetaald*LeningGoed,WaardeLening,\"\"), \"\")","v":""},{"$f":"IFERROR(IF(LeningNietBetaald*LeningGoed,MaandelijkseBetaling,\"\"), \"\")","v":""},{"$f":"IFERROR(IF(LeningNietBetaald*LeningGoed,Hoofdsom,\"\"), \"\")","v":""},{"$f":"IFERROR(IF(LeningNietBetaald*LeningGoed,Rentebedrag,\"\"), \"\")","v":""},{"$f":"IFERROR(IF(LeningNietBetaald*LeningGoed,Eindsaldo,\"\"), \"\")","v":""}]
[null,{"$f":"IFERROR(IF(LeningNietBetaald*LeningGoed,NummerBetaling,\"\"), \"\")","v":""},{"$f":"IFERROR(IF(LeningNietBetaald*LeningGoed,Betaaldatum,\"\"), \"\")","v":""},{"$f":"IFERROR(IF(LeningNietBetaald*LeningGoed,WaardeLening,\"\"), \"\")","v":""},{"$f":"IFERROR(IF(LeningNietBetaald*LeningGoed,MaandelijkseBetaling,\"\"), \"\")","v":""},{"$f":"IFERROR(IF(LeningNietBetaald*LeningGoed,Hoofdsom,\"\"), \"\")","v":""},{"$f":"IFERROR(IF(LeningNietBetaald*LeningGoed,Rentebedrag,\"\"), \"\")","v":""},{"$f":"IFERROR(IF(LeningNietBetaald*LeningGoed,Eindsaldo,\"\"), \"\")","v":""}]
[null,{"$f":"IFERROR(IF(LeningNietBetaald*LeningGoed,NummerBetaling,\"\"), \"\")","v":""},{"$f":"IFERROR(IF(LeningNietBetaald*LeningGoed,Betaaldatum,\"\"), \"\")","v":""},{"$f":"IFERROR(IF(LeningNietBetaald*LeningGoed,WaardeLening,\"\"), \"\")","v":""},{"$f":"IFERROR(IF(LeningNietBetaald*LeningGoed,MaandelijkseBetaling,\"\"), \"\")","v":""},{"$f":"IFERROR(IF(LeningNietBetaald*LeningGoed,Hoofdsom,\"\"), \"\")","v":""},{"$f":"IFERROR(IF(LeningNietBetaald*LeningGoed,Rentebedrag,\"\"), \"\")","v":""},{"$f":"IFERROR(IF(LeningNietBetaald*LeningGoed,Eindsaldo,\"\"), \"\")","v":""}]
[null,{"$f":"IFERROR(IF(LeningNietBetaald*LeningGoed,NummerBetaling,\"\"), \"\")","v":""},{"$f":"IFERROR(IF(LeningNietBetaald*LeningGoed,Betaaldatum,\"\"), \"\")","v":""},{"$f":"IFERROR(IF(LeningNietBetaald*LeningGoed,WaardeLening,\"\"), \"\")","v":""},{"$f":"IFERROR(IF(LeningNietBetaald*LeningGoed,MaandelijkseBetaling,\"\"), \"\")","v":""},{"$f":"IFERROR(IF(LeningNietBetaald*LeningGoed,Hoofdsom,\"\"), \"\")","v":""},{"$f":"IFERROR(IF(LeningNietBetaald*LeningGoed,Rentebedrag,\"\"), \"\")","v":""},{"$f":"IFERROR(IF(LeningNietBetaald*LeningGoed,Eindsaldo,\"\"), \"\")","v":""}]
[null,{"$f":"IFERROR(IF(LeningNietBetaald*LeningGoed,NummerBetaling,\"\"), \"\")","v":""},{"$f":"IFERROR(IF(LeningNietBetaald*LeningGoed,Betaaldatum,\"\"), \"\")","v":""},{"$f":"IFERROR(IF(LeningNietBetaald*LeningGoed,WaardeLening,\"\"), \"\")","v":""},{"$f":"IFERROR(IF(LeningNietBetaald*LeningGoed,MaandelijkseBetaling,\"\"), \"\")","v":""},{"$f":"IFERROR(IF(LeningNietBetaald*LeningGoed,Hoofdsom,\"\"), \"\")","v":""},{"$f":"IFERROR(IF(LeningNietBetaald*LeningGoed,Rentebedrag,\"\"), \"\")","v":""},{"$f":"IFERROR(IF(LeningNietBetaald*LeningGoed,Eindsaldo,\"\"), \"\")","v":""}]
[null,{"$f":"IFERROR(IF(LeningNietBetaald*LeningGoed,NummerBetaling,\"\"), \"\")","v":""},{"$f":"IFERROR(IF(LeningNietBetaald*LeningGoed,Betaaldatum,\"\"), \"\")","v":""},{"$f":"IFERROR(IF(LeningNietBetaald*LeningGoed,WaardeLening,\"\"), \"\")","v":""},{"$f":"IFERROR(IF(LeningNietBetaald*LeningGoed,MaandelijkseBetaling,\"\"), \"\")","v":""},{"$f":"IFERROR(IF(LeningNietBetaald*LeningGoed,Hoofdsom,\"\"), \"\")","v":""},{"$f":"IFERROR(IF(LeningNietBetaald*LeningGoed,Rentebedrag,\"\"), \"\")","v":""},{"$f":"IFERROR(IF(LeningNietBetaald*LeningGoed,Eindsaldo,\"\"), \"\")","v":""}]
[null,{"$f":"IFERROR(IF(LeningNietBetaald*LeningGoed,NummerBetaling,\"\"), \"\")","v":""},{"$f":"IFERROR(IF(LeningNietBetaald*LeningGoed,Betaaldatum,\"\"), \"\")","v":""},{"$f":"IFERROR(IF(LeningNietBetaald*LeningGoed,WaardeLening,\"\"), \"\")","v":""},{"$f":"IFERROR(IF(LeningNietBetaald*LeningGoed,MaandelijkseBetaling,\"\"), \"\")","v":""},{"$f":"IFERROR(IF(LeningNietBetaald*LeningGoed,Hoofdsom,\"\"), \"\")","v":""},{"$f":"IFERROR(IF(LeningNietBetaald*LeningGoed,Rentebedrag,\"\"), \"\")","v":""},{"$f":"IFERROR(IF(LeningNietBetaald*LeningGoed,Eindsaldo,\"\"), \"\")","v":""}]
[null,{"$f":"IFERROR(IF(LeningNietBetaald*LeningGoed,NummerBetaling,\"\"), \"\")","v":""},{"$f":"IFERROR(IF(LeningNietBetaald*LeningGoed,Betaaldatum,\"\"), \"\")","v":""},{"$f":"IFERROR(IF(LeningNietBetaald*LeningGoed,WaardeLening,\"\"), \"\")","v":""},{"$f":"IFERROR(IF(LeningNietBetaald*LeningGoed,MaandelijkseBetaling,\"\"), \"\")","v":""},{"$f":"IFERROR(IF(LeningNietBetaald*LeningGoed,Hoofdsom,\"\"), \"\")","v":""},{"$f":"IFERROR(IF(LeningNietBetaald*LeningGoed,Rentebedrag,\"\"), \"\")","v":""},{"$f":"IFERROR(IF(LeningNietBetaald*LeningGoed,Eindsaldo,\"\"), \"\")","v":""}]
[null,{"$f":"IFERROR(IF(LeningNietBetaald*LeningGoed,NummerBetaling,\"\"), \"\")","v":""},{"$f":"IFERROR(IF(LeningNietBetaald*LeningGoed,Betaaldatum,\"\"), \"\")","v":""},{"$f":"IFERROR(IF(LeningNietBetaald*LeningGoed,WaardeLening,\"\"), \"\")","v":""},{"$f":"IFERROR(IF(LeningNietBetaald*LeningGoed,MaandelijkseBetaling,\"\"), \"\")","v":""},{"$f":"IFERROR(IF(LeningNietBetaald*LeningGoed,Hoofdsom,\"\"), \"\")","v":""},{"$f":"IFERROR(IF(LeningNietBetaald*LeningGoed,Rentebedrag,\"\"), \"\")","v":""},{"$f":"IFERROR(IF(LeningNietBetaald*LeningGoed,Eindsaldo,\"\"), \"\")","v":""}]
[null,{"$f":"IFERROR(IF(LeningNietBetaald*LeningGoed,NummerBetaling,\"\"), \"\")","v":""},{"$f":"IFERROR(IF(LeningNietBetaald*LeningGoed,Betaaldatum,\"\"), \"\")","v":""},{"$f":"IFERROR(IF(LeningNietBetaald*LeningGoed,WaardeLening,\"\"), \"\")","v":""},{"$f":"IFERROR(IF(LeningNietBetaald*LeningGoed,MaandelijkseBetaling,\"\"), \"\")","v":""},{"$f":"IFERROR(IF(LeningNietBetaald*LeningGoed,Hoofdsom,\"\"), \"\")","v":""},{"$f":"IFERROR(IF(LeningNietBetaald*LeningGoed,Rentebedrag,\"\"), \"\")","v":""},{"$f":"IFERROR(IF(LeningNietBetaald*LeningGoed,Eindsaldo,\"\"), \"\")","v":""}]
[null,{"$f":"IFERROR(IF(LeningNietBetaald*LeningGoed,NummerBetaling,\"\"), \"\")","v":""},{"$f":"IFERROR(IF(LeningNietBetaald*LeningGoed,Betaaldatum,\"\"), \"\")","v":""},{"$f":"IFERROR(IF(LeningNietBetaald*LeningGoed,WaardeLening,\"\"), \"\")","v":""},{"$f":"IFERROR(IF(LeningNietBetaald*LeningGoed,MaandelijkseBetaling,\"\"), \"\")","v":""},{"$f":"IFERROR(IF(LeningNietBetaald*LeningGoed,Hoofdsom,\"\"), \"\")","v":""},{"$f":"IFERROR(IF(LeningNietBetaald*LeningGoed,Rentebedrag,\"\"), \"\")","v":""},{"$f":"IFERROR(IF(LeningNietBetaald*LeningGoed,Eindsaldo,\"\"), \"\")","v":""}]
[null,{"$f":"IFERROR(IF(LeningNietBetaald*LeningGoed,NummerBetaling,\"\"), \"\")","v":""},{"$f":"IFERROR(IF(LeningNietBetaald*LeningGoed,Betaaldatum,\"\"), \"\")","v":""},{"$f":"IFERROR(IF(LeningNietBetaald*LeningGoed,WaardeLening,\"\"), \"\")","v":""},{"$f":"IFERROR(IF(LeningNietBetaald*LeningGoed,MaandelijkseBetaling,\"\"), \"\")","v":""},{"$f":"IFERROR(IF(LeningNietBetaald*LeningGoed,Hoofdsom,\"\"), \"\")","v":""},{"$f":"IFERROR(IF(LeningNietBetaald*LeningGoed,Rentebedrag,\"\"), \"\")","v":""},{"$f":"IFERROR(IF(LeningNietBetaald*LeningGoed,Eindsaldo,\"\"), \"\")","v":""}]
[null,{"$f":"IFERROR(IF(LeningNietBetaald*LeningGoed,NummerBetaling,\"\"), \"\")","v":""},{"$f":"IFERROR(IF(LeningNietBetaald*LeningGoed,Betaaldatum,\"\"), \"\")","v":""},{"$f":"IFERROR(IF(LeningNietBetaald*LeningGoed,WaardeLening,\"\"), \"\")","v":""},{"$f":"IFERROR(IF(LeningNietBetaald*LeningGoed,MaandelijkseBetaling,\"\"), \"\")","v":""},{"$f":"IFERROR(IF(LeningNietBetaald*LeningGoed,Hoofdsom,\"\"), \"\")","v":""},{"$f":"IFERROR(IF(LeningNietBetaald*LeningGoed,Rentebedrag,\"\"), \"\")","v":""},{"$f":"IFERROR(IF(LeningNietBetaald*LeningGoed,Eindsaldo,\"\"), \"\")","v":""}]
[null,{"$f":"IFERROR(IF(LeningNietBetaald*LeningGoed,NummerBetaling,\"\"), \"\")","v":""},{"$f":"IFERROR(IF(LeningNietBetaald*LeningGoed,Betaaldatum,\"\"), \"\")","v":""},{"$f":"IFERROR(IF(LeningNietBetaald*LeningGoed,WaardeLening,\"\"), \"\")","v":""},{"$f":"IFERROR(IF(LeningNietBetaald*LeningGoed,MaandelijkseBetaling,\"\"), \"\")","v":""},{"$f":"IFERROR(IF(LeningNietBetaald*LeningGoed,Hoofdsom,\"\"), \"\")","v":""},{"$f":"IFERROR(IF(LeningNietBetaald*LeningGoed,Rentebedrag,\"\"), \"\")","v":""},{"$f":"IFERROR(IF(LeningNietBetaald*LeningGoed,Eindsaldo,\"\"), \"\")","v":""}]
[null,{"$f":"IFERROR(IF(LeningNietBetaald*LeningGoed,NummerBetaling,\"\"), \"\")","v":""},{"$f":"IFERROR(IF(LeningNietBetaald*LeningGoed,Betaaldatum,\"\"), \"\")","v":""},{"$f":"IFERROR(IF(LeningNietBetaald*LeningGoed,WaardeLening,\"\"), \"\")","v":""},{"$f":"IFERROR(IF(LeningNietBetaald*LeningGoed,MaandelijkseBetaling,\"\"), \"\")","v":""},{"$f":"IFERROR(IF(LeningNietBetaald*LeningGoed,Hoofdsom,\"\"), \"\")","v":""},{"$f":"IFERROR(IF(LeningNietBetaald*LeningGoed,Rentebedrag,\"\"), \"\")","v":""},{"$f":"IFERROR(IF(LeningNietBetaald*LeningGoed,Eindsaldo,\"\"), \"\")","v":""}]
[null,{"$f":"IFERROR(IF(LeningNietBetaald*LeningGoed,NummerBetaling,\"\"), \"\")","v":""},{"$f":"IFERROR(IF(LeningNietBetaald*LeningGoed,Betaaldatum,\"\"), \"\")","v":""},{"$f":"IFERROR(IF(LeningNietBetaald*LeningGoed,WaardeLening,\"\"), \"\")","v":""},{"$f":"IFERROR(IF(LeningNietBetaald*LeningGoed,MaandelijkseBetaling,\"\"), \"\")","v":""},{"$f":"IFERROR(IF(LeningNietBetaald*LeningGoed,Hoofdsom,\"\"), \"\")","v":""},{"$f":"IFERROR(IF(LeningNietBetaald*LeningGoed,Rentebedrag,\"\"), \"\")","v":""},{"$f":"IFERROR(IF(LeningNietBetaald*LeningGoed,Eindsaldo,\"\"), \"\")","v":""}]
[null,{"$f":"IFERROR(IF(LeningNietBetaald*LeningGoed,NummerBetaling,\"\"), \"\")","v":""},{"$f":"IFERROR(IF(LeningNietBetaald*LeningGoed,Betaaldatum,\"\"), \"\")","v":""},{"$f":"IFERROR(IF(LeningNietBetaald*LeningGoed,WaardeLening,\"\"), \"\")","v":""},{"$f":"IFERROR(IF(LeningNietBetaald*LeningGoed,MaandelijkseBetaling,\"\"), \"\")","v":""},{"$f":"IFERROR(IF(LeningNietBetaald*LeningGoed,Hoofdsom,\"\"), \"\")","v":""},{"$f":"IFERROR(IF(LeningNietBetaald*LeningGoed,Rentebedrag,\"\"), \"\")","v":""},{"$f":"IFERROR(IF(LeningNietBetaald*LeningGoed,Eindsaldo,\"\"), \"\")","v":""}]
[null,{"$f":"IFERROR(IF(LeningNietBetaald*LeningGoed,NummerBetaling,\"\"), \"\")","v":""},{"$f":"IFERROR(IF(LeningNietBetaald*LeningGoed,Betaaldatum,\"\"), \"\")","v":""},{"$f":"IFERROR(IF(LeningNietBetaald*LeningGoed,WaardeLening,\"\"), \"\")","v":""},{"$f":"IFERROR(IF(LeningNietBetaald*LeningGoed,MaandelijkseBetaling,\"\"), \"\")","v":""},{"$f":"IFERROR(IF(LeningNietBetaald*LeningGoed,Hoofdsom,\"\"), \"\")","v":""},{"$f":"IFERROR(IF(LeningNietBetaald*LeningGoed,Rentebedrag,\"\"), \"\")","v":""},{"$f":"IFERROR(IF(LeningNietBetaald*LeningGoed,Eindsaldo,\"\"), \"\")","v":""}]
[null,{"$f":"IFERROR(IF(LeningNietBetaald*LeningGoed,NummerBetaling,\"\"), \"\")","v":""},{"$f":"IFERROR(IF(LeningNietBetaald*LeningGoed,Betaaldatum,\"\"), \"\")","v":""},{"$f":"IFERROR(IF(LeningNietBetaald*LeningGoed,WaardeLening,\"\"), \"\")","v":""},{"$f":"IFERROR(IF(LeningNietBetaald*LeningGoed,MaandelijkseBetaling,\"\"), \"\")","v":""},{"$f":"IFERROR(IF(LeningNietBetaald*LeningGoed,Hoofdsom,\"\"), \"\")","v":""},{"$f":"IFERROR(IF(LeningNietBetaald*LeningGoed,Rentebedrag,\"\"), \"\")","v":""},{"$f":"IFERROR(IF(LeningNietBetaald*LeningGoed,Eindsaldo,\"\"), \"\")","v":""}]
[null,{"$f":"IFERROR(IF(LeningNietBetaald*LeningGoed,NummerBetaling,\"\"), \"\")","v":""},{"$f":"IFERROR(IF(LeningNietBetaald*LeningGoed,Betaaldatum,\"\"), \"\")","v":""},{"$f":"IFERROR(IF(LeningNietBetaald*LeningGoed,WaardeLening,\"\"), \"\")","v":""},{"$f":"IFERROR(IF(LeningNietBetaald*LeningGoed,MaandelijkseBetaling,\"\"), \"\")","v":""},{"$f":"IFERROR(IF(LeningNietBetaald*LeningGoed,Hoofdsom,\"\"), \"\")","v":""},{"$f":"IFERROR(IF(LeningNietBetaald*LeningGoed,Rentebedrag,\"\"), \"\")","v":""},{"$f":"IFERROR(IF(LeningNietBetaald*LeningGoed,Eindsaldo,\"\"), \"\")","v":""}]
[null,{"$f":"IFERROR(IF(LeningNietBetaald*LeningGoed,NummerBetaling,\"\"), \"\")","v":""},{"$f":"IFERROR(IF(LeningNietBetaald*LeningGoed,Betaaldatum,\"\"), \"\")","v":""},{"$f":"IFERROR(IF(LeningNietBetaald*LeningGoed,WaardeLening,\"\"), \"\")","v":""},{"$f":"IFERROR(IF(LeningNietBetaald*LeningGoed,MaandelijkseBetaling,\"\"), \"\")","v":""},{"$f":"IFERROR(IF(LeningNietBetaald*LeningGoed,Hoofdsom,\"\"), \"\")","v":""},{"$f":"IFERROR(IF(LeningNietBetaald*LeningGoed,Rentebedrag,\"\"), \"\")","v":""},{"$f":"IFERROR(IF(LeningNietBetaald*LeningGoed,Eindsaldo,\"\"), \"\")","v":""}]
[null,{"$f":"IFERROR(IF(LeningNietBetaald*LeningGoed,NummerBetaling,\"\"), \"\")","v":""},{"$f":"IFERROR(IF(LeningNietBetaald*LeningGoed,Betaaldatum,\"\"), \"\")","v":""},{"$f":"IFERROR(IF(LeningNietBetaald*LeningGoed,WaardeLening,\"\"), \"\")","v":""},{"$f":"IFERROR(IF(LeningNietBetaald*LeningGoed,MaandelijkseBetaling,\"\"), \"\")","v":""},{"$f":"IFERROR(IF(LeningNietBetaald*LeningGoed,Hoofdsom,\"\"), \"\")","v":""},{"$f":"IFERROR(IF(LeningNietBetaald*LeningGoed,Rentebedrag,\"\"), \"\")","v":""},{"$f":"IFERROR(IF(LeningNietBetaald*LeningGoed,Eindsaldo,\"\"), \"\")","v":""}]
[null,{"$f":"IFERROR(IF(LeningNietBetaald*LeningGoed,NummerBetaling,\"\"), \"\")","v":""},{"$f":"IFERROR(IF(LeningNietBetaald*LeningGoed,Betaaldatum,\"\"), \"\")","v":""},{"$f":"IFERROR(IF(LeningNietBetaald*LeningGoed,WaardeLening,\"\"), \"\")","v":""},{"$f":"IFERROR(IF(LeningNietBetaald*LeningGoed,MaandelijkseBetaling,\"\"), \"\")","v":""},{"$f":"IFERROR(IF(LeningNietBetaald*LeningGoed,Hoofdsom,\"\"), \"\")","v":""},{"$f":"IFERROR(IF(LeningNietBetaald*LeningGoed,Rentebedrag,\"\"), \"\")","v":""},{"$f":"IFERROR(IF(LeningNietBetaald*LeningGoed,Eindsaldo,\"\"), \"\")","v":""}]
[null,{"$f":"IFERROR(IF(LeningNietBetaald*LeningGoed,NummerBetaling,\"\"), \"\")","v":""},{"$f":"IFERROR(IF(LeningNietBetaald*LeningGoed,Betaaldatum,\"\"), \"\")","v":""},{"$f":"IFERROR(IF(LeningNietBetaald*LeningGoed,WaardeLening,\"\"), \"\")","v":""},{"$f":"IFERROR(IF(LeningNietBetaald*LeningGoed,MaandelijkseBetaling,\"\"), \"\")","v":""},{"$f":"IFERROR(IF(LeningNietBetaald*LeningGoed,Hoofdsom,\"\"), \"\")","v":""},{"$f":"IFERROR(IF(LeningNietBetaald*LeningGoed,Rentebedrag,\"\"), \"\")","v":""},{"$f":"IFERROR(IF(LeningNietBetaald*LeningGoed,Eindsaldo,\"\"), \"\")","v":""}]
[null,{"$f":"IFERROR(IF(LeningNietBetaald*LeningGoed,NummerBetaling,\"\"), \"\")","v":""},{"$f":"IFERROR(IF(LeningNietBetaald*LeningGoed,Betaaldatum,\"\"), \"\")","v":""},{"$f":"IFERROR(IF(LeningNietBetaald*LeningGoed,WaardeLening,\"\"), \"\")","v":""},{"$f":"IFERROR(IF(LeningNietBetaald*LeningGoed,MaandelijkseBetaling,\"\"), \"\")","v":""},{"$f":"IFERROR(IF(LeningNietBetaald*LeningGoed,Hoofdsom,\"\"), \"\")","v":""},{"$f":"IFERROR(IF(LeningNietBetaald*LeningGoed,Rentebedrag,\"\"), \"\")","v":""},{"$f":"IFERROR(IF(LeningNietBetaald*LeningGoed,Eindsaldo,\"\"), \"\")","v":""}]
[null,{"$f":"IFERROR(IF(LeningNietBetaald*LeningGoed,NummerBetaling,\"\"), \"\")","v":""},{"$f":"IFERROR(IF(LeningNietBetaald*LeningGoed,Betaaldatum,\"\"), \"\")","v":""},{"$f":"IFERROR(IF(LeningNietBetaald*LeningGoed,WaardeLening,\"\"), \"\")","v":""},{"$f":"IFERROR(IF(LeningNietBetaald*LeningGoed,MaandelijkseBetaling,\"\"), \"\")","v":""},{"$f":"IFERROR(IF(LeningNietBetaald*LeningGoed,Hoofdsom,\"\"), \"\")","v":""},{"$f":"IFERROR(IF(LeningNietBetaald*LeningGoed,Rentebedrag,\"\"), \"\")","v":""},{"$f":"IFERROR(IF(LeningNietBetaald*LeningGoed,Eindsaldo,\"\"), \"\")","v":""}]
[null,{"$f":"IFERROR(IF(LeningNietBetaald*LeningGoed,NummerBetaling,\"\"), \"\")","v":""},{"$f":"IFERROR(IF(LeningNietBetaald*LeningGoed,Betaaldatum,\"\"), \"\")","v":""},{"$f":"IFERROR(IF(LeningNietBetaald*LeningGoed,WaardeLening,\"\"), \"\")","v":""},{"$f":"IFERROR(IF(LeningNietBetaald*LeningGoed,MaandelijkseBetaling,\"\"), \"\")","v":""},{"$f":"IFERROR(IF(LeningNietBetaald*LeningGoed,Hoofdsom,\"\"), \"\")","v":""},{"$f":"IFERROR(IF(LeningNietBetaald*LeningGoed,Rentebedrag,\"\"), \"\")","v":""},{"$f":"IFERROR(IF(LeningNietBetaald*LeningGoed,Eindsaldo,\"\"), \"\")","v":""}]
[null,{"$f":"IFERROR(IF(LeningNietBetaald*LeningGoed,NummerBetaling,\"\"), \"\")","v":""},{"$f":"IFERROR(IF(LeningNietBetaald*LeningGoed,Betaaldatum,\"\"), \"\")","v":""},{"$f":"IFERROR(IF(LeningNietBetaald*LeningGoed,WaardeLening,\"\"), \"\")","v":""},{"$f":"IFERROR(IF(LeningNietBetaald*LeningGoed,MaandelijkseBetaling,\"\"), \"\")","v":""},{"$f":"IFERROR(IF(LeningNietBetaald*LeningGoed,Hoofdsom,\"\"), \"\")","v":""},{"$f":"IFERROR(IF(LeningNietBetaald*LeningGoed,Rentebedrag,\"\"), \"\")","v":""},{"$f":"IFERROR(IF(LeningNietBetaald*LeningGoed,Eindsaldo,\"\"), \"\")","v":""}]
[null,{"$f":"IFERROR(IF(LeningNietBetaald*LeningGoed,NummerBetaling,\"\"), \"\")","v":""},{"$f":"IFERROR(IF(LeningNietBetaald*LeningGoed,Betaaldatum,\"\"), \"\")","v":""},{"$f":"IFERROR(IF(LeningNietBetaald*LeningGoed,WaardeLening,\"\"), \"\")","v":""},{"$f":"IFERROR(IF(LeningNietBetaald*LeningGoed,MaandelijkseBetaling,\"\"), \"\")","v":""},{"$f":"IFERROR(IF(LeningNietBetaald*LeningGoed,Hoofdsom,\"\"), \"\")","v":""},{"$f":"IFERROR(IF(LeningNietBetaald*LeningGoed,Rentebedrag,\"\"), \"\")","v":""},{"$f":"IFERROR(IF(LeningNietBetaald*LeningGoed,Eindsaldo,\"\"), \"\")","v":""}]
[null,{"$f":"IFERROR(IF(LeningNietBetaald*LeningGoed,NummerBetaling,\"\"), \"\")","v":""},{"$f":"IFERROR(IF(LeningNietBetaald*LeningGoed,Betaaldatum,\"\"), \"\")","v":""},{"$f":"IFERROR(IF(LeningNietBetaald*LeningGoed,WaardeLening,\"\"), \"\")","v":""},{"$f":"IFERROR(IF(LeningNietBetaald*LeningGoed,MaandelijkseBetaling,\"\"), \"\")","v":""},{"$f":"IFERROR(IF(LeningNietBetaald*LeningGoed,Hoofdsom,\"\"), \"\")","v":""},{"$f":"IFERROR(IF(LeningNietBetaald*LeningGoed,Rentebedrag,\"\"), \"\")","v":""},{"$f":"IFERROR(IF(LeningNietBetaald*LeningGoed,Eindsaldo,\"\"), \"\")","v":""}]
[null,{"$f":"IFERROR(IF(LeningNietBetaald*LeningGoed,NummerBetaling,\"\"), \"\")","v":""},{"$f":"IFERROR(IF(LeningNietBetaald*LeningGoed,Betaaldatum,\"\"), \"\")","v":""},{"$f":"IFERROR(IF(LeningNietBetaald*LeningGoed,WaardeLening,\"\"), \"\")","v":""},{"$f":"IFERROR(IF(LeningNietBetaald*LeningGoed,MaandelijkseBetaling,\"\"), \"\")","v":""},{"$f":"IFERROR(IF(LeningNietBetaald*LeningGoed,Hoofdsom,\"\"), \"\")","v":""},{"$f":"IFERROR(IF(LeningNietBetaald*LeningGoed,Rentebedrag,\"\"), \"\")","v":""},{"$f":"IFERROR(IF(LeningNietBetaald*LeningGoed,Eindsaldo,\"\"), \"\")","v":""}]
[null,{"$f":"IFERROR(IF(LeningNietBetaald*LeningGoed,NummerBetaling,\"\"), \"\")","v":""},{"$f":"IFERROR(IF(LeningNietBetaald*LeningGoed,Betaaldatum,\"\"), \"\")","v":""},{"$f":"IFERROR(IF(LeningNietBetaald*LeningGoed,WaardeLening,\"\"), \"\")","v":""},{"$f":"IFERROR(IF(LeningNietBetaald*LeningGoed,MaandelijkseBetaling,\"\"), \"\")","v":""},{"$f":"IFERROR(IF(LeningNietBetaald*LeningGoed,Hoofdsom,\"\"), \"\")","v":""},{"$f":"IFERROR(IF(LeningNietBetaald*LeningGoed,Rentebedrag,\"\"), \"\")","v":""},{"$f":"IFERROR(IF(LeningNietBetaald*LeningGoed,Eindsaldo,\"\"), \"\")","v":""}]
[null,{"$f":"IFERROR(IF(LeningNietBetaald*LeningGoed,NummerBetaling,\"\"), \"\")","v":""},{"$f":"IFERROR(IF(LeningNietBetaald*LeningGoed,Betaaldatum,\"\"), \"\")","v":""},{"$f":"IFERROR(IF(LeningNietBetaald*LeningGoed,WaardeLening,\"\"), \"\")","v":""},{"$f":"IFERROR(IF(LeningNietBetaald*LeningGoed,MaandelijkseBetaling,\"\"), \"\")","v":""},{"$f":"IFERROR(IF(LeningNietBetaald*LeningGoed,Hoofdsom,\"\"), \"\")","v":""},{"$f":"IFERROR(IF(LeningNietBetaald*LeningGoed,Rentebedrag,\"\"), \"\")","v":""},{"$f":"IFERROR(IF(LeningNietBetaald*LeningGoed,Eindsaldo,\"\"), \"\")","v":""}]
[null,{"$f":"IFERROR(IF(LeningNietBetaald*LeningGoed,NummerBetaling,\"\"), \"\")","v":""},{"$f":"IFERROR(IF(LeningNietBetaald*LeningGoed,Betaaldatum,\"\"), \"\")","v":""},{"$f":"IFERROR(IF(LeningNietBetaald*LeningGoed,WaardeLening,\"\"), \"\")","v":""},{"$f":"IFERROR(IF(LeningNietBetaald*LeningGoed,MaandelijkseBetaling,\"\"), \"\")","v":""},{"$f":"IFERROR(IF(LeningNietBetaald*LeningGoed,Hoofdsom,\"\"), \"\")","v":""},{"$f":"IFERROR(IF(LeningNietBetaald*LeningGoed,Rentebedrag,\"\"), \"\")","v":""},{"$f":"IFERROR(IF(LeningNietBetaald*LeningGoed,Eindsaldo,\"\"), \"\")","v":""}]
[null,{"$f":"IFERROR(IF(LeningNietBetaald*LeningGoed,NummerBetaling,\"\"), \"\")","v":""},{"$f":"IFERROR(IF(LeningNietBetaald*LeningGoed,Betaaldatum,\"\"), \"\")","v":""},{"$f":"IFERROR(IF(LeningNietBetaald*LeningGoed,WaardeLening,\"\"), \"\")","v":""},{"$f":"IFERROR(IF(LeningNietBetaald*LeningGoed,MaandelijkseBetaling,\"\"), \"\")","v":""},{"$f":"IFERROR(IF(LeningNietBetaald*LeningGoed,Hoofdsom,\"\"), \"\")","v":""},{"$f":"IFERROR(IF(LeningNietBetaald*LeningGoed,Rentebedrag,\"\"), \"\")","v":""},{"$f":"IFERROR(IF(LeningNietBetaald*LeningGoed,Eindsaldo,\"\"), \"\")","v":""}]
[null,{"$f":"IFERROR(IF(LeningNietBetaald*LeningGoed,NummerBetaling,\"\"), \"\")","v":""},{"$f":"IFERROR(IF(LeningNietBetaald*LeningGoed,Betaaldatum,\"\"), \"\")","v":""},{"$f":"IFERROR(IF(LeningNietBetaald*LeningGoed,WaardeLening,\"\"), \"\")","v":""},{"$f":"IFERROR(IF(LeningNietBetaald*LeningGoed,MaandelijkseBetaling,\"\"), \"\")","v":""},{"$f":"IFERROR(IF(LeningNietBetaald*LeningGoed,Hoofdsom,\"\"), \"\")","v":""},{"$f":"IFERROR(IF(LeningNietBetaald*LeningGoed,Rentebedrag,\"\"), \"\")","v":""},{"$f":"IFERROR(IF(LeningNietBetaald*LeningGoed,Eindsaldo,\"\"), \"\")","v":""}]
[null,{"$f":"IFERROR(IF(LeningNietBetaald*LeningGoed,NummerBetaling,\"\"), \"\")","v":""},{"$f":"IFERROR(IF(LeningNietBetaald*LeningGoed,Betaaldatum,\"\"), \"\")","v":""},{"$f":"IFERROR(IF(LeningNietBetaald*LeningGoed,WaardeLening,\"\"), \"\")","v":""},{"$f":"IFERROR(IF(LeningNietBetaald*LeningGoed,MaandelijkseBetaling,\"\"), \"\")","v":""},{"$f":"IFERROR(IF(LeningNietBetaald*LeningGoed,Hoofdsom,\"\"), \"\")","v":""},{"$f":"IFERROR(IF(LeningNietBetaald*LeningGoed,Rentebedrag,\"\"), \"\")","v":""},{"$f":"IFERROR(IF(LeningNietBetaald*LeningGoed,Eindsaldo,\"\"), \"\")","v":""}]
[null,{"$f":"IFERROR(IF(LeningNietBetaald*LeningGoed,NummerBetaling,\"\"), \"\")","v":""},{"$f":"IFERROR(IF(LeningNietBetaald*LeningGoed,Betaaldatum,\"\"), \"\")","v":""},{"$f":"IFERROR(IF(LeningNietBetaald*LeningGoed,WaardeLening,\"\"), \"\")","v":""},{"$f":"IFERROR(IF(LeningNietBetaald*LeningGoed,MaandelijkseBetaling,\"\"), \"\")","v":""},{"$f":"IFERROR(IF(LeningNietBetaald*LeningGoed,Hoofdsom,\"\"), \"\")","v":""},{"$f":"IFERROR(IF(LeningNietBetaald*LeningGoed,Rentebedrag,\"\"), \"\")","v":""},{"$f":"IFERROR(IF(LeningNietBetaald*LeningGoed,Eindsaldo,\"\"), \"\")","v":""}]
[null,{"$f":"IFERROR(IF(LeningNietBetaald*LeningGoed,NummerBetaling,\"\"), \"\")","v":""},{"$f":"IFERROR(IF(LeningNietBetaald*LeningGoed,Betaaldatum,\"\"), \"\")","v":""},{"$f":"IFERROR(IF(LeningNietBetaald*LeningGoed,WaardeLening,\"\"), \"\")","v":""},{"$f":"IFERROR(IF(LeningNietBetaald*LeningGoed,MaandelijkseBetaling,\"\"), \"\")","v":""},{"$f":"IFERROR(IF(LeningNietBetaald*LeningGoed,Hoofdsom,\"\"), \"\")","v":""},{"$f":"IFERROR(IF(LeningNietBetaald*LeningGoed,Rentebedrag,\"\"), \"\")","v":""},{"$f":"IFERROR(IF(LeningNietBetaald*LeningGoed,Eindsaldo,\"\"), \"\")","v":""}]
[null,{"$f":"IFERROR(IF(LeningNietBetaald*LeningGoed,NummerBetaling,\"\"), \"\")","v":""},{"$f":"IFERROR(IF(LeningNietBetaald*LeningGoed,Betaaldatum,\"\"), \"\")","v":""},{"$f":"IFERROR(IF(LeningNietBetaald*LeningGoed,WaardeLening,\"\"), \"\")","v":""},{"$f":"IFERROR(IF(LeningNietBetaald*LeningGoed,MaandelijkseBetaling,\"\"), \"\")","v":""},{"$f":"IFERROR(IF(LeningNietBetaald*LeningGoed,Hoofdsom,\"\"), \"\")","v":""},{"$f":"IFERROR(IF(LeningNietBetaald*LeningGoed,Rentebedrag,\"\"), \"\")","v":""},{"$f":"IFERROR(IF(LeningNietBetaald*LeningGoed,Eindsaldo,\"\"), \"\")","v":""}]
[null,{"$f":"IFERROR(IF(LeningNietBetaald*LeningGoed,NummerBetaling,\"\"), \"\")","v":""},{"$f":"IFERROR(IF(LeningNietBetaald*LeningGoed,Betaaldatum,\"\"), \"\")","v":""},{"$f":"IFERROR(IF(LeningNietBetaald*LeningGoed,WaardeLening,\"\"), \"\")","v":""},{"$f":"IFERROR(IF(LeningNietBetaald*LeningGoed,MaandelijkseBetaling,\"\"), \"\")","v":""},{"$f":"IFERROR(IF(LeningNietBetaald*LeningGoed,Hoofdsom,\"\"), \"\")","v":""},{"$f":"IFERROR(IF(LeningNietBetaald*LeningGoed,Rentebedrag,\"\"), \"\")","v":""},{"$f":"IFERROR(IF(LeningNietBetaald*LeningGoed,Eindsaldo,\"\"), \"\")","v":""}]
[null,{"$f":"IFERROR(IF(LeningNietBetaald*LeningGoed,NummerBetaling,\"\"), \"\")","v":""},{"$f":"IFERROR(IF(LeningNietBetaald*LeningGoed,Betaaldatum,\"\"), \"\")","v":""},{"$f":"IFERROR(IF(LeningNietBetaald*LeningGoed,WaardeLening,\"\"), \"\")","v":""},{"$f":"IFERROR(IF(LeningNietBetaald*LeningGoed,MaandelijkseBetaling,\"\"), \"\")","v":""},{"$f":"IFERROR(IF(LeningNietBetaald*LeningGoed,Hoofdsom,\"\"), \"\")","v":""},{"$f":"IFERROR(IF(LeningNietBetaald*LeningGoed,Rentebedrag,\"\"), \"\")","v":""},{"$f":"IFERROR(IF(LeningNietBetaald*LeningGoed,Eindsaldo,\"\"), \"\")","v":""}]
[null,{"$f":"IFERROR(IF(LeningNietBetaald*LeningGoed,NummerBetaling,\"\"), \"\")","v":""},{"$f":"IFERROR(IF(LeningNietBetaald*LeningGoed,Betaaldatum,\"\"), \"\")","v":""},{"$f":"IFERROR(IF(LeningNietBetaald*LeningGoed,WaardeLening,\"\"), \"\")","v":""},{"$f":"IFERROR(IF(LeningNietBetaald*LeningGoed,MaandelijkseBetaling,\"\"), \"\")","v":""},{"$f":"IFERROR(IF(LeningNietBetaald*LeningGoed,Hoofdsom,\"\"), \"\")","v":""},{"$f":"IFERROR(IF(LeningNietBetaald*LeningGoed,Rentebedrag,\"\"), \"\")","v":""},{"$f":"IFERROR(IF(LeningNietBetaald*LeningGoed,Eindsaldo,\"\"), \"\")","v":""}]
[null,{"$f":"IFERROR(IF(LeningNietBetaald*LeningGoed,NummerBetaling,\"\"), \"\")","v":""},{"$f":"IFERROR(IF(LeningNietBetaald*LeningGoed,Betaaldatum,\"\"), \"\")","v":""},{"$f":"IFERROR(IF(LeningNietBetaald*LeningGoed,WaardeLening,\"\"), \"\")","v":""},{"$f":"IFERROR(IF(LeningNietBetaald*LeningGoed,MaandelijkseBetaling,\"\"), \"\")","v":""},{"$f":"IFERROR(IF(LeningNietBetaald*LeningGoed,Hoofdsom,\"\"), \"\")","v":""},{"$f":"IFERROR(IF(LeningNietBetaald*LeningGoed,Rentebedrag,\"\"), \"\")","v":""},{"$f":"IFERROR(IF(LeningNietBetaald*LeningGoed,Eindsaldo,\"\"), \"\")","v":""}]
[null,{"$f":"IFERROR(IF(LeningNietBetaald*LeningGoed,NummerBetaling,\"\"), \"\")","v":""},{"$f":"IFERROR(IF(LeningNietBetaald*LeningGoed,Betaaldatum,\"\"), \"\")","v":""},{"$f":"IFERROR(IF(LeningNietBetaald*LeningGoed,WaardeLening,\"\"), \"\")","v":""},{"$f":"IFERROR(IF(LeningNietBetaald*LeningGoed,MaandelijkseBetaling,\"\"), \"\")","v":""},{"$f":"IFERROR(IF(LeningNietBetaald*LeningGoed,Hoofdsom,\"\"), \"\")","v":""},{"$f":"IFERROR(IF(LeningNietBetaald*LeningGoed,Rentebedrag,\"\"), \"\")","v":""},{"$f":"IFERROR(IF(LeningNietBetaald*LeningGoed,Eindsaldo,\"\"), \"\")","v":""}]